Workbook

Sheet Index
B1: AER opex model v2.0
B2: Index
B4: Model index
C6: Sheet Name | D6: Sheet Description
C7: Input | General | D7: Inputs NSP name, regulatory years for the prior and forecast regulatory control period etc.
C8: Input | Inflation | D8: Inputs inflation data.
C9: Input | Reported opex | D9: Inputs the reported operating expenditure (opex) from the prior regulatory control period.
C10: Input | Rate of change | D10: Inputs the cost escalation weights, cost escalation forecast, and inflation actuals and forecast. Sheet used when the rate of change is applied from the final year.
C11: Input | Step changes | D11: Inputs the operating expenditure (opex) data, including historical opex by category, one-off costs, step changes, demand forecasts, carbon costs, self insurance, network growth, and partial factor productivity
C12: Calc | Opex Forecast | D12: Calculates the opex forecast. Sheet used when the rate of change is applied from the final year.
C13: Output | Models | D13: Outputs the forecasts needed as a post tax revenue model inputs. Sheet used when the rate of change is applied from the final year.
C14: Lookup | Tables | D14: Includes the lookup tables used within this opex model.
C15: Check | List | D15: Shows checks on the calculations within the model
B17: End

Sheet Input|General
B1: =Index!$B$1 -> AER opex model v2.0 | J1: Back to Index | L1: Key: | M1: Input | N1: External Link | O1: Internal Link | R1: Worksheet check: | S1: =IF(COUNTA($S$5:$S$16)=COUNTIF($S5:$S17,"OK"),"OK","Check") -> OK | U1: Overall Check: | V1: ='Check|List'!$S$1 -> Ok
B2: =Index!$C$7 -> Input | General
B4: Input | General inputs
C6: Inputs | D6: Source | G6: Value
C7: NSP name | D7: NSP | G7: Endeavour | S7: =IF(COUNTBLANK($G7),"Check","Ok") -> Ok
C8: Decision stage | D8: AER | G8: Proposal | S8: =IF(COUNTBLANK($G8),"Check","Ok") -> Ok
C9: Year ending | D9: NSP | G9: 2000-06-01 | S9: =IF(COUNTBLANK($G9),"Check","Ok") -> Ok
C10: Previous regulatory control period, first year | D10: NSP | G10: 2020 | S10: =IF(COUNTBLANK($G10),"Check","Ok") -> Ok
C11: Forecast base year | D11: NSP | G11: 2023 | S11: Ok
C12: Previous regulatory control period, last year | D12: NSP | G12: 2024 | S12: Ok
C13: Forecast regulatory control period, first year | D13: NSP | G13: 2025 | S13: Ok
C14: Forecast regulatory control period, last year | D14: NSP | G14: 2029 | S14: Ok
C15: Units | D15: NSP | G15: $millions | S15: Ok
B17: End

Sheet Input|Inflation
B1: =Index!$B$1 -> AER opex model v2.0 | M1: Back to Index | O1: Key: | P1: Input | Q1: External Link | R1: Internal Link | U1: Worksheet check: | V1: =IF(COUNTA($V$5:$V$85)=COUNTIF($V5:$V86,"OK"),"OK","Check") -> OK | X1: Overall Check: | Y1: ='Check|List'!$S$1 -> Ok
B2: =Index!$C$7 -> Input | General
B4: Input | General inputs
D6: Index value, new base | E6: Percentage Change from Corresponding Quarter of Previous Year | F6: Index value, new base | G6: Forecast annual CPI growth | H6: Forecast and actual index value | I6: Percentage Change from Corresponding Quarter of Previous Year
C7: Source | D7: ABS | E7: Calculated | F7: ABS | G7: RBA | H7: Calculated | I7: Calculated
C8: Unit | D8: index | E8: Percent | F8: index | G8: Percent | H8: index | I8: Percent
C9: 2007-03-31 | D9: 155.6 | V9: =IF(C9>EOMONTH(DATE('Input|General'!$G$12,MONTH('Input|General'!$G$9),1),0),"Ok",IF(D9="","Check","Ok")) -> Ok
C10: 2007-06-30 | D10: 157.5 | V10: =IF(C10>EOMONTH(DATE('Input|General'!$G$12,MONTH('Input|General'!$G$9),1),0),"Ok",IF(D10="","Check","Ok")) -> Ok
C11: 2007-09-30 | D11: 158.6 | V11: =IF(C11>EOMONTH(DATE('Input|General'!$G$12,MONTH('Input|General'!$G$9),1),0),"Ok",IF(D11="","Check","Ok")) -> Ok
C12: 2007-12-31 | D12: 160.1 | V12: =IF(C12>EOMONTH(DATE('Input|General'!$G$12,MONTH('Input|General'!$G$9),1),0),"Ok",IF(D12="","Check","Ok")) -> Ok
C13: 2008-03-31 | D13: 162.2 | E13: =D13/D9-1 -> 0.04241645244 | V13: =IF(C13>EOMONTH(DATE('Input|General'!$G$12,MONTH('Input|General'!$G$9),1),0),"Ok",IF(D13="","Check","Ok")) -> Ok
C14: 2008-06-30 | D14: 164.6 | E14: =D14/D10-1 -> 0.04507936508 | V14: =IF(C14>EOMONTH(DATE('Input|General'!$G$12,MONTH('Input|General'!$G$9),1),0),"Ok",IF(D14="","Check","Ok")) -> Ok
C15: 2008-09-30 | D15: 166.5 | E15: 0.04981084489 | V15: =IF(C15>EOMONTH(DATE('Input|General'!$G$12,MONTH('Input|General'!$G$9),1),0),"Ok",IF(D15="","Check","Ok")) -> Ok
C16: 2008-12-31 | D16: 166 | E16: 0.03685196752 | V16: =IF(C16>EOMONTH(DATE('Input|General'!$G$12,MONTH('Input|General'!$G$9),1),0),"Ok",IF(D16="","Check","Ok")) -> Ok
C17: 2009-03-31 | D17: 166.2 | E17: 0.02466091245 | V17: =IF(C17>EOMONTH(DATE('Input|General'!$G$12,MONTH('Input|General'!$G$9),1),0),"Ok",IF(D17="","Check","Ok")) -> Ok
C18: 2009-06-30 | D18: 167 | E18: 0.01458080194 | V18: =IF(C18>EOMONTH(DATE('Input|General'!$G$12,MONTH('Input|General'!$G$9),1),0),"Ok",IF(D18="","Check","Ok")) -> Ok
C19: 2009-09-30 | D19: 168.6 | E19: 0.01261261261 | V19: =IF(C19>EOMONTH(DATE('Input|General'!$G$12,MONTH('Input|General'!$G$9),1),0),"Ok",IF(D19="","Check","Ok")) -> Ok
C20: 2009-12-31 | D20: 169.5 | E20: 0.02108433735 | V20: =IF(C20>EOMONTH(DATE('Input|General'!$G$12,MONTH('Input|General'!$G$9),1),0),"Ok",IF(D20="","Check","Ok")) -> Ok
C21: 2010-03-31 | D21: 171 | E21: 0.02888086643 | F21: 95.2 | H21: =IF(ISBLANK(F21),IF(COUNT(G21:G$84)=0,"",IF(ISBLANK(G21),AVERAGE(H20,H22),(1+G21)*H17)),F21) -> 95.2 | V21: =IF(C21>EOMONTH(DATE('Input|General'!$G$12,MONTH('Input|General'!$G$9),1),0),"Ok",IF(D21="","Check","Ok")) -> Ok
C22: 2010-06-30 | D22: 172.1 | E22: 0.03053892216 | F22: 95.8 | H22: =IF(ISBLANK(F22),IF(COUNT(G22:G$84)=0,"",IF(ISBLANK(G22),AVERAGE(H21,H23),(1+G22)*H18)),F22) -> 95.8 | V22: =IF(C22>EOMONTH(DATE('Input|General'!$G$12,MONTH('Input|General'!$G$9),1),0),"Ok",IF(D22="","Check","Ok")) -> Ok
C23: 2010-09-30 | D23: 173.3 | E23: 0.02787663108 | F23: 96.5 | H23: =IF(ISBLANK(F23),IF(COUNT(G23:G$84)=0,"",IF(ISBLANK(G23),AVERAGE(H22,H24),(1+G23)*H19)),F23) -> 96.5 | V23: =IF(C23>EOMONTH(DATE('Input|General'!$G$12,MONTH('Input|General'!$G$9),1),0),"Ok",IF(D23="","Check","Ok")) -> Ok
C24: 2010-12-31 | D24: 174 | E24: 0.02654867257 | F24: 96.9 | H24: =IF(ISBLANK(F24),IF(COUNT(G24:G$84)=0,"",IF(ISBLANK(G24),AVERAGE(H23,H25),(1+G24)*H20)),F24) -> 96.9 | V24: =IF(C24>EOMONTH(DATE('Input|General'!$G$12,MONTH('Input|General'!$G$9),1),0),"Ok",IF(D24="","Check","Ok")) -> Ok
C25: 2011-03-31 | D25: 176.7 | E25: 0.03333333333 | F25: 98.3 | H25: =IF(ISBLANK(F25),IF(COUNT(G25:G$84)=0,"",IF(ISBLANK(G25),AVERAGE(H24,H26),(1+G25)*H21)),F25) -> 98.3 | I25: =IF(H25="","",H25/H21-1) -> 0.03256302521 | V25: =IF(C25>EOMONTH(DATE('Input|General'!$G$12,MONTH('Input|General'!$G$9),1),0),"Ok",IF(D25="","Check","Ok")) -> Ok
C26: 2011-06-30 | D26: 178.3 | E26: 0.03602556653 | F26: 99.2 | H26: =IF(ISBLANK(F26),IF(COUNT(G26:G$84)=0,"",IF(ISBLANK(G26),AVERAGE(H25,H27),(1+G26)*H22)),F26) -> 99.2 | I26: 0.03549060543 | V26: =IF(C26>EOMONTH(DATE('Input|General'!$G$12,MONTH('Input|General'!$G$9),1),0),"Ok",IF(D26="","Check","Ok")) -> Ok
C27: 2011-09-30 | D27: 179.4 | E27: 0.03519907675 | F27: 99.8 | H27: =IF(ISBLANK(F27),IF(COUNT(G27:G$84)=0,"",IF(ISBLANK(G27),AVERAGE(H26,H28),(1+G27)*H23)),F27) -> 99.8 | I27: 0.03419689119 | V27: =IF(C27>EOMONTH(DATE('Input|General'!$G$12,MONTH('Input|General'!$G$9),1),0),"Ok",IF(D27="","Check","Ok")) -> Ok
C28: 2011-12-31 | D28: 179.4 | E28: 0.03103448276 | F28: 99.8 | H28: =IF(ISBLANK(F28),IF(COUNT(G28:G$84)=0,"",IF(ISBLANK(G28),AVERAGE(H27,H29),(1+G28)*H24)),F28) -> 99.8 | I28: 0.02992776058 | V28: =IF(C28>EOMONTH(DATE('Input|General'!$G$12,MONTH('Input|General'!$G$9),1),0),"Ok",IF(D28="","Check","Ok")) -> Ok
C29: 2012-03-31 | D29: 179.5 | E29: 0.01584606678 | F29: 99.9 | H29: =IF(ISBLANK(F29),IF(COUNT(G29:G$84)=0,"",IF(ISBLANK(G29),AVERAGE(H28,H30),(1+G29)*H25)),F29) -> 99.9 | I29: 0.01627670397 | V29: =IF(C29>EOMONTH(DATE('Input|General'!$G$12,MONTH('Input|General'!$G$9),1),0),"Ok",IF(D29="","Check","Ok")) -> Ok
C30: 2012-06-30 | F30: 100.4 | H30: =IF(ISBLANK(F30),IF(COUNT(G30:G$84)=0,"",IF(ISBLANK(G30),AVERAGE(H29,H31),(1+G30)*H26)),F30) -> 100.4 | I30: 0.01209677419 | V30: =IF(C30>EOMONTH(DATE('Input|General'!$G$12,MONTH('Input|General'!$G$9),1),0),"Ok",IF(I30="","Check","Ok")) -> Ok
C31: 2012-09-30 | F31: 101.8 | H31: =IF(ISBLANK(F31),IF(COUNT(G31:G$84)=0,"",IF(ISBLANK(G31),AVERAGE(H30,H32),(1+G31)*H27)),F31) -> 101.8 | I31: 0.02004008016 | V31: =IF(C31>EOMONTH(DATE('Input|General'!$G$12,MONTH('Input|General'!$G$9),1),0),"Ok",IF(I31="","Check","Ok")) -> Ok
C32: 2012-12-31 | F32: 102 | H32: =IF(ISBLANK(F32),IF(COUNT(G32:G$84)=0,"",IF(ISBLANK(G32),AVERAGE(H31,H33),(1+G32)*H28)),F32) -> 102 | I32: 0.02204408818 | V32: =IF(C32>EOMONTH(DATE('Input|General'!$G$12,MONTH('Input|General'!$G$9),1),0),"Ok",IF(I32="","Check","Ok")) -> Ok
C33: 2013-03-31 | F33: 102.4 | H33: =IF(ISBLANK(F33),IF(COUNT(G33:G$84)=0,"",IF(ISBLANK(G33),AVERAGE(H32,H34),(1+G33)*H29)),F33) -> 102.4 | I33: 0.02502502503 | V33: =IF(C33>EOMONTH(DATE('Input|General'!$G$12,MONTH('Input|General'!$G$9),1),0),"Ok",IF(I33="","Check","Ok")) -> Ok
C34: 2013-06-30 | F34: 102.8 | H34: =IF(ISBLANK(F34),IF(COUNT(G34:G$84)=0,"",IF(ISBLANK(G34),AVERAGE(H33,H35),(1+G34)*H30)),F34) -> 102.8 | I34: 0.02390438247 | V34: =IF(C34>EOMONTH(DATE('Input|General'!$G$12,MONTH('Input|General'!$G$9),1),0),"Ok",IF(I34="","Check","Ok")) -> Ok
C35: 2013-09-30 | F35: 104 | H35: =IF(ISBLANK(F35),IF(COUNT(G35:G$84)=0,"",IF(ISBLANK(G35),AVERAGE(H34,H36),(1+G35)*H31)),F35) -> 104 | I35: 0.02161100196 | V35: =IF(C35>EOMONTH(DATE('Input|General'!$G$12,MONTH('Input|General'!$G$9),1),0),"Ok",IF(I35="","Check","Ok")) -> Ok
C36: 2013-12-31 | F36: 104.8 | H36: =IF(ISBLANK(F36),IF(COUNT(G36:G$84)=0,"",IF(ISBLANK(G36),AVERAGE(H35,H37),(1+G36)*H32)),F36) -> 104.8 | I36: 0.02745098039 | V36: =IF(C36>EOMONTH(DATE('Input|General'!$G$12,MONTH('Input|General'!$G$9),1),0),"Ok",IF(I36="","Check","Ok")) -> Ok
C37: 2014-03-31 | F37: 105.4 | H37: =IF(ISBLANK(F37),IF(COUNT(G37:G$84)=0,"",IF(ISBLANK(G37),AVERAGE(H36,H38),(1+G37)*H33)),F37) -> 105.4 | I37: 0.029296875 | V37: =IF(C37>EOMONTH(DATE('Input|General'!$G$12,MONTH('Input|General'!$G$9),1),0),"Ok",IF(I37="","Check","Ok")) -> Ok
C38: 2014-06-30 | F38: 105.9 | H38: =IF(ISBLANK(F38),IF(COUNT(G38:G$84)=0,"",IF(ISBLANK(G38),AVERAGE(H37,H39),(1+G38)*H34)),F38) -> 105.9 | I38: 0.03015564202 | V38: =IF(C38>EOMONTH(DATE('Input|General'!$G$12,MONTH('Input|General'!$G$9),1),0),"Ok",IF(I38="","Check","Ok")) -> Ok
C39: 2014-09-30 | F39: 106.4 | H39: =IF(ISBLANK(F39),IF(COUNT(G39:G$84)=0,"",IF(ISBLANK(G39),AVERAGE(H38,H40),(1+G39)*H35)),F39) -> 106.4 | I39: 0.02307692308 | V39: =IF(C39>EOMONTH(DATE('Input|General'!$G$12,MONTH('Input|General'!$G$9),1),0),"Ok",IF(I39="","Check","Ok")) -> Ok
C40: 2014-12-31 | F40: 106.6 | H40: =IF(ISBLANK(F40),IF(COUNT(G40:G$84)=0,"",IF(ISBLANK(G40),AVERAGE(H39,H41),(1+G40)*H36)),F40) -> 106.6 | I40: 0.01717557252 | V40: =IF(C40>EOMONTH(DATE('Input|General'!$G$12,MONTH('Input|General'!$G$9),1),0),"Ok",IF(I40="","Check","Ok")) -> Ok
C41: 2015-03-31 | F41: 106.8 | H41: =IF(ISBLANK(F41),IF(COUNT(G41:G$84)=0,"",IF(ISBLANK(G41),AVERAGE(H40,H42),(1+G41)*H37)),F41) -> 106.8 | I41: 0.01328273245 | V41: =IF(C41>EOMONTH(DATE('Input|General'!$G$12,MONTH('Input|General'!$G$9),1),0),"Ok",IF(I41="","Check","Ok")) -> Ok
C42: 2015-06-30 | F42: 107.5 | H42: =IF(ISBLANK(F42),IF(COUNT(G42:G$84)=0,"",IF(ISBLANK(G42),AVERAGE(H41,H43),(1+G42)*H38)),F42) -> 107.5 | I42: 0.01510859301 | V42: =IF(C42>EOMONTH(DATE('Input|General'!$G$12,MONTH('Input|General'!$G$9),1),0),"Ok",IF(I42="","Check","Ok")) -> Ok
C43: 2015-09-30 | F43: 108 | H43: =IF(ISBLANK(F43),IF(COUNT(G43:G$84)=0,"",IF(ISBLANK(G43),AVERAGE(H42,H44),(1+G43)*H39)),F43) -> 108 | I43: 0.01503759398 | V43: =IF(C43>EOMONTH(DATE('Input|General'!$G$12,MONTH('Input|General'!$G$9),1),0),"Ok",IF(I43="","Check","Ok")) -> Ok
C44: 2015-12-31 | F44: 108.4 | H44: =IF(ISBLANK(F44),IF(COUNT(G44:G$84)=0,"",IF(ISBLANK(G44),AVERAGE(H43,H45),(1+G44)*H40)),F44) -> 108.4 | I44: 0.01688555347 | V44: =IF(C44>EOMONTH(DATE('Input|General'!$G$12,MONTH('Input|General'!$G$9),1),0),"Ok",IF(I44="","Check","Ok")) -> Ok
C45: 2016-03-31 | F45: 108.2 | H45: =IF(ISBLANK(F45),IF(COUNT(G45:G$84)=0,"",IF(ISBLANK(G45),AVERAGE(H44,H46),(1+G45)*H41)),F45) -> 108.2 | I45: 0.01310861423 | V45: =IF(C45>EOMONTH(DATE('Input|General'!$G$12,MONTH('Input|General'!$G$9),1),0),"Ok",IF(I45="","Check","Ok")) -> Ok
C46: 2016-06-30 | F46: 108.6 | H46: =IF(ISBLANK(F46),IF(COUNT(G46:G$84)=0,"",IF(ISBLANK(G46),AVERAGE(H45,H47),(1+G46)*H42)),F46) -> 108.6 | I46: 0.01023255814 | V46: =IF(C46>EOMONTH(DATE('Input|General'!$G$12,MONTH('Input|General'!$G$9),1),0),"Ok",IF(I46="","Check","Ok")) -> Ok
C47: 2016-09-30 | F47: 109.4 | H47: =IF(ISBLANK(F47),IF(COUNT(G47:G$84)=0,"",IF(ISBLANK(G47),AVERAGE(H46,H48),(1+G47)*H43)),F47) -> 109.4 | I47: 0.01296296296 | V47: =IF(C47>EOMONTH(DATE('Input|General'!$G$12,MONTH('Input|General'!$G$9),1),0),"Ok",IF(I47="","Check","Ok")) -> Ok
C48: 2016-12-31 | F48: 110 | H48: =IF(ISBLANK(F48),IF(COUNT(G48:G$84)=0,"",IF(ISBLANK(G48),AVERAGE(H47,H49),(1+G48)*H44)),F48) -> 110 | I48: 0.0147601476 | V48: =IF(C48>EOMONTH(DATE('Input|General'!$G$12,MONTH('Input|General'!$G$9),1),0),"Ok",IF(I48="","Check","Ok")) -> Ok
C49: 2017-03-31 | F49: 110.5 | H49: =IF(ISBLANK(F49),IF(COUNT(G49:G$84)=0,"",IF(ISBLANK(G49),AVERAGE(H48,H50),(1+G49)*H45)),F49) -> 110.5 | I49: 0.02125693161 | V49: =IF(C49>EOMONTH(DATE('Input|General'!$G$12,MONTH('Input|General'!$G$9),1),0),"Ok",IF(I49="","Check","Ok")) -> Ok
C50: 2017-06-30 | F50: 110.7 | H50: =IF(ISBLANK(F50),IF(COUNT(G50:G$84)=0,"",IF(ISBLANK(G50),AVERAGE(H49,H51),(1+G50)*H46)),F50) -> 110.7 | I50: 0.01933701657 | V50: =IF(C50>EOMONTH(DATE('Input|General'!$G$12,MONTH('Input|General'!$G$9),1),0),"Ok",IF(I50="","Check","Ok")) -> Ok
C51: 2017-09-30 | F51: 111.4 | H51: =IF(ISBLANK(F51),IF(COUNT(G51:G$84)=0,"",IF(ISBLANK(G51),AVERAGE(H50,H52),(1+G51)*H47)),F51) -> 111.4 | I51: 0.01828153565 | V51: =IF(C51>EOMONTH(DATE('Input|General'!$G$12,MONTH('Input|General'!$G$9),1),0),"Ok",IF(I51="","Check","Ok")) -> Ok
C52: 2017-12-31 | F52: 112.1 | H52: =IF(ISBLANK(F52),IF(COUNT(G52:G$84)=0,"",IF(ISBLANK(G52),AVERAGE(H51,H53),(1+G52)*H48)),F52) -> 112.1 | I52: 0.01909090909 | V52: =IF(C52>EOMONTH(DATE('Input|General'!$G$12,MONTH('Input|General'!$G$9),1),0),"Ok",IF(I52="","Check","Ok")) -> Ok
C53: 2018-03-31 | F53: 112.6 | H53: =IF(ISBLANK(F53),IF(COUNT(G53:G$84)=0,"",IF(ISBLANK(G53),AVERAGE(H52,H54),(1+G53)*H49)),F53) -> 112.6 | I53: 0.01900452489 | V53: =IF(C53>EOMONTH(DATE('Input|General'!$G$12,MONTH('Input|General'!$G$9),1),0),"Ok",IF(I53="","Check","Ok")) -> Ok
C54: 2018-06-30 | F54: 113 | H54: =IF(ISBLANK(F54),IF(COUNT(G54:G$84)=0,"",IF(ISBLANK(G54),AVERAGE(H53,H55),(1+G54)*H50)),F54) -> 113 | I54: 0.02077687444 | V54: =IF(C54>EOMONTH(DATE('Input|General'!$G$12,MONTH('Input|General'!$G$9),1),0),"Ok",IF(I54="","Check","Ok")) -> Ok
C55: 2018-09-30 | F55: 113.5 | H55: =IF(ISBLANK(F55),IF(COUNT(G55:G$84)=0,"",IF(ISBLANK(G55),AVERAGE(H54,H56),(1+G55)*H51)),F55) -> 113.5 | I55: 0.01885098743 | V55: =IF(C55>EOMONTH(DATE('Input|General'!$G$12,MONTH('Input|General'!$G$9),1),0),"Ok",IF(I55="","Check","Ok")) -> Ok
C56: 2018-12-31 | F56: 114.1 | H56: =IF(ISBLANK(F56),IF(COUNT(G56:G$84)=0,"",IF(ISBLANK(G56),AVERAGE(H55,H57),(1+G56)*H52)),F56) -> 114.1 | I56: 0.0178412132 | V56: =IF(C56>EOMONTH(DATE('Input|General'!$G$12,MONTH('Input|General'!$G$9),1),0),"Ok",IF(I56="","Check","Ok")) -> Ok
C57: 2019-03-31 | F57: 114.1 | H57: =IF(ISBLANK(F57),IF(COUNT(G57:G$84)=0,"",IF(ISBLANK(G57),AVERAGE(H56,H58),(1+G57)*H53)),F57) -> 114.1 | I57: 0.01332149201 | V57: =IF(C57>EOMONTH(DATE('Input|General'!$G$12,MONTH('Input|General'!$G$9),1),0),"Ok",IF(I57="","Check","Ok")) -> Ok
C58: 2019-06-30 | F58: 114.8 | H58: =IF(ISBLANK(F58),IF(COUNT(G58:G$84)=0,"",IF(ISBLANK(G58),AVERAGE(H57,H59),(1+G58)*H54)),F58) -> 114.8 | I58: 0.01592920354 | V58: =IF(C58>EOMONTH(DATE('Input|General'!$G$12,MONTH('Input|General'!$G$9),1),0),"Ok",IF(I58="","Check","Ok")) -> Ok
C59: 2019-09-30 | F59: 115.4 | H59: =IF(ISBLANK(F59),IF(COUNT(G59:G$84)=0,"",IF(ISBLANK(G59),AVERAGE(H58,H60),(1+G59)*H55)),F59) -> 115.4 | I59: 0.01674008811 | V59: =IF(C59>EOMONTH(DATE('Input|General'!$G$12,MONTH('Input|General'!$G$9),1),0),"Ok",IF(I59="","Check","Ok")) -> Ok
C60: 2019-12-31 | F60: 116.2 | H60: =IF(ISBLANK(F60),IF(COUNT(G60:G$84)=0,"",IF(ISBLANK(G60),AVERAGE(H59,H61),(1+G60)*H56)),F60) -> 116.2 | I60: 0.01840490798 | V60: =IF(C60>EOMONTH(DATE('Input|General'!$G$12,MONTH('Input|General'!$G$9),1),0),"Ok",IF(I60="","Check","Ok")) -> Ok
C61: 2020-03-31 | F61: 116.6 | H61: =IF(ISBLANK(F61),IF(COUNT(G61:G$84)=0,"",IF(ISBLANK(G61),AVERAGE(H60,H62),(1+G61)*H57)),F61) -> 116.6 | I61: 0.02191060473 | V61: =IF(C61>EOMONTH(DATE('Input|General'!$G$12,MONTH('Input|General'!$G$9),1),0),"Ok",IF(I61="","Check","Ok")) -> Ok
C62: 2020-06-30 | F62: 114.4 | H62: =IF(ISBLANK(F62),IF(COUNT(G62:G$84)=0,"",IF(ISBLANK(G62),AVERAGE(H61,H63),(1+G62)*H58)),F62) -> 114.4 | I62: -0.003484320557 | V62: =IF(C62>EOMONTH(DATE('Input|General'!$G$12,MONTH('Input|General'!$G$9),1),0),"Ok",IF(I62="","Check","Ok")) -> Ok
C63: 2020-09-30 | F63: 116.2 | H63: =IF(ISBLANK(F63),IF(COUNT(G63:G$84)=0,"",IF(ISBLANK(G63),AVERAGE(H62,H64),(1+G63)*H59)),F63) -> 116.2 | I63: 0.006932409012 | V63: =IF(C63>EOMONTH(DATE('Input|General'!$G$12,MONTH('Input|General'!$G$9),1),0),"Ok",IF(I63="","Check","Ok")) -> Ok
C64: 2020-12-31 | F64: 117.2 | H64: =IF(ISBLANK(F64),IF(COUNT(G64:G$84)=0,"",IF(ISBLANK(G64),AVERAGE(H63,H65),(1+G64)*H60)),F64) -> 117.2 | I64: 0.008605851979 | V64: =IF(C64>EOMONTH(DATE('Input|General'!$G$12,MONTH('Input|General'!$G$9),1),0),"Ok",IF(I64="","Check","Ok")) -> Ok
C65: 2021-03-31 | F65: 117.9 | H65: =IF(ISBLANK(F65),IF(COUNT(G65:G$84)=0,"",IF(ISBLANK(G65),AVERAGE(H64,H66),(1+G65)*H61)),F65) -> 117.9 | I65: 0.01114922813 | V65: =IF(C65>EOMONTH(DATE('Input|General'!$G$12,MONTH('Input|General'!$G$9),1),0),"Ok",IF(I65="","Check","Ok")) -> Ok
C66: 2021-06-30 | F66: 118.8 | H66: =IF(ISBLANK(F66),IF(COUNT(G66:G$84)=0,"",IF(ISBLANK(G66),AVERAGE(H65,H67),(1+G66)*H62)),F66) -> 118.8 | I66: 0.03846153846 | V66: =IF(C66>EOMONTH(DATE('Input|General'!$G$12,MONTH('Input|General'!$G$9),1),0),"Ok",IF(I66="","Check","Ok")) -> Ok
C67: 2021-09-30 | F67: 119.7 | H67: =IF(ISBLANK(F67),IF(COUNT(G67:G$84)=0,"",IF(ISBLANK(G67),AVERAGE(H66,H68),(1+G67)*H63)),F67) -> 119.7 | I67: 0.03012048193 | V67: =IF(C67>EOMONTH(DATE('Input|General'!$G$12,MONTH('Input|General'!$G$9),1),0),"Ok",IF(I67="","Check","Ok")) -> Ok
C68: 2021-12-31 | F68: 121.3 | H68: =IF(ISBLANK(F68),IF(COUNT(G68:G$84)=0,"",IF(ISBLANK(G68),AVERAGE(H67,H69),(1+G68)*H64)),F68) -> 121.3 | I68: 0.03498293515 | V68: =IF(C68>EOMONTH(DATE('Input|General'!$G$12,MONTH('Input|General'!$G$9),1),0),"Ok",IF(I68="","Check","Ok")) -> Ok
C69: 2022-03-31 | F69: 123.9 | H69: =IF(ISBLANK(F69),IF(COUNT(G69:G$84)=0,"",IF(ISBLANK(G69),AVERAGE(H68,H70),(1+G69)*H65)),F69) -> 123.9 | I69: 0.05089058524 | V69: =IF(C69>EOMONTH(DATE('Input|General'!$G$12,MONTH('Input|General'!$G$9),1),0),"Ok",IF(I69="","Check","Ok")) -> Ok
C70: 2022-06-30 | F70: 126.1 | H70: =IF(ISBLANK(F70),IF(COUNT(G70:G$84)=0,"",IF(ISBLANK(G70),AVERAGE(H69,H71),(1+G70)*H66)),F70) -> 126.1 | I70: 0.06144781145 | V70: =IF(C70>EOMONTH(DATE('Input|General'!$G$12,MONTH('Input|General'!$G$9),1),0),"Ok",IF(I70="","Check","Ok")) -> Ok
C71: 2022-09-30 | F71: 128.4 | H71: =IF(ISBLANK(F71),IF(COUNT(G71:G$84)=0,"",IF(ISBLANK(G71),AVERAGE(H70,H72),(1+G71)*H67)),F71) -> 128.4 | I71: 0.07268170426 | V71: =IF(C71>EOMONTH(DATE('Input|General'!$G$12,MONTH('Input|General'!$G$9),1),0),"Ok",IF(I71="","Check","Ok")) -> Ok
C72: 2022-12-31 | G72: 0.08 | H72: =IF(ISBLANK(F72),IF(COUNT(G72:G$84)=0,"",IF(ISBLANK(G72),AVERAGE(H71,H73),(1+G72)*H68)),F72) -> 131.004 | I72: 0.08 | V72: =IF(C72>EOMONTH(DATE('Input|General'!$G$12,MONTH('Input|General'!$G$9),1),0),"Ok",IF(I72="","Check","Ok")) -> Ok
C73: 2023-03-31 | G73: 0.06967478354 | H73: =IF(ISBLANK(F73),IF(COUNT(G73:G$84)=0,"",IF(ISBLANK(G73),AVERAGE(H72,H74),(1+G73)*H69)),F73) -> 132.5327057 | I73: 0.06967478354 | V73: =IF(C73>EOMONTH(DATE('Input|General'!$G$12,MONTH('Input|General'!$G$9),1),0),"Ok",IF(I73="","Check","Ok")) -> Ok
C74: 2023-06-30 | G74: 0.06327716146 | H74: =IF(ISBLANK(F74),IF(COUNT(G74:G$84)=0,"",IF(ISBLANK(G74),AVERAGE(H73,H75),(1+G74)*H70)),F74) -> 134.0792501 | I74: 0.06327716146 | V74: =IF(C74>EOMONTH(DATE('Input|General'!$G$12,MONTH('Input|General'!$G$9),1),0),"Ok",IF(I74="","Check","Ok")) -> Ok
C75: 2023-09-30 | G75: 0.05641620953 | H75: =IF(ISBLANK(F75),IF(COUNT(G75:G$84)=0,"",IF(ISBLANK(G75),AVERAGE(H74,H76),(1+G75)*H71)),F75) -> 135.6438413 | I75: =IF(H75="","",H75/H71-1) -> 0.05641620953 | V75: =IF(C75>EOMONTH(DATE('Input|General'!$G$12,MONTH('Input|General'!$G$9),1),0),"Ok",IF(I75="","Check","Ok")) -> Ok
C76: 2023-12-31 | G76: 0.0475 | H76: =IF(ISBLANK(F76),IF(COUNT(G76:G$84)=0,"",IF(ISBLANK(G76),AVERAGE(H75,H77),(1+G76)*H72)),F76) -> 137.22669 | I76: 0.0475 | V76: =IF(C76>EOMONTH(DATE('Input|General'!$G$12,MONTH('Input|General'!$G$9),1),0),"Ok",IF(I76="","Check","Ok")) -> Ok
C77: 2024-03-31 | G77: 0.041829115 | H77: =IF(ISBLANK(F77),IF(COUNT(G77:G$84)=0,"",IF(ISBLANK(G77),AVERAGE(H76,H78),(1+G77)*H73)),F77) -> 138.0764315 | I77: 0.041829115 | V77: =IF(C77>EOMONTH(DATE('Input|General'!$G$12,MONTH('Input|General'!$G$9),1),0),"Ok",IF(I77="","Check","Ok")) -> Ok
C78: 2024-06-30 | G78: 0.03618893065 | H78: =IF(ISBLANK(F78),IF(COUNT(G78:G$84)=0,"",IF(ISBLANK(G78),AVERAGE(H77,H79),(1+G78)*H74)),F78) -> 138.9314347 | I78: 0.03618893065 | V78: =IF(C78>EOMONTH(DATE('Input|General'!$G$12,MONTH('Input|General'!$G$9),1),0),"Ok",IF(I78="","Check","Ok")) -> Ok
C79: 2024-09-30 | G79: 0.03057928075 | H79: =IF(ISBLANK(F79),IF(COUNT(G79:G$84)=0,"",IF(ISBLANK(G79),AVERAGE(H78,H80),(1+G79)*H75)),F79) -> 139.7917324 | I79: =IF(H79="","",H79/H75-1) -> 0.03057928075 | V79: =IF(C79>EOMONTH(DATE('Input|General'!$G$12,MONTH('Input|General'!$G$9),1),0),"Ok",IF(I79="","Check","Ok")) -> Ok
C80: 2024-12-31 | G80: 0.025 | H80: =IF(ISBLANK(F80),IF(COUNT(G80:G$84)=0,"",IF(ISBLANK(G80),AVERAGE(H79,H81),(1+G80)*H76)),F80) -> 140.6573573 | I80: =IF(H80="","",H80/H76-1) -> 0.025 | V80: =IF(C80>EOMONTH(DATE('Input|General'!$G$12,MONTH('Input|General'!$G$9),1),0),"Ok",IF(I80="","Check","Ok")) -> Ok
C81: 2025-03-31 | G81: 0.025 | H81: =IF(ISBLANK(F81),IF(COUNT(G81:G$84)=0,"",IF(ISBLANK(G81),AVERAGE(H80,H82),(1+G81)*H77)),F81) -> 141.5283423 | I81: 0.025 | V81: =IF(C81>EOMONTH(DATE('Input|General'!$G$12,MONTH('Input|General'!$G$9),1),0),"Ok",IF(I81="","Check","Ok")) -> Ok
C82: 2025-06-30 | G82: 0.025 | H82: =IF(ISBLANK(F82),IF(COUNT(G82:G$84)=0,"",IF(ISBLANK(G82),AVERAGE(H81,H83),(1+G82)*H78)),F82) -> 142.4047206 | I82: 0.025 | V82: =IF(C82>EOMONTH(DATE('Input|General'!$G$12,MONTH('Input|General'!$G$9),1),0),"Ok",IF(I82="","Check","Ok")) -> Ok
C83: 2025-09-30 | G83: 0.025 | H83: =IF(ISBLANK(F83),IF(COUNT(G83:G$84)=0,"",IF(ISBLANK(G83),AVERAGE(H82,H84),(1+G83)*H79)),F83) -> 143.2865257 | I83: 0.025 | V83: =IF(C83>EOMONTH(DATE('Input|General'!$G$12,MONTH('Input|General'!$G$9),1),0),"Ok",IF(I83="","Check","Ok")) -> Ok
C84: 2025-12-31 | G84: 0.025 | H84: =IF(ISBLANK(F84),IF(COUNT(G84:G$84)=0,"",IF(ISBLANK(G84),AVERAGE(H83,H85),(1+G84)*H80)),F84) -> 144.1737912 | I84: 0.025 | V84: =IF(C84>EOMONTH(DATE('Input|General'!$G$12,MONTH('Input|General'!$G$9),1),0),"Ok",IF(I84="","Check","Ok")) -> Ok
B86: End

Sheet Input|Reported opex
C1: =Index!$B$1 -> AER opex model v2.0 | J1: Back to Index | L1: Key: | M1: Input | N1: External Link | O1: Internal Link | R1: Worksheet check: | S1: =IF(COUNTA($V$29:$V$266)=COUNTIF($V$29:$V$266,"OK"),"OK","Check") -> OK | U1: Overall Check: | V1: ='Check|List'!$S$1 -> Ok
C2: =Index!$C$9 -> Input | Reported opex
J3: Year ending
D4: Source | E4: Unit | F4: Basis | J4: =DATE(PPFirstYear,MONTH('Input|General'!$G$9),1) -> 2020-06-01 | K4: =DATE(PPFirstYear+1,MONTH('Input|General'!$G$9),1) -> 2021-06-01 | L4: =DATE(PPFirstYear+2,MONTH('Input|General'!$G$9),1) -> 2022-06-01 | M4: =DATE(PPFirstYear+3,MONTH('Input|General'!$G$9),1) -> 2023-06-01 | N4: =DATE(PPFirstYear+4,MONTH('Input|General'!$G$9),1) -> 2024-06-01 | O4: =DATE(PPFirstYear+5,MONTH('Input|General'!$G$9),1) -> 2025-06-01 | P4: =DATE(PPFirstYear+6,MONTH('Input|General'!$G$9),1) -> 2026-06-01 | Q4: =DATE(PPFirstYear+7,MONTH('Input|General'!$G$9),1) -> 2027-06-01 | R4: =DATE(PPFirstYear+8,MONTH('Input|General'!$G$9),1) -> 2028-06-01 | S4: =DATE(PPFirstYear+9,MONTH('Input|General'!$G$9),1) -> 2029-06-01 | T4: =DATE(PPFirstYear+10,MONTH('Input|General'!$G$9),1) -> 2030-06-01
B8: Input | Opex allowances
C10: Cost category | D10: Source | E10: Unit | F10: Basis | J10: =IF(YEAR(J$4)<=PPLastYear,J$4,"") -> 2020-06-01 | K10: 2021-06-01 | L10: 2022-06-01 | M10: 2023-06-01 | N10: 2024-06-01 | U10: Notes
C13: Total opex | D13: AER | E13: =units -> $millions | F13: =DATE(PPFirstYear-1,MONTH(month),1) -> 2019-06-01 | J13: 287.4045864 | K13: 296.0164494 | L13: 285.5932948 | M13: 291.6359426 | N13: 297.5318748 | U13: AER PTRM for the current control period.
C15: Total opex | D15: =D13 -> AER | E15: =E13 -> $millions | F15: =$F$13 -> 2019-06-01 | J15: =J13 -> 287.4045864 | K15: =K13 -> 296.0164494 | L15: 285.5932948 | M15: 291.6359426 | N15: 297.5318748 | O15: 0 | P15: 0 | Q15: 0 | R15: 0 | S15: 0
C17: Allowances related to category specific forecasts
C19: Debt raising costs | D19: AER | E19: =units -> $millions | F19: =$F$13 -> 2019-06-01 | J19: 3.204993315 | K19: 3.259920914 | L19: 3.291343506 | M19: 3.32002473 | N19: 3.354914192 | U19: These inputs should be entered as positive values.
D20: AER | E20: $millions | F20: =$F$13 -> 2019-06-01
D21: AER | E21: $millions | F21: 2019-06-01
D22: AER | E22: $millions | F22: 2019-06-01
D23: AER | E23: $millions | F23: 2019-06-01
D24: AER | E24: $millions | F24: 2019-06-01
D25: AER | E25: $millions | F25: 2019-06-01
D26: AER | E26: $millions | F26: 2019-06-01
D27: AER | E27: $millions | F27: 2019-06-01
C29: Total opex, categories forecast specifically | D29: Calculated | E29: =units -> $millions | F29: 2019-06-01 | J29: =SUM(J19:J27) -> 3.204993315 | K29: =SUM(K19:K27) -> 3.259920914 | L29: 3.291343506 | M29: 3.32002473 | N29: 3.354914192 | O29: 0 | P29: 0 | Q29: 0 | R29: 0 | S29: 0 | V29: =IF(COUNTIF(J19:S27,"<0")>0,"Check","Ok") -> Ok
B31: Input | Reported opex
J33: Actual | K33: Actual | L33: Estimate | M33: Estimate | N33: Estimate
C34: Cost category | D34: Source | E34: Unit | F34: Basis | J34: =IF(YEAR(J$4)<=PPLastYear,J$4,"") -> 2020-06-01 | K34: 2021-06-01 | L34: 2022-06-01 | M34: 2023-06-01 | N34: 2024-06-01 | U34: Notes
C37: Total opex | D37: RIN | E37: =units -> $millions | F37: nominal | J37: 226.7727948 | K37: 244.8433804 | L37: 245.425105 | M37: 243.79898 | U37: Annual RIN for each year and/or reset RIN.
C39: Categories of opex to be excluded from forecast opex (excluding category specific forecasts)
C41: Movement in provisions | D41: RIN | E41: =units -> $millions | F41: nominal | J41: 1.508277959 | K41: -6.618066297 | L41: -7.478106 | M41: 0 | U41: These inputs should be entered as reported.
C42: DMIA | D42: RIN | E42: =units -> $millions | F42: nominal | J42: 0.2099 | K42: 0.0278 | L42: 0.06666 | M42: 0
C43: Add Lease costs | D43: RIN | E43: =units -> $millions | F43: nominal | J43: -6.2542 | K43: -4.5712 | L43: 0 | M43: -5.647220995
D44: RIN | E44: =units -> $millions | F44: nominal
D45: RIN | E45: =units -> $millions | F45: nominal
C47: Total opex to be trended | D47: Calculated | E47: =units -> $millions | F47: nominal | J47: =J37-SUM(J41:J45) -> 231.3088168 | K47: =K37-SUM(K41:K45) -> 256.0048467 | L47: 252.836551 | M47: 249.446201 | N47: 0 | O47: 0 | P47: 0 | Q47: 0 | R47: 0 | S47: 0
C49: Expenditure related to category specific forecasts
C51: Debt raising costs | D51: RIN | E51: =units -> $millions | F51: nominal | J51: 0 | K51: 0 | L51: 0 | M51: 0 | N51: 0 | U51: These inputs should be entered as positive values.
D52: RIN | E52: =units -> $millions | F52: nominal
D53: RIN | E53: =units -> $millions | F53: nominal
D54: RIN | E54: =units -> $millions | F54: nominal
D55: RIN | E55: =units -> $millions | F55: nominal
C57: Total opex, categories forecast specifically | D57: Calculated | E57: =units -> $millions | F57: nominal | J57: =SUM(J51:J55) -> 0 | K57: =SUM(K51:K55) -> 0 | L57: 0 | M57: 0 | N57: 0 | O57: 0 | P57: 0 | Q57: 0 | R57: 0 | S57: 0 | V57: =IF(COUNTIF(J51:S55,"<0")>0,"Check","Ok") -> Ok
B59: Input | Adjustments
C61: Adjustment | D61: Source | E61: Unit | F61: Basis | J61: =IF(YEAR(J$4)=PPLastYear,J$4,"") ->  | N61: 2024-06-01
C63: Remove Lease costs | D63: External | E63: =units -> $millions | F63: =DATE(PPLastYear,MONTH(month),1) -> 2024-06-01 | N63: -5.851587884 | U63: Adjustments can be postive or negative.
C64: Add SaaS | D64: External | E64: =units -> $millions | F64: =DATE(PPLastYear,MONTH(month),1) -> 2024-06-01 | N64: 0.9180633926
C65: Adjustment 3 | D65: External | E65: =units -> $millions | F65: =DATE(PPLastYear,MONTH(month),1) -> 2024-06-01
C66: Adjustment 4 | D66: External | E66: =units -> $millions | F66: =DATE(PPLastYear,MONTH(month),1) -> 2024-06-01
C67: Adjustment 5 | D67: External | E67: =units -> $millions | F67: =DATE(PPLastYear,MONTH(month),1) -> 2024-06-01
C69: Non-recurrent efficiency gain in the base year | D69: External | E69: =units -> $millions | F69: =DATE(PPLastYear,MONTH(month),1) -> 2024-06-01
C71: Efficiency adjustment | D71: External | E71: Per cent
B73: End

Sheet Input|Rate of change
B1: =Index!$B$1 -> AER opex model v2.0 | K1: Back to Index | M1: Key: | N1: Input | O1: External Link | P1: Internal Link | S1: Worksheet check: | T1: =IF(COUNTIF(X5:X118,"Check")=0,"Ok","Check") -> Ok | W1: Overall Check: | X1: ='Check|List'!$S$1 -> Ok
B2: =Index!$C$10 -> Input | Rate of change
J3: Year ending
D4: Source | E4: Unit | F4: Basis | J4: =DATE(PPFirstYear-1,MONTH('Input|General'!$G$9),1) -> 2019-06-01 | K4: =DATE(PPFirstYear,MONTH('Input|General'!$G$9),1) -> 2020-06-01 | L4: =DATE(PPFirstYear+1,MONTH('Input|General'!$G$9),1) -> 2021-06-01 | M4: =DATE(PPFirstYear+2,MONTH('Input|General'!$G$9),1) -> 2022-06-01 | N4: =DATE(PPFirstYear+3,MONTH('Input|General'!$G$9),1) -> 2023-06-01 | O4: =DATE(PPFirstYear+4,MONTH('Input|General'!$G$9),1) -> 2024-06-01 | P4: =DATE(PPFirstYear+5,MONTH('Input|General'!$G$9),1) -> 2025-06-01 | Q4: =DATE(PPFirstYear+6,MONTH('Input|General'!$G$9),1) -> 2026-06-01 | R4: =DATE(PPFirstYear+7,MONTH('Input|General'!$G$9),1) -> 2027-06-01 | S4: =DATE(PPFirstYear+8,MONTH('Input|General'!$G$9),1) -> 2028-06-01 | T4: =DATE(PPFirstYear+9,MONTH('Input|General'!$G$9),1) -> 2029-06-01 | U4: =DATE(PPFirstYear+10,MONTH('Input|General'!$G$9),1) -> 2030-06-01
B8: Input | Inflation
C10: Inflation | J10: =IF(YEAR(J$4)<=PPLastYear,J$4,"") -> 2019-06-01 | K10: 2020-06-01 | L10: 2021-06-01 | M10: 2022-06-01 | N10: 2023-06-01 | O10: 2024-06-01
C12: Inflation | D12: calculated | E12: =percent -> Per cent | J12: =IF(J10=J4,LOOKUP(EOMONTH(J4,0),'Input|Inflation'!$C$9:$C$84,'Input|Inflation'!$I$9:$I$84),"") -> 0.01592920354 | K12: =IF(K10=K4,LOOKUP(EOMONTH(K4,0),'Input|Inflation'!$C$9:$C$84,'Input|Inflation'!$I$9:$I$84),"") -> -0.003484320557 | L12: =IF(L10=L4,LOOKUP(EOMONTH(L4,0),'Input|Inflation'!$C$9:$C$84,'Input|Inflation'!$I$9:$I$84),"") -> 0.03846153846 | M12: =IF(M10=M4,LOOKUP(EOMONTH(M4,0),'Input|Inflation'!$C$9:$C$84,'Input|Inflation'!$I$9:$I$84),"") -> 0.06144781145 | N12: =IF(N10=N4,LOOKUP(EOMONTH(N4,0),'Input|Inflation'!$C$9:$C$84,'Input|Inflation'!$I$9:$I$84),"") -> 0.06327716146 | O12: =IF(O10=O4,LOOKUP(EOMONTH(O4,0),'Input|Inflation'!$C$9:$C$84,'Input|Inflation'!$I$9:$I$84),"") -> 0.03618893065 | P12: =IF(P10=P4,LOOKUP(EOMONTH(P4,0),'Input|Inflation'!$C$9:$C$84,'Input|Inflation'!$I$9:$I$84),"") ->  | Q12: =IF(Q10=Q4,LOOKUP(EOMONTH(Q4,0),'Input|Inflation'!$C$9:$C$84,'Input|Inflation'!$I$9:$I$84),"") ->  | R12: =IF(R10=R4,LOOKUP(EOMONTH(R4,0),'Input|Inflation'!$C$9:$C$84,'Input|Inflation'!$I$9:$I$84),"") ->  | S12: =IF(S10=S4,LOOKUP(EOMONTH(S4,0),'Input|Inflation'!$C$9:$C$84,'Input|Inflation'!$I$9:$I$84),"") ->  | T12: =IF(T10=T4,LOOKUP(EOMONTH(T4,0),'Input|Inflation'!$C$9:$C$84,'Input|Inflation'!$I$9:$I$84),"") -> 
C14: CPI indexes (real to real) | J14: =IF(YEAR(J$4)<=PPLastYear,J$4,"") -> 2019-06-01 | K14: 2020-06-01 | L14: 2021-06-01 | M14: 2022-06-01 | N14: 2023-06-01 | O14: 2024-06-01
C16: =TRANSPOSE(J10:P10) -> 2019-06-01 | D16: =IF(ISNONTEXT($C16),"calculated","") -> calculated | E16: =IF(ISNONTEXT($C16),"index","") -> index | J16: =IF(AND($C16>J$14,ISNONTEXT($C16)),K16/(1+K$12),IF(AND($C16=J$14,J$14=J$4),1,IF(AND($C16<J$14,J$14=J$4),I16*(1+J$12),0))) -> 1 | K16: 0.9965156794 | L16: 1.034843206 | M16: 1.098432056 | N16: 1.167937718 | O16: =IF(AND($C16>O$14,ISNONTEXT($C16)),P16/(1+O$12),IF(AND($C16=O$14,O$14=O$4),1,IF(AND($C16<O$14,O$14=O$4),N16*(1+O$12),0))) -> 1.210204135 | P16: 0
C17: 2020-06-01 | D17: calculated | E17: =IF(ISNONTEXT($C17),"index","") -> index | J17: =IF(AND($C17>J$14,ISNONTEXT($C17)),K17/(1+K$12),IF(AND($C17=J$14,J$14=J$4),1,IF(AND($C17<J$14,J$14=J$4),I17*(1+J$12),0))) -> 1.003496503 | K17: 1 | L17: 1.038461538 | M17: 1.102272727 | N17: 1.172021417 | O17: =IF(AND($C17>O$14,ISNONTEXT($C17)),P17/(1+O$12),IF(AND($C17=O$14,O$14=O$4),1,IF(AND($C17<O$14,O$14=O$4),N17*(1+O$12),0))) -> 1.214435618 | P17: 0
C18: 2021-06-01 | D18: calculated | E18: index | J18: =IF(AND($C18>J$14,ISNONTEXT($C18)),K18/(1+K$12),IF(AND($C18=J$14,J$14=J$4),1,IF(AND($C18<J$14,J$14=J$4),I18*(1+J$12),0))) -> 0.9663299663 | K18: 0.962962963 | L18: 1 | M18: 1.061447811 | N18: 1.128613216 | O18: =IF(AND($C18>O$14,ISNONTEXT($C18)),P18/(1+O$12),IF(AND($C18=O$14,O$14=O$4),1,IF(AND($C18<O$14,O$14=O$4),N18*(1+O$12),0))) -> 1.169456521 | P18: 0
C19: 2022-06-01 | D19: calculated | E19: index | J19: =IF(AND($C19>J$14,ISNONTEXT($C19)),K19/(1+K$12),IF(AND($C19=J$14,J$14=J$4),1,IF(AND($C19<J$14,J$14=J$4),I19*(1+J$12),0))) -> 0.9103885805 | K19: 0.9072164948 | L19: 0.942109437 | M19: 1 | N19: 1.063277161 | O19: =IF(AND($C19>O$14,ISNONTEXT($C19)),P19/(1+O$12),IF(AND($C19=O$14,O$14=O$4),1,IF(AND($C19<O$14,O$14=O$4),N19*(1+O$12),0))) -> 1.101756025 | P19: 0
C20: 2023-06-01 | D20: calculated | E20: index | J20: =IF(AND($C20>J$14,ISNONTEXT($C20)),K20/(1+K$12),IF(AND($C20=J$14,J$14=J$4),1,IF(AND($C20<J$14,J$14=J$4),I20*(1+J$12),0))) -> 0.8562100396 | K20: =IF(AND($C20>K$14,ISNONTEXT($C20)),L20/(1+L$12),IF(AND($C20=K$14,K$14=K$4),1,IF(AND($C20<K$14,K$14=K$4),J20*(1+K$12),0))) -> 0.8532267293 | L20: 0.886043142 | M20: 0.9404885539 | N20: 1 | O20: =IF(AND($C20>O$14,ISNONTEXT($C20)),P20/(1+O$12),IF(AND($C20=O$14,O$14=O$4),1,IF(AND($C20<O$14,O$14=O$4),N20*(1+O$12),0))) -> 1.036188931 | P20: 0
C21: 2024-06-01 | D21: =IF(ISNONTEXT($C21),"calculated","") -> calculated | E21: index | J21: =IF(AND($C21>J$14,ISNONTEXT($C21)),K21/(1+K$12),IF(AND($C21=J$14,J$14=J$4),1,IF(AND($C21<J$14,J$14=J$4),I21*(1+J$12),0))) -> 0.8263068773 | K21: =IF(AND($C21>K$14,ISNONTEXT($C21)),L21/(1+L$12),IF(AND($C21=K$14,K$14=K$4),1,IF(AND($C21<K$14,K$14=K$4),J21*(1+K$12),0))) -> 0.8234277593 | L21: =IF(AND($C21>L$14,ISNONTEXT($C21)),M21/(1+M$12),IF(AND($C21=L$14,L$14=L$4),1,IF(AND($C21<L$14,L$14=L$4),K21*(1+L$12),0))) -> 0.8550980577 | M21: =IF(AND($C21>M$14,ISNONTEXT($C21)),N21/(1+N$12),IF(AND($C21=M$14,M$14=M$4),1,IF(AND($C21<M$14,M$14=M$4),L21*(1+M$12),0))) -> 0.9076419619 | N21: =IF(AND($C21>N$14,ISNONTEXT($C21)),O21/(1+O$12),IF(AND($C21=N$14,N$14=N$4),1,IF(AND($C21<N$14,N$14=N$4),M21*(1+N$12),0))) -> 0.9650749689 | O21: =IF(AND($C21>O$14,ISNONTEXT($C21)),P21/(1+O$12),IF(AND($C21=O$14,O$14=O$4),1,IF(AND($C21<O$14,O$14=O$4),N21*(1+O$12),0))) -> 1 | P21: 0
D22: =IF(ISNONTEXT($C22),"calculated","") ->  | J22: =IF(AND($C22>J$14,ISNONTEXT($C22)),K22/(1+K$12),IF(AND($C22=J$14,J$14=J$4),1,IF(AND($C22<J$14,J$14=J$4),I22*(1+J$12),0))) -> 0 | K22: 0 | L22: 0 | M22: 0 | N22: 0 | O22: =IF(AND($C22>O$14,ISNONTEXT($C22)),P22/(1+P$12),IF(AND($C22=O$14,O$14=O$4),1,IF(AND($C22<O$14,O$14=O$4),N22*(1+O$12),0))) -> 0 | P22: 0
C24: CPI indexes (nominal to real) | J24: =IF(YEAR(J$4)<=PPLastYear,J$4,"") -> 2019-06-01 | K24: 2020-06-01 | L24: 2021-06-01 | M24: 2022-06-01 | N24: 2023-06-01 | O24: 2024-06-01
C26: =TRANSPOSE(J10:P10) -> 2019-06-01 | D26: =IF(ISNONTEXT($C26),"calculated","") -> calculated | E26: =IF(ISNONTEXT($C26),"index","") -> index | J26: =IF(AND(J$24=J$4,ISNONTEXT($C26)),1/J16*(1+J$12)^0.5,0) -> 1.007933134 | K26: =IF(AND(K$24=K$4,ISNONTEXT($C26)),1/K16*(1+K$12)^0.5,0) -> 1.001746726 | L26: 0.9847379055 | M26: 0.9379423044 | N26: 0.8828838216 | O26: 0.8411255817 | P26: 0 | Q26: 0 | R26: 0 | S26: 0 | T26: 0
C27: 2020-06-01 | D27: calculated | E27: =IF(ISNONTEXT($C27),"index","") -> index | J27: =IF(AND(J$24=J$4,ISNONTEXT($C27)),1/J17*(1+J$12)^0.5,0) -> 1.004421172 | K27: 0.9982563195 | L27: 0.9813067629 | M27: 0.9346742127 | N27: 0.8798075714 | O27: 0.8381948305 | P27: 0 | Q27: 0 | R27: 0 | S27: 0 | T27: 0
C28: 2021-06-01 | D28: calculated | E28: index | J28: =IF(AND(J$24=J$4,ISNONTEXT($C28)),1/J18*(1+J$12)^0.5,0) -> 1.043052756 | K28: 1.036650793 | L28: 1.019049331 | M28: 0.9706232209 | N28: 0.9136463241 | O28: 0.8704330932 | P28: 0 | Q28: 0 | R28: 0 | S28: 0 | T28: 0
C29: 2022-06-01 | D29: calculated | E29: index | J29: =IF(AND(J$24=J$4,ISNONTEXT($C29)),1/J19*(1+J$12)^0.5,0) -> 1.107146065 | K29: 1.100350716 | L29: 1.081667682 | M29: 1.030265894 | N29: 0.9697878912 | O29: 0.9239193018 | P29: 0 | Q29: 0 | R29: 0 | S29: 0 | T29: 0
C30: 2023-06-01 | D30: calculated | E30: index | J30: =IF(AND(J$24=J$4,ISNONTEXT($C30)),1/J20*(1+J$12)^0.5,0) -> 1.177203125 | K30: 1.169977786 | L30: 1.150112542 | M30: 1.095458195 | N30: 1.031153316 | O30: 0.9823822926 | P30: 0 | Q30: 0 | R30: 0 | S30: 0 | T30: 0
C31: 2024-06-01 | D31: calculated | E31: index | J31: =IF(AND(J$24=J$4,ISNONTEXT($C31)),1/J21*(1+J$12)^0.5,0) -> 1.219804848 | K31: 1.212318031 | L31: 1.191733885 | M31: 1.135101656 | N31: 1.068469652 | O31: 1.017933657 | P31: 0 | Q31: 0 | R31: 0 | S31: 0 | T31: 0
J32: 0 | K32: 0 | L32: 0 | M32: 0 | N32: 0 | O32: 0 | P32: 0 | Q32: 0 | R32: 0 | S32: 0 | T32: 0
B34: Input | Forecast price change
C36: Forecast price change | D36: Source | E36: Unit | J36: =IF(YEAR(J$4)>=FPFirstYear,IF(YEAR(J$4)<=FPLastYear,J$4,""),"") ->  | P36: 2025-06-01 | Q36: 2026-06-01 | R36: 2027-06-01 | S36: 2028-06-01 | T36: 2029-06-01
C38: WPI - AER forecast | D38: external | E38: =percent -> Per cent | P38: 0.01097419522 | Q38: 0.008507981891 | R38: 0.004677609908 | S38: 0.004830775185 | T38: 0.004830775185
C39: WPI - BIS Oxford forecast | D39: external | E39: Per cent | P39: 0.01208236447 | Q39: 0.0114073459 | R39: 0.008590932198 | S39: 0.005201082918 | T39: 0.009291758121
C40: WPI - average | D40: external | E40: Per cent | P40: 0.01152827985 | Q40: 0.009957663895 | R40: 0.006634271053 | S40: 0.005015929052 | T40: 0.007061266653
C41: Superannuation guarantee increases | D41: external | E41: Per cent | P41: 0.005 | Q41: 0.005 | R41: 0 | S41: 0 | T41: 0
C42: WPI - average + super guarantee increases | D42: external | E42: Per cent | P42: 0.01652827985 | Q42: 0.01495766389 | R42: 0.006634271053 | S42: 0.005015929052 | T42: 0.007061266653
D43: external | E43: Per cent
D44: external | E44: Per cent
C45: CPI | D45: external | E45: Per cent | P45: 0 | Q45: 0 | R45: 0 | S45: 0 | T45: 0
C47: Check | D47: calculated | E47: Ok/Check | F47: n/a | J47: =IF(J36=J4,IF(COUNTA($C38:$C45)=COUNT(J38:J45),"Ok","Check"),"") ->  | P47: Ok | Q47: Ok | R47: Ok | S47: Ok | T47: =IF(T36=T4,IF(COUNTA($C38:$C45)=COUNT(T38:T45),"Ok","Check"),"") -> Ok | U47: =IF(U36=U4,IF(COUNTA($C38:$C45)=COUNT(U38:U45),"Ok","Check"),"") ->  | X47: =IF(COUNTIF(J47:U47,"Check")=0,"Ok","Check") -> Ok
C49: Weights | D49: Source | E49: Unit | J49: =IF(YEAR(J$4)>=FPFirstYear,IF(YEAR(J$4)<=FPLastYear,J$4,""),"") ->  | P49: 2025-06-01 | Q49: 2026-06-01 | R49: 2027-06-01 | S49: 2028-06-01 | T49: 2029-06-01
C51: =C38 -> WPI - AER forecast | D51: external | E51: =percent -> Per cent
C52: WPI - BIS Oxford forecast | D52: external | E52: Per cent
C53: WPI - average | D53: external | E53: Per cent
C54: Superannuation guarantee increases | D54: external | E54: Per cent
C55: WPI - average + super guarantee increases | D55: external | E55: Per cent | P55: 0.592 | Q55: 0.592 | R55: 0.592 | S55: 0.592 | T55: 0.592
C56: 0 | D56: external | E56: Per cent
C57: 0 | D57: external | E57: Per cent
C58: CPI | D58: external | E58: Per cent | P58: 0.408 | Q58: 0.408 | R58: 0.408 | S58: 0.408 | T58: 0.408
C60: Check | D60: calculated | E60: Ok/Check | F60: n/a | J60: =IF(J49=J$4,IF(SUM(J51:J58)=1,"Ok","Check"),"") ->  | P60: Ok | Q60: Ok | R60: Ok | S60: Ok | T60: =IF(T49=T$4,IF(SUM(T51:T58)=1,"Ok","Check"),"") -> Ok | U60: =IF(U49=U$4,IF(SUM(U51:U58)=1,"Ok","Check"),"") ->  | X60: =IF(COUNTIF(J60:U60,"Check")=0,"Ok","Check") -> Ok
B62: Input | Forecast output growth
C64: Output measure | D64: Source | E64: Unit | F64: Basis | J64: =IF(YEAR(J$4)>=PPLastYear,IF(YEAR(J$4)<=FPLastYear,J$4,""),"") ->  | O64: 2024-06-01 | P64: 2025-06-01 | Q64: 2026-06-01 | R64: 2027-06-01 | S64: 2028-06-01 | T64: 2029-06-01
C66: Customer numbers (#) | D66: external | E66: number | F66: n/a | O66: 1111524.833 | P66: 1135889.24 | Q66: 1159086.755 | R66: 1182139.374 | S66: 1206022.834 | T66: 1230499.104
C67: Circuit Length (km) | D67: external | E67: number | F67: n/a | O67: 40725.59238 | P67: 41288.86251 | Q67: 41859.92315 | R67: 42438.88205 | S67: 43025.84845 | T67: 43620.93311
C68: Ratcheted maximum demand | D68: external | E68: number | F68: n/a | O68: 3847.810898 | P68: 3915.982946 | Q68: 3924.025257 | R68: 3961.905737 | S68: 4011.099459 | T68: 4052.097528
D69: external | E69: number | F69: n/a
D70: external | E70: number | F70: n/a
D71: external | E71: number | F71: n/a
C73: Check | D73: calculated | E73: Ok/Check | F73: n/a | J73: =IF(J64=J$4,IF(COUNTA($C66:$C71)=COUNT(J66:J71),"Ok","Check"),"") ->  | O73: Ok | P73: Ok | Q73: Ok | R73: Ok | S73: Ok | T73: =IF(T64=T$4,IF(COUNTA($C66:$C71)=COUNT(T66:T71),"Ok","Check"),"") -> Ok | U73: =IF(U64=U$4,IF(COUNTA($C66:$C71)=COUNT(U66:U71),"Ok","Check"),"") ->  | X73: =IF(COUNTIF(J73:U73,"Check")=0,"Ok","Check") -> Ok
C75: Growth rate | D75: Source | E75: Unit | F75: Basis | J75: =IF(YEAR(J$4)>=FPFirstYear,IF(YEAR(J$4)<=FPLastYear,J$4,""),"") ->  | P75: 2025-06-01 | Q75: 2026-06-01 | R75: 2027-06-01 | S75: 2028-06-01 | T75: 2029-06-01 | V75: =IF(RIGHT(V$4,2)>=RIGHT('Input|General'!$G$13,2),IF(RIGHT(V$4,2)<='Input|General'!$G$14,'Input|Reported opex'!U$4,""),"") -> 
C77: =C66 -> Customer numbers (#) | D77: calculated | E77: number | F77: n/a | J77: =IF(ISBLANK(I66),"",IF(ISBLANK(J66),"",LN(J66)-LN(I66))) ->  | N77: =IF(ISBLANK(M66),"",IF(ISBLANK(N66),"",LN(N66)-LN(M66))) ->  | O77: =IF(ISBLANK(N66),"",IF(ISBLANK(O66),"",LN(O66)-LN(N66))) ->  | P77: 0.02168301935 | Q77: 0.02021659912 | R77: 0.01969341106 | S77: 0.02000220551 | T77: 0.02009183097
C78: =C67 -> Circuit Length (km) | D78: calculated | E78: number | F78: n/a | J78: =IF(ISBLANK(I67),"",IF(ISBLANK(J67),"",LN(J67)-LN(I67))) ->  | P78: 0.0137360904 | Q78: 0.0137360904 | R78: 0.0137360904 | S78: 0.0137360904 | T78: 0.0137360904
C79: Ratcheted maximum demand | D79: calculated | E79: number | F79: n/a | J79: =IF(ISBLANK(I68),"",IF(ISBLANK(J68),"",LN(J68)-LN(I68))) ->  | P79: 0.01756198122 | Q79: 0.002051608372 | R79: 0.009607178141 | S79: 0.01234022683 | T79: 0.01016927213
C80: 0 | D80: calculated | E80: number | F80: n/a | J80: =IF(ISBLANK(I69),"",IF(ISBLANK(J69),"",LN(J69)-LN(I69))) -> 
C81: 0 | D81: calculated | E81: number | F81: n/a | J81: =IF(ISBLANK(I70),"",IF(ISBLANK(J70),"",LN(J70)-LN(I70))) -> 
C82: 0 | D82: calculated | E82: number | F82: n/a | J82: =IF(ISBLANK(I71),"",IF(ISBLANK(J71),"",LN(J71)-LN(I71))) -> 
C84: Output elasticities | D84: Source | E84: Unit | F84: Basis | J84: SFA CD | K84: LSE CD | L84: LSE TLG | M84: SFA TLG
C86: =C66 -> Customer numbers (#) | D86: external | E86: number | F86: n/a | J86: 0.42 | K86: 0.594 | L86: 0.432 | M86: 0.464
C87: =C67 -> Circuit Length (km) | D87: external | E87: number | F87: n/a | J87: 0.105 | K87: 0.153 | L87: 0.165 | M87: 0.082
C88: Ratcheted maximum demand | D88: external | E88: number | F88: n/a | J88: 0.449 | K88: 0.228 | L88: 0.36 | M88: 0.428
C89: 0 | D89: external | E89: number | F89: n/a
C90: 0 | D90: external | E90: number | F90: n/a
C91: 0 | D91: external | E91: number | F91: n/a
C93: Output weights | D93: Source | E93: Unit | F93: Basis | J93: =J84 -> SFA CD | K93: =K84 -> LSE CD | L93: =L84 -> LSE TLG | M93: =M84 -> SFA TLG
C95: =C66 -> Customer numbers (#) | D95: calculated | E95: =percent -> Per cent | F95: n/a | J95: =J86/SUM(J$86:J$91) -> 0.431211499 | K95: 0.6092307692 | L95: 0.4514106583 | M95: 0.476386037
C96: Circuit Length (km) | D96: calculated | E96: Per cent | F96: n/a | J96: 0.1078028747 | K96: 0.1569230769 | L96: 0.1724137931 | M96: 0.0841889117
C97: Ratcheted maximum demand | D97: calculated | E97: Per cent | F97: n/a | J97: 0.4609856263 | K97: 0.2338461538 | L97: 0.3761755486 | M97: 0.4394250513
C98: 0 | D98: calculated | E98: Per cent | F98: n/a | J98: 0 | K98: 0 | L98: 0 | M98: 0
C99: 0 | D99: calculated | E99: Per cent | F99: n/a | J99: 0 | K99: 0 | L99: 0 | M99: 0
C100: 0 | D100: calculated | E100: Per cent | F100: n/a | J100: 0 | K100: 0 | L100: 0 | M100: 0
J101: –
C102: Check | D102: calculated | E102: Ok/Check | F102: n/a | J102: =IF(ISBLANK(J93),IF(ISBLANK(J95:J100),"Ok","Check"),IF(SUM(J95:J100)=1,"Ok","Check")) -> Ok | K102: =IF(ISBLANK(K93),IF(ISBLANK(K95:K100),"Ok","Check"),IF(SUM(K95:K100)=1,"Ok","Check")) -> Ok | L102: =IF(ISBLANK(L93),IF(ISBLANK(L95:L100),"Ok","Check"),IF(SUM(L95:L100)=1,"Ok","Check")) -> Ok | M102: =IF(ISBLANK(M93),IF(ISBLANK(M95:M100),"Ok","Check"),IF(SUM(M95:M100)=1,"Ok","Check")) -> Ok | N102: =IF(ISBLANK(N95:N100),"",IF(SUM(N95:N100)=1,"Ok","Check")) ->  | O102: =IF(ISBLANK(O95:O100),"",IF(SUM(O95:O100)=1,"Ok","Check")) ->  | P102: =IF(ISBLANK(P95:P100),"",IF(SUM(P95:P100)=1,"Ok","Check")) ->  | Q102: =IF(ISBLANK(Q95:Q100),"",IF(SUM(Q95:Q100)=1,"Ok","Check")) ->  | R102: =IF(ISBLANK(R95:R100),"",IF(SUM(R95:R100)=1,"Ok","Check")) ->  | S102: =IF(ISBLANK(S95:S100),"",IF(SUM(S95:S100)=1,"Ok","Check")) ->  | T102: =IF(ISBLANK(T95:T100),"",IF(SUM(T95:T100)=1,"Ok","Check")) ->  | X102: =IF(COUNTIF(K102:T102,"Check")=0,"Ok","Check") -> Ok
C104: Forecast output growth | D104: Source | E104: Unit | F104: Basis | J104: =IF(YEAR(J$4)>=FPFirstYear,IF(YEAR(J$4)<=FPLastYear,J$4,""),"") ->  | P104: 2025-06-01 | Q104: 2026-06-01 | R104: 2027-06-01 | S104: 2028-06-01 | T104: 2029-06-01
C106: =TRANSPOSE(J93:M93) -> SFA CD | D106: calculated | E106: number | F106: n/a | J106: =IF(J$104=J$4,SUMPRODUCT(J$77:J$82,$J$95:$J$100),"") ->  | P106: 0.01892657822 | Q106: 0.01114418201 | R106: 0.01440158637 | S106: 0.01579463825 | T106: 0.01483250686
C107: LSE CD | D107: calculated | E107: number | F107: n/a | J107: =IF(J$104=J$4,SUMPRODUCT(J$77:J$82,$K$95:$K$100),"") ->  | P107: 0.01947227389 | Q107: 0.01495184453 | R107: 0.0163999432 | S107: 0.0172271832 | T107: 0.01677411638
C108: LSE TLG | D108: calculated | E108: number | F108: n/a | J108: =IF(J$104=J$4,SUMPRODUCT(J$77:J$82,$L$95:$L$100),"") ->  | P108: 0.01876262541 | Q108: 0.01226604467 | R108: 0.01487209261 | S108: 0.0160395918 | T108: 0.01526338961
C109: SFA TLG | D109: calculated | E109: number | F109: n/a | J109: =IF(J$104=J$4,SUMPRODUCT(J$77:J$82,$M$95:$M$100),"") ->  | P109: 0.01920308866 | Q109: 0.01168886015 | R109: 0.0147597273 | S109: 0.01610780272 | T109: 0.01519652716
B111: Input | Forecast productivity
C113: Partial factor productivity | D113: Source | E113: Unit | F113: Basis | J113: =IF(YEAR(J$4)>=FPFirstYear,IF(YEAR(J$4)<=FPLastYear,J$4,""),"") ->  | P113: 2025-06-01 | Q113: 2026-06-01 | R113: 2027-06-01 | S113: 2028-06-01 | T113: 2029-06-01
C115: Partial factor productivity | D115: external | E115: =percent -> Per cent | F115: n/a | P115: 0.005 | Q115: 0.005 | R115: 0.005 | S115: 0.005 | T115: 0.005
C117: Check | D117: calculated | E117: Ok/Check | F117: n/a | J117: =IF(J113=J$4,IF(ISBLANK(J115),"Check","Ok"),"") ->  | P117: Ok | Q117: Ok | R117: Ok | S117: Ok | T117: =IF(T113=T$4,IF(ISBLANK(T115),"Check","Ok"),"") -> Ok | U117: =IF(U113=U$4,IF(ISBLANK(U115),"Check","Ok"),"") ->  | X117: =IF(COUNTIF(J117:T117,"Check")=0,"Ok","Check") -> Ok
B119: End

Sheet Input|Step changes
B1: =Index!$B$1 -> AER opex model v2.0 | J1: Back to Index | L1: Key: | M1: Input | N1: External Link | O1: Internal Link | R1: Worksheet check: | S1: =IF(COUNTA($W$8:$W$237)=COUNTIF($W$8:$W$237,"OK"),"OK","Check") -> OK | U1: Overall Check: | V1: ='Check|List'!$S$1 -> Ok
B2: =Index!$C$11 -> Input | Step changes
J3: Year ending
D4: Source | E4: Unit | F4: Basis | J4: =DATE(PPFirstYear,MONTH('Input|General'!$G$9),1) -> 2020-06-01 | K4: =DATE(PPFirstYear+1,MONTH('Input|General'!$G$9),1) -> 2021-06-01 | L4: =DATE(PPFirstYear+2,MONTH('Input|General'!$G$9),1) -> 2022-06-01 | M4: =DATE(PPFirstYear+3,MONTH('Input|General'!$G$9),1) -> 2023-06-01 | N4: =DATE(PPFirstYear+4,MONTH('Input|General'!$G$9),1) -> 2024-06-01 | O4: =DATE(PPFirstYear+5,MONTH('Input|General'!$G$9),1) -> 2025-06-01 | P4: =DATE(PPFirstYear+6,MONTH('Input|General'!$G$9),1) -> 2026-06-01 | Q4: =DATE(PPFirstYear+7,MONTH('Input|General'!$G$9),1) -> 2027-06-01 | R4: =DATE(PPFirstYear+8,MONTH('Input|General'!$G$9),1) -> 2028-06-01 | S4: =DATE(PPFirstYear+9,MONTH('Input|General'!$G$9),1) -> 2029-06-01 | T4: =DATE(PPFirstYear+10,MONTH('Input|General'!$G$9),1) -> 2030-06-01
B8: Input |Step changes
C10: Step change | D10: Source | E10: Unit | F10: Basis | J10: =IF(YEAR(J$4)>=FPFirstYear,IF(YEAR(J$4)<=FPLastYear,J$4,""),"") ->  | O10: 2025-06-01 | P10: 2026-06-01 | Q10: 2027-06-01 | R10: 2028-06-01 | S10: 2029-06-01
C12: Solar Soak / Off-Peak Conversion | D12: AER | E12: =units -> $millions | F12: =DATE(PPLastYear,MONTH(month),1) -> 2024-06-01 | O12: 2.904385549 | P12: 2.861497732 | Q12: 0 | R12: 0 | S12: 0
C13: Network visibility | D13: AER | E13: $millions | F13: 2024-06-01 | O13: 2.138981895 | P13: 2.481544547 | Q13: 2.835478364 | R13: 3.187491611 | S13: 3.546575754
C14: SOCI Act | D14: AER | E14: $millions | F14: 2024-06-01 | O14: 0 | P14: 0 | Q14: 0 | R14: 0 | S14: 0
C15: Insurance premium | D15: AER | E15: $millions | F15: 2024-06-01 | O15: 3.557776186 | P15: 5.188656922 | Q15: 7.052361292 | R15: 9.182838596 | S15: 11.61942397
C16: Demand management | D16: AER | E16: $millions | F16: 2024-06-01 | O16: 0 | P16: 0.4737550907 | Q16: 0.7712292174 | R16: 1.052177004 | S16: 1.145826266
C17: NSW GSL scheme | D17: AER | E17: $millions | F17: 2024-06-01 | O17: 0 | P17: 0 | Q17: 0 | R17: 0 | S17: 0
D18: AER | E18: $millions | F18: 2024-06-01
D19: AER | E19: $millions | F19: 2024-06-01
D20: AER | E20: $millions | F20: 2024-06-01
C22: Check | D22: calculated | E22: Ok/Check | F22: n/a | J22: =IF(J10=J4,IF(COUNTA($C12:$C20)=COUNT(J12:J20),"Ok","Check"),"") ->  | O22: Ok | P22: Ok | Q22: Ok | R22: Ok | S22: Ok | T22: =IF(T10=T4,IF(COUNTA($C12:$C20)=COUNT(T12:T20),"Ok","Check"),"") ->  | W22: =IF(COUNTIF(J22:T22,"Check")=0,"Ok","Check") -> Ok
B24: Input | Category specifc forecasts
C26: Category specific forecasts | D26: Source | E26: Unit | F26: Basis | J26: =IF(YEAR(J$4)>=FPFirstYear,IF(YEAR(J$4)<=FPLastYear,J$4,""),"") ->  | O26: 2025-06-01 | P26: 2026-06-01 | Q26: 2027-06-01 | R26: 2028-06-01 | S26: 2029-06-01
D28: AER | E28: =units -> $millions | F28: =DATE(PPLastYear,MONTH(month),1) -> 2024-06-01
D29: AER | E29: =units -> $millions | F29: =DATE(PPLastYear,MONTH(month),1) -> 2024-06-01
D30: AER | E30: =units -> $millions | F30: =DATE(PPLastYear,MONTH(month),1) -> 2024-06-01
D31: AER | E31: =units -> $millions | F31: =DATE(PPLastYear,MONTH(month),1) -> 2024-06-01
D32: AER | E32: =units -> $millions | F32: =DATE(PPLastYear,MONTH(month),1) -> 2024-06-01
C34: Check | D34: calculated | E34: Ok/Check | F34: n/a | J34: =IF(J26=J4,IF(COUNTA($C28:$C32)=COUNT(J28:J32),"Ok","Check"),"") ->  | O34: Ok | P34: Ok | Q34: Ok | R34: Ok | S34: =IF(S26=S4,IF(COUNTA($C28:$C32)=COUNT(S28:S32),"Ok","Check"),"") -> Ok | T34: =IF(T26=T4,IF(COUNTA($C28:$C32)=COUNT(T28:T32),"Ok","Check"),"") ->  | W34: =IF(COUNTIF(J34:T34,"Check")=0,"Ok","Check") -> Ok
B36: Input | Debt raising costs
C38: Debt Raising Costs | D38: Source | E38: Unit | F38: Basis | J38: =IF(YEAR(J$4)>=FPFirstYear,IF(YEAR(J$4)<=FPLastYear,J$4,""),"") ->  | O38: 2025-06-01 | P38: 2026-06-01 | Q38: 2027-06-01 | R38: 2028-06-01 | S38: 2029-06-01
C40: Debt raising costs | D40: PTRM | E40: $millions | F40: =DATE(PPLastYear,MONTH(month),1) -> 2024-06-01 | O40: 4.057580791 | P40: 4.027233969 | Q40: 4.006848147 | R40: 3.97623294 | S40: 3.954802948
C42: Check | D42: calculated | E42: Ok/Check | F42: n/a | J42: =IF(J38=J4,IF(ISBLANK(J40),"Check","Ok"),"") ->  | O42: Ok | P42: Ok | Q42: Ok | R42: Ok | S42: =IF(S38=S4,IF(ISBLANK(S40),"Check","Ok"),"") -> Ok | T42: =IF(T38=T4,IF(ISBLANK(T40),"Check","Ok"),"") ->  | W42: =IF(COUNTIF(J42:T42,"Check")=0,"Ok","Check") -> Ok
B44: End

Sheet Calc|Opex forecast
B1: =Index!$B$1 -> AER opex model v2.0 | J1: Back to Index | L1: Key: | M1: Input | N1: External Link | O1: Internal Link | R1: Worksheet check: | S1: n/a | V1: Overall Check: | W1: ='Check|List'!$S$1 -> Ok
B2: =Index!$C$12 -> Calc | Opex Forecast
J3: Year ending
D4: Source | E4: Unit | F4: Basis | J4: =DATE(PPFirstYear,MONTH('Input|General'!$G$9),1) -> 2020-06-01 | K4: =DATE(PPFirstYear+1,MONTH('Input|General'!$G$9),1) -> 2021-06-01 | L4: =DATE(PPFirstYear+2,MONTH('Input|General'!$G$9),1) -> 2022-06-01 | M4: =DATE(PPFirstYear+3,MONTH('Input|General'!$G$9),1) -> 2023-06-01 | N4: =DATE(PPFirstYear+4,MONTH('Input|General'!$G$9),1) -> 2024-06-01 | O4: =DATE(PPFirstYear+5,MONTH('Input|General'!$G$9),1) -> 2025-06-01 | P4: =DATE(PPFirstYear+6,MONTH('Input|General'!$G$9),1) -> 2026-06-01 | Q4: =DATE(PPFirstYear+7,MONTH('Input|General'!$G$9),1) -> 2027-06-01 | R4: =DATE(PPFirstYear+8,MONTH('Input|General'!$G$9),1) -> 2028-06-01 | S4: =DATE(PPFirstYear+9,MONTH('Input|General'!$G$9),1) -> 2029-06-01 | T4: =DATE(PPFirstYear+10,MONTH('Input|General'!$G$9),1) -> 2030-06-01
B8: Calc | Estimated final year expenditure | E8: $millions | F8: =DATE(PPLastYear,MONTH('Input|General'!$G$9),1) -> 2024-06-01
D10: Source | E10: Unit | F10: Basis | J10: =IF(YEAR(J$4)<=PPLastYear,J$4,"") -> 2020-06-01 | K10: 2021-06-01 | L10: 2022-06-01 | M10: 2023-06-01 | N10: 2024-06-01
C12: Reported opex, total | D12: Inputs|Reported opex | E12: ='Input|Reported opex'!E57 -> $millions | F12: ='Input|Reported opex'!F57 -> nominal | J12: =IF(YEAR(J$4)=BaseYear,'Input|Reported opex'!J47,0) -> 0 | K12: =IF(YEAR(K$4)=BaseYear,'Input|Reported opex'!K47,0) -> 0 | L12: =IF(YEAR(L$4)=BaseYear,'Input|Reported opex'!L47,0) -> 0 | M12: =IF(YEAR(M$4)=BaseYear,'Input|Reported opex'!M47,0) -> 249.446201 | N12: =IF(YEAR(N$4)=BaseYear,'Input|Reported opex'!N47,0) -> 0 | O12: =IF(YEAR(O$4)=BaseYear,'Input|Reported opex'!O47,0) -> 0 | P12: =IF(YEAR(P$4)=BaseYear,'Input|Reported opex'!P47,0) -> 0 | Q12: =IF(YEAR(Q$4)=BaseYear,'Input|Reported opex'!Q47,0) -> 0 | R12: =IF(YEAR(R$4)=BaseYear,'Input|Reported opex'!R47,0) -> 0 | S12: =IF(YEAR(S$4)=BaseYear,'Input|Reported opex'!S47,0) -> 0 | T12: =IF(YEAR(T$4)=BaseYear,'Input|Reported opex'!T47,0) -> 0
C13: Reported opex, total | D13: Calculated | E13: =$E$8 -> $millions | F13: =$F$8 -> 2024-06-01 | J13: =J12*IF($F12="nominal",LOOKUP($F13,Nominal_to_Real,'Input|Rate of change'!K$26:K$31),INDEX('Input|Rate of change'!$C$14:$O$21,MATCH('Calc|Opex forecast'!$F12,'Input|Rate of change'!$C$14:$C$21,0),MATCH('Calc|Opex forecast'!$F13,'Input|Rate of change'!$C$14:$O$14,0)))*IF($E12="$millions",1000000,IF($E12="$000",1000,1))/IF($E13="$millions",1000000,IF($E13="$000",1000,1)) -> 0 | K13: =K12*IF($F12="nominal",LOOKUP($F13,Nominal_to_Real,'Input|Rate of change'!L$26:L$31),INDEX('Input|Rate of change'!$C$14:$O$21,MATCH('Calc|Opex forecast'!$F12,'Input|Rate of change'!$C$14:$C$21,0),MATCH('Calc|Opex forecast'!$F13,'Input|Rate of change'!$C$14:$O$14,0)))*IF($E12="$millions",1000000,IF($E12="$000",1000,1))/IF($E13="$millions",1000000,IF($E13="$000",1000,1)) -> 0 | L13: =L12*IF($F12="nominal",LOOKUP($F13,Nominal_to_Real,'Input|Rate of change'!M$26:M$31),INDEX('Input|Rate of change'!$C$14:$O$21,MATCH('Calc|Opex forecast'!$F12,'Input|Rate of change'!$C$14:$C$21,0),MATCH('Calc|Opex forecast'!$F13,'Input|Rate of change'!$C$14:$O$14,0)))*IF($E12="$millions",1000000,IF($E12="$000",1000,1))/IF($E13="$millions",1000000,IF($E13="$000",1000,1)) -> 0 | M13: =M12*IF($F12="nominal",LOOKUP($F13,Nominal_to_Real,'Input|Rate of change'!N$26:N$31),INDEX('Input|Rate of change'!$C$14:$O$21,MATCH('Calc|Opex forecast'!$F12,'Input|Rate of change'!$C$14:$C$21,0),MATCH('Calc|Opex forecast'!$F13,'Input|Rate of change'!$C$14:$O$14,0)))*IF($E12="$millions",1000000,IF($E12="$000",1000,1))/IF($E13="$millions",1000000,IF($E13="$000",1000,1)) -> 266.5256955 | N13: =N12*IF($F12="nominal",LOOKUP($F13,Nominal_to_Real,'Input|Rate of change'!O$26:O$31),INDEX('Input|Rate of change'!$C$14:$O$21,MATCH('Calc|Opex forecast'!$F12,'Input|Rate of change'!$C$14:$C$21,0),MATCH('Calc|Opex forecast'!$F13,'Input|Rate of change'!$C$14:$O$14,0)))*IF($E12="$millions",1000000,IF($E12="$000",1000,1))/IF($E13="$millions",1000000,IF($E13="$000",1000,1)) -> 0 | O13: =O12*IF($F12="nominal",LOOKUP($F13,Nominal_to_Real,'Input|Rate of change'!P$26:P$31),INDEX('Input|Rate of change'!$C$14:$O$21,MATCH('Calc|Opex forecast'!$F12,'Input|Rate of change'!$C$14:$C$21,0),MATCH('Calc|Opex forecast'!$F13,'Input|Rate of change'!$C$14:$O$14,0)))*IF($E12="$millions",1000000,IF($E12="$000",1000,1))/IF($E13="$millions",1000000,IF($E13="$000",1000,1)) -> 0 | P13: =P12*IF($F12="nominal",LOOKUP($F13,Nominal_to_Real,'Input|Rate of change'!Q$26:Q$31),INDEX('Input|Rate of change'!$C$14:$O$21,MATCH('Calc|Opex forecast'!$F12,'Input|Rate of change'!$C$14:$C$21,0),MATCH('Calc|Opex forecast'!$F13,'Input|Rate of change'!$C$14:$O$14,0)))*IF($E12="$millions",1000000,IF($E12="$000",1000,1))/IF($E13="$millions",1000000,IF($E13="$000",1000,1)) -> 0 | Q13: =Q12*IF($F12="nominal",LOOKUP($F13,Nominal_to_Real,'Input|Rate of change'!R$26:R$31),INDEX('Input|Rate of change'!$C$14:$O$21,MATCH('Calc|Opex forecast'!$F12,'Input|Rate of change'!$C$14:$C$21,0),MATCH('Calc|Opex forecast'!$F13,'Input|Rate of change'!$C$14:$O$14,0)))*IF($E12="$millions",1000000,IF($E12="$000",1000,1))/IF($E13="$millions",1000000,IF($E13="$000",1000,1)) -> 0 | R13: =R12*IF($F12="nominal",LOOKUP($F13,Nominal_to_Real,'Input|Rate of change'!S$26:S$31),INDEX('Input|Rate of change'!$C$14:$O$21,MATCH('Calc|Opex forecast'!$F12,'Input|Rate of change'!$C$14:$C$21,0),MATCH('Calc|Opex forecast'!$F13,'Input|Rate of change'!$C$14:$O$14,0)))*IF($E12="$millions",1000000,IF($E12="$000",1000,1))/IF($E13="$millions",1000000,IF($E13="$000",1000,1)) -> 0 | S13: =S12*IF($F12="nominal",LOOKUP($F13,Nominal_to_Real,'Input|Rate of change'!T$26:T$31),INDEX('Input|Rate of change'!$C$14:$O$21,MATCH('Calc|Opex forecast'!$F12,'Input|Rate of change'!$C$14:$C$21,0),MATCH('Calc|Opex forecast'!$F13,'Input|Rate of change'!$C$14:$O$14,0)))*IF($E12="$millions",1000000,IF($E12="$000",1000,1))/IF($E13="$millions",1000000,IF($E13="$000",1000,1)) -> 0 | T13: =T12*IF($F12="nominal",LOOKUP($F13,Nominal_to_Real,'Input|Rate of change'!U$26:U$31),INDEX('Input|Rate of change'!$C$14:$O$21,MATCH('Calc|Opex forecast'!$F12,'Input|Rate of change'!$C$14:$C$21,0),MATCH('Calc|Opex forecast'!$F13,'Input|Rate of change'!$C$14:$O$14,0)))*IF($E12="$millions",1000000,IF($E12="$000",1000,1))/IF($E13="$millions",1000000,IF($E13="$000",1000,1)) -> 0
C14: Base year opex allowance, total | D14: Inputs|Reported opex | E14: ='Input|Reported opex'!E15 -> $millions | F14: ='Input|Reported opex'!F15 -> 2019-06-01 | J14: =IF(YEAR(J$4)=BaseYear,'Input|Reported opex'!J15,0) -> 0 | K14: =IF(YEAR(K$4)=BaseYear,'Input|Reported opex'!K15,0) -> 0 | L14: =IF(YEAR(L$4)=BaseYear,'Input|Reported opex'!L15,0) -> 0 | M14: =IF(YEAR(M$4)=BaseYear,'Input|Reported opex'!M15,0) -> 291.6359426 | N14: =IF(YEAR(N$4)=BaseYear,'Input|Reported opex'!N15,0) -> 0 | O14: =IF(YEAR(O$4)=BaseYear,'Input|Reported opex'!O15,0) -> 0 | P14: =IF(YEAR(P$4)=BaseYear,'Input|Reported opex'!P15,0) -> 0 | Q14: =IF(YEAR(Q$4)=BaseYear,'Input|Reported opex'!Q15,0) -> 0 | R14: =IF(YEAR(R$4)=BaseYear,'Input|Reported opex'!R15,0) -> 0 | S14: =IF(YEAR(S$4)=BaseYear,'Input|Reported opex'!S15,0) -> 0
C15: Base year opex allowance, total | D15: Calculated | E15: =$E$8 -> $millions | F15: =$F$8 -> 2024-06-01 | J15: =J14*IF($F14="nominal",LOOKUP($F15,Nominal_to_Real,'Input|Rate of change'!K$26:K$32),INDEX('Input|Rate of change'!$C$14:$P$22,MATCH('Calc|Opex forecast'!$F14,'Input|Rate of change'!$C$14:$C$22,0),MATCH('Calc|Opex forecast'!$F15,'Input|Rate of change'!$C$14:$P$14,0)))*IF($E14="$millions",1000000,IF($E14="$000",1000,1))/IF($E15="$millions",1000000,IF($E15="$000",1000,1)) -> 0 | K15: =K14*IF($F14="nominal",LOOKUP($F15,Nominal_to_Real,'Input|Rate of change'!L$26:L$32),INDEX('Input|Rate of change'!$C$14:$P$22,MATCH('Calc|Opex forecast'!$F14,'Input|Rate of change'!$C$14:$C$22,0),MATCH('Calc|Opex forecast'!$F15,'Input|Rate of change'!$C$14:$P$14,0)))*IF($E14="$millions",1000000,IF($E14="$000",1000,1))/IF($E15="$millions",1000000,IF($E15="$000",1000,1)) -> 0 | L15: =L14*IF($F14="nominal",LOOKUP($F15,Nominal_to_Real,'Input|Rate of change'!M$26:M$32),INDEX('Input|Rate of change'!$C$14:$P$22,MATCH('Calc|Opex forecast'!$F14,'Input|Rate of change'!$C$14:$C$22,0),MATCH('Calc|Opex forecast'!$F15,'Input|Rate of change'!$C$14:$P$14,0)))*IF($E14="$millions",1000000,IF($E14="$000",1000,1))/IF($E15="$millions",1000000,IF($E15="$000",1000,1)) -> 0 | M15: =M14*IF($F14="nominal",LOOKUP($F15,Nominal_to_Real,'Input|Rate of change'!N$26:N$32),INDEX('Input|Rate of change'!$C$14:$P$22,MATCH('Calc|Opex forecast'!$F14,'Input|Rate of change'!$C$14:$C$22,0),MATCH('Calc|Opex forecast'!$F15,'Input|Rate of change'!$C$14:$P$14,0)))*IF($E14="$millions",1000000,IF($E14="$000",1000,1))/IF($E15="$millions",1000000,IF($E15="$000",1000,1)) -> 352.9390238 | N15: =N14*IF($F14="nominal",LOOKUP($F15,Nominal_to_Real,'Input|Rate of change'!O$26:O$32),INDEX('Input|Rate of change'!$C$14:$P$22,MATCH('Calc|Opex forecast'!$F14,'Input|Rate of change'!$C$14:$C$22,0),MATCH('Calc|Opex forecast'!$F15,'Input|Rate of change'!$C$14:$P$14,0)))*IF($E14="$millions",1000000,IF($E14="$000",1000,1))/IF($E15="$millions",1000000,IF($E15="$000",1000,1)) -> 0 | O15: =O14*IF($F14="nominal",LOOKUP($F15,Nominal_to_Real,'Input|Rate of change'!P$26:P$32),INDEX('Input|Rate of change'!$C$14:$P$22,MATCH('Calc|Opex forecast'!$F14,'Input|Rate of change'!$C$14:$C$22,0),MATCH('Calc|Opex forecast'!$F15,'Input|Rate of change'!$C$14:$P$14,0)))*IF($E14="$millions",1000000,IF($E14="$000",1000,1))/IF($E15="$millions",1000000,IF($E15="$000",1000,1)) -> 0 | P15: =P14*IF($F14="nominal",LOOKUP($F15,Nominal_to_Real,'Input|Rate of change'!Q$26:Q$32),INDEX('Input|Rate of change'!$C$14:$P$22,MATCH('Calc|Opex forecast'!$F14,'Input|Rate of change'!$C$14:$C$22,0),MATCH('Calc|Opex forecast'!$F15,'Input|Rate of change'!$C$14:$P$14,0)))*IF($E14="$millions",1000000,IF($E14="$000",1000,1))/IF($E15="$millions",1000000,IF($E15="$000",1000,1)) -> 0 | Q15: =Q14*IF($F14="nominal",LOOKUP($F15,Nominal_to_Real,'Input|Rate of change'!R$26:R$32),INDEX('Input|Rate of change'!$C$14:$P$22,MATCH('Calc|Opex forecast'!$F14,'Input|Rate of change'!$C$14:$C$22,0),MATCH('Calc|Opex forecast'!$F15,'Input|Rate of change'!$C$14:$P$14,0)))*IF($E14="$millions",1000000,IF($E14="$000",1000,1))/IF($E15="$millions",1000000,IF($E15="$000",1000,1)) -> 0 | R15: =R14*IF($F14="nominal",LOOKUP($F15,Nominal_to_Real,'Input|Rate of change'!S$26:S$32),INDEX('Input|Rate of change'!$C$14:$P$22,MATCH('Calc|Opex forecast'!$F14,'Input|Rate of change'!$C$14:$C$22,0),MATCH('Calc|Opex forecast'!$F15,'Input|Rate of change'!$C$14:$P$14,0)))*IF($E14="$millions",1000000,IF($E14="$000",1000,1))/IF($E15="$millions",1000000,IF($E15="$000",1000,1)) -> 0 | S15: =S14*IF($F14="nominal",LOOKUP($F15,Nominal_to_Real,'Input|Rate of change'!T$26:T$32),INDEX('Input|Rate of change'!$C$14:$P$22,MATCH('Calc|Opex forecast'!$F14,'Input|Rate of change'!$C$14:$C$22,0),MATCH('Calc|Opex forecast'!$F15,'Input|Rate of change'!$C$14:$P$14,0)))*IF($E14="$millions",1000000,IF($E14="$000",1000,1))/IF($E15="$millions",1000000,IF($E15="$000",1000,1)) -> 0 | T15: =T14*IF($F14="nominal",LOOKUP($F15,Nominal_to_Real,'Input|Rate of change'!U$26:U$32),INDEX('Input|Rate of change'!$C$14:$P$22,MATCH('Calc|Opex forecast'!$F14,'Input|Rate of change'!$C$14:$C$22,0),MATCH('Calc|Opex forecast'!$F15,'Input|Rate of change'!$C$14:$P$14,0)))*IF($E14="$millions",1000000,IF($E14="$000",1000,1))/IF($E15="$millions",1000000,IF($E15="$000",1000,1)) -> 0
C16: Final year opex allowance, total | D16: Inputs|Reported opex | E16: ='Input|Reported opex'!E15 -> $millions | F16: ='Input|Reported opex'!F15 -> 2019-06-01 | J16: =IF(YEAR(J$4)=PPLastYear,'Input|Reported opex'!J15,0) -> 0 | K16: =IF(YEAR(K$4)=PPLastYear,'Input|Reported opex'!K15,0) -> 0 | L16: =IF(YEAR(L$4)=PPLastYear,'Input|Reported opex'!L15,0) -> 0 | M16: =IF(YEAR(M$4)=PPLastYear,'Input|Reported opex'!M15,0) -> 0 | N16: =IF(YEAR(N$4)=PPLastYear,'Input|Reported opex'!N15,0) -> 297.5318748 | O16: =IF(YEAR(O$4)=PPLastYear,'Input|Reported opex'!O15,0) -> 0 | P16: =IF(YEAR(P$4)=PPLastYear,'Input|Reported opex'!P15,0) -> 0 | Q16: =IF(YEAR(Q$4)=PPLastYear,'Input|Reported opex'!Q15,0) -> 0 | R16: =IF(YEAR(R$4)=PPLastYear,'Input|Reported opex'!R15,0) -> 0 | S16: =IF(YEAR(S$4)=PPLastYear,'Input|Reported opex'!S15,0) -> 0
C17: Final year opex allowance, total | D17: Calculated | E17: =$E$8 -> $millions | F17: =$F$8 -> 2024-06-01 | J17: =J16*IF($F16="nominal",LOOKUP($F17,Nominal_to_Real,'Input|Rate of change'!K$26:K$32),INDEX('Input|Rate of change'!$C$14:$P$22,MATCH('Calc|Opex forecast'!$F16,'Input|Rate of change'!$C$14:$C$22,0),MATCH('Calc|Opex forecast'!$F17,'Input|Rate of change'!$C$14:$P$14,0)))*IF($E16="$millions",1000000,IF($E16="$000",1000,1))/IF($E17="$millions",1000000,IF($E17="$000",1000,1)) -> 0 | K17: =K16*IF($F16="nominal",LOOKUP($F17,Nominal_to_Real,'Input|Rate of change'!L$26:L$32),INDEX('Input|Rate of change'!$C$14:$P$22,MATCH('Calc|Opex forecast'!$F16,'Input|Rate of change'!$C$14:$C$22,0),MATCH('Calc|Opex forecast'!$F17,'Input|Rate of change'!$C$14:$P$14,0)))*IF($E16="$millions",1000000,IF($E16="$000",1000,1))/IF($E17="$millions",1000000,IF($E17="$000",1000,1)) -> 0 | L17: =L16*IF($F16="nominal",LOOKUP($F17,Nominal_to_Real,'Input|Rate of change'!M$26:M$32),INDEX('Input|Rate of change'!$C$14:$P$22,MATCH('Calc|Opex forecast'!$F16,'Input|Rate of change'!$C$14:$C$22,0),MATCH('Calc|Opex forecast'!$F17,'Input|Rate of change'!$C$14:$P$14,0)))*IF($E16="$millions",1000000,IF($E16="$000",1000,1))/IF($E17="$millions",1000000,IF($E17="$000",1000,1)) -> 0 | M17: =M16*IF($F16="nominal",LOOKUP($F17,Nominal_to_Real,'Input|Rate of change'!N$26:N$32),INDEX('Input|Rate of change'!$C$14:$P$22,MATCH('Calc|Opex forecast'!$F16,'Input|Rate of change'!$C$14:$C$22,0),MATCH('Calc|Opex forecast'!$F17,'Input|Rate of change'!$C$14:$P$14,0)))*IF($E16="$millions",1000000,IF($E16="$000",1000,1))/IF($E17="$millions",1000000,IF($E17="$000",1000,1)) -> 0 | N17: =N16*IF($F16="nominal",LOOKUP($F17,Nominal_to_Real,'Input|Rate of change'!O$26:O$32),INDEX('Input|Rate of change'!$C$14:$P$22,MATCH('Calc|Opex forecast'!$F16,'Input|Rate of change'!$C$14:$C$22,0),MATCH('Calc|Opex forecast'!$F17,'Input|Rate of change'!$C$14:$P$14,0)))*IF($E16="$millions",1000000,IF($E16="$000",1000,1))/IF($E17="$millions",1000000,IF($E17="$000",1000,1)) -> 360.0743053 | O17: =O16*IF($F16="nominal",LOOKUP($F17,Nominal_to_Real,'Input|Rate of change'!P$26:P$32),INDEX('Input|Rate of change'!$C$14:$P$22,MATCH('Calc|Opex forecast'!$F16,'Input|Rate of change'!$C$14:$C$22,0),MATCH('Calc|Opex forecast'!$F17,'Input|Rate of change'!$C$14:$P$14,0)))*IF($E16="$millions",1000000,IF($E16="$000",1000,1))/IF($E17="$millions",1000000,IF($E17="$000",1000,1)) -> 0 | P17: =P16*IF($F16="nominal",LOOKUP($F17,Nominal_to_Real,'Input|Rate of change'!Q$26:Q$32),INDEX('Input|Rate of change'!$C$14:$P$22,MATCH('Calc|Opex forecast'!$F16,'Input|Rate of change'!$C$14:$C$22,0),MATCH('Calc|Opex forecast'!$F17,'Input|Rate of change'!$C$14:$P$14,0)))*IF($E16="$millions",1000000,IF($E16="$000",1000,1))/IF($E17="$millions",1000000,IF($E17="$000",1000,1)) -> 0 | Q17: =Q16*IF($F16="nominal",LOOKUP($F17,Nominal_to_Real,'Input|Rate of change'!R$26:R$32),INDEX('Input|Rate of change'!$C$14:$P$22,MATCH('Calc|Opex forecast'!$F16,'Input|Rate of change'!$C$14:$C$22,0),MATCH('Calc|Opex forecast'!$F17,'Input|Rate of change'!$C$14:$P$14,0)))*IF($E16="$millions",1000000,IF($E16="$000",1000,1))/IF($E17="$millions",1000000,IF($E17="$000",1000,1)) -> 0 | R17: =R16*IF($F16="nominal",LOOKUP($F17,Nominal_to_Real,'Input|Rate of change'!S$26:S$32),INDEX('Input|Rate of change'!$C$14:$P$22,MATCH('Calc|Opex forecast'!$F16,'Input|Rate of change'!$C$14:$C$22,0),MATCH('Calc|Opex forecast'!$F17,'Input|Rate of change'!$C$14:$P$14,0)))*IF($E16="$millions",1000000,IF($E16="$000",1000,1))/IF($E17="$millions",1000000,IF($E17="$000",1000,1)) -> 0 | S17: =S16*IF($F16="nominal",LOOKUP($F17,Nominal_to_Real,'Input|Rate of change'!T$26:T$32),INDEX('Input|Rate of change'!$C$14:$P$22,MATCH('Calc|Opex forecast'!$F16,'Input|Rate of change'!$C$14:$C$22,0),MATCH('Calc|Opex forecast'!$F17,'Input|Rate of change'!$C$14:$P$14,0)))*IF($E16="$millions",1000000,IF($E16="$000",1000,1))/IF($E17="$millions",1000000,IF($E17="$000",1000,1)) -> 0 | T17: =T16*IF($F16="nominal",LOOKUP($F17,Nominal_to_Real,'Input|Rate of change'!U$26:U$32),INDEX('Input|Rate of change'!$C$14:$P$22,MATCH('Calc|Opex forecast'!$F16,'Input|Rate of change'!$C$14:$C$22,0),MATCH('Calc|Opex forecast'!$F17,'Input|Rate of change'!$C$14:$P$14,0)))*IF($E16="$millions",1000000,IF($E16="$000",1000,1))/IF($E17="$millions",1000000,IF($E17="$000",1000,1)) -> 0
C19: Reported opex, category specific forecasts | D19: Inputs|Reported opex | E19: ='Input|Reported opex'!E64 -> $millions | F19: ='Input|Reported opex'!F57 -> nominal | J19: =IF(YEAR(J$4)=BaseYear,'Input|Reported opex'!J57,0) -> 0 | K19: =IF(YEAR(K$4)=BaseYear,'Input|Reported opex'!K57,0) -> 0 | L19: =IF(YEAR(L$4)=BaseYear,'Input|Reported opex'!L57,0) -> 0 | M19: =IF(YEAR(M$4)=BaseYear,'Input|Reported opex'!M57,0) -> 0 | N19: =IF(YEAR(N$4)=BaseYear,'Input|Reported opex'!N57,0) -> 0 | O19: =IF(YEAR(O$4)=BaseYear,'Input|Reported opex'!O57,0) -> 0 | P19: =IF(YEAR(P$4)=BaseYear,'Input|Reported opex'!P57,0) -> 0 | Q19: =IF(YEAR(Q$4)=BaseYear,'Input|Reported opex'!Q57,0) -> 0 | R19: =IF(YEAR(R$4)=BaseYear,'Input|Reported opex'!R57,0) -> 0 | S19: =IF(YEAR(S$4)=BaseYear,'Input|Reported opex'!S57,0) -> 0
C20: Reported opex, category specific forecasts | D20: Calculated | E20: =$E$8 -> $millions | F20: =$F$8 -> 2024-06-01 | J20: =J19*IF($F19="nominal",LOOKUP($F20,Nominal_to_Real,'Input|Rate of change'!K$26:K$32),INDEX('Input|Rate of change'!$C$14:$P$22,MATCH('Calc|Opex forecast'!$F19,'Input|Rate of change'!$C$14:$C$22,0),MATCH('Calc|Opex forecast'!$F20,'Input|Rate of change'!$C$14:$P$14,0)))*IF($E19="$millions",1000000,IF($E19="$000",1000,1))/IF($E20="$millions",1000000,IF($E20="$000",1000,1)) -> 0 | K20: =K19*IF($F19="nominal",LOOKUP($F20,Nominal_to_Real,'Input|Rate of change'!L$26:L$32),INDEX('Input|Rate of change'!$C$14:$P$22,MATCH('Calc|Opex forecast'!$F19,'Input|Rate of change'!$C$14:$C$22,0),MATCH('Calc|Opex forecast'!$F20,'Input|Rate of change'!$C$14:$P$14,0)))*IF($E19="$millions",1000000,IF($E19="$000",1000,1))/IF($E20="$millions",1000000,IF($E20="$000",1000,1)) -> 0 | L20: =L19*IF($F19="nominal",LOOKUP($F20,Nominal_to_Real,'Input|Rate of change'!M$26:M$32),INDEX('Input|Rate of change'!$C$14:$P$22,MATCH('Calc|Opex forecast'!$F19,'Input|Rate of change'!$C$14:$C$22,0),MATCH('Calc|Opex forecast'!$F20,'Input|Rate of change'!$C$14:$P$14,0)))*IF($E19="$millions",1000000,IF($E19="$000",1000,1))/IF($E20="$millions",1000000,IF($E20="$000",1000,1)) -> 0 | M20: =M19*IF($F19="nominal",LOOKUP($F20,Nominal_to_Real,'Input|Rate of change'!N$26:N$32),INDEX('Input|Rate of change'!$C$14:$P$22,MATCH('Calc|Opex forecast'!$F19,'Input|Rate of change'!$C$14:$C$22,0),MATCH('Calc|Opex forecast'!$F20,'Input|Rate of change'!$C$14:$P$14,0)))*IF($E19="$millions",1000000,IF($E19="$000",1000,1))/IF($E20="$millions",1000000,IF($E20="$000",1000,1)) -> 0 | N20: =N19*IF($F19="nominal",LOOKUP($F20,Nominal_to_Real,'Input|Rate of change'!O$26:O$32),INDEX('Input|Rate of change'!$C$14:$P$22,MATCH('Calc|Opex forecast'!$F19,'Input|Rate of change'!$C$14:$C$22,0),MATCH('Calc|Opex forecast'!$F20,'Input|Rate of change'!$C$14:$P$14,0)))*IF($E19="$millions",1000000,IF($E19="$000",1000,1))/IF($E20="$millions",1000000,IF($E20="$000",1000,1)) -> 0 | O20: =O19*IF($F19="nominal",LOOKUP($F20,Nominal_to_Real,'Input|Rate of change'!P$26:P$32),INDEX('Input|Rate of change'!$C$14:$P$22,MATCH('Calc|Opex forecast'!$F19,'Input|Rate of change'!$C$14:$C$22,0),MATCH('Calc|Opex forecast'!$F20,'Input|Rate of change'!$C$14:$P$14,0)))*IF($E19="$millions",1000000,IF($E19="$000",1000,1))/IF($E20="$millions",1000000,IF($E20="$000",1000,1)) -> 0 | P20: =P19*IF($F19="nominal",LOOKUP($F20,Nominal_to_Real,'Input|Rate of change'!Q$26:Q$32),INDEX('Input|Rate of change'!$C$14:$P$22,MATCH('Calc|Opex forecast'!$F19,'Input|Rate of change'!$C$14:$C$22,0),MATCH('Calc|Opex forecast'!$F20,'Input|Rate of change'!$C$14:$P$14,0)))*IF($E19="$millions",1000000,IF($E19="$000",1000,1))/IF($E20="$millions",1000000,IF($E20="$000",1000,1)) -> 0 | Q20: =Q19*IF($F19="nominal",LOOKUP($F20,Nominal_to_Real,'Input|Rate of change'!R$26:R$32),INDEX('Input|Rate of change'!$C$14:$P$22,MATCH('Calc|Opex forecast'!$F19,'Input|Rate of change'!$C$14:$C$22,0),MATCH('Calc|Opex forecast'!$F20,'Input|Rate of change'!$C$14:$P$14,0)))*IF($E19="$millions",1000000,IF($E19="$000",1000,1))/IF($E20="$millions",1000000,IF($E20="$000",1000,1)) -> 0 | R20: =R19*IF($F19="nominal",LOOKUP($F20,Nominal_to_Real,'Input|Rate of change'!S$26:S$32),INDEX('Input|Rate of change'!$C$14:$P$22,MATCH('Calc|Opex forecast'!$F19,'Input|Rate of change'!$C$14:$C$22,0),MATCH('Calc|Opex forecast'!$F20,'Input|Rate of change'!$C$14:$P$14,0)))*IF($E19="$millions",1000000,IF($E19="$000",1000,1))/IF($E20="$millions",1000000,IF($E20="$000",1000,1)) -> 0 | S20: =S19*IF($F19="nominal",LOOKUP($F20,Nominal_to_Real,'Input|Rate of change'!T$26:T$32),INDEX('Input|Rate of change'!$C$14:$P$22,MATCH('Calc|Opex forecast'!$F19,'Input|Rate of change'!$C$14:$C$22,0),MATCH('Calc|Opex forecast'!$F20,'Input|Rate of change'!$C$14:$P$14,0)))*IF($E19="$millions",1000000,IF($E19="$000",1000,1))/IF($E20="$millions",1000000,IF($E20="$000",1000,1)) -> 0 | T20: =T19*IF($F19="nominal",LOOKUP($F20,Nominal_to_Real,'Input|Rate of change'!U$26:U$32),INDEX('Input|Rate of change'!$C$14:$P$22,MATCH('Calc|Opex forecast'!$F19,'Input|Rate of change'!$C$14:$C$22,0),MATCH('Calc|Opex forecast'!$F20,'Input|Rate of change'!$C$14:$P$14,0)))*IF($E19="$millions",1000000,IF($E19="$000",1000,1))/IF($E20="$millions",1000000,IF($E20="$000",1000,1)) -> 0
C21: Base year opex allowance, category specific forecasts | D21: Inputs|Reported opex | E21: ='Input|Reported opex'!E22 -> $millions | F21: ='Input|Reported opex'!F29 -> 2019-06-01 | J21: =IF(YEAR(J$4)=BaseYear,'Input|Reported opex'!J29,0) -> 0 | K21: =IF(YEAR(K$4)=BaseYear,'Input|Reported opex'!K29,0) -> 0 | L21: =IF(YEAR(L$4)=BaseYear,'Input|Reported opex'!L29,0) -> 0 | M21: =IF(YEAR(M$4)=BaseYear,'Input|Reported opex'!M29,0) -> 3.32002473 | N21: =IF(YEAR(N$4)=BaseYear,'Input|Reported opex'!N29,0) -> 0 | O21: =IF(YEAR(O$4)=BaseYear,'Input|Reported opex'!O29,0) -> 0 | P21: =IF(YEAR(P$4)=BaseYear,'Input|Reported opex'!P29,0) -> 0 | Q21: =IF(YEAR(Q$4)=BaseYear,'Input|Reported opex'!Q29,0) -> 0 | R21: =IF(YEAR(R$4)=BaseYear,'Input|Reported opex'!R29,0) -> 0 | S21: =IF(YEAR(S$4)=BaseYear,'Input|Reported opex'!S29,0) -> 0
C22: Base year opex allowance, category specific forecasts | D22: Calculated | E22: =$E$8 -> $millions | F22: =$F$8 -> 2024-06-01 | J22: =J21*IF($F21="nominal",LOOKUP($F22,Nominal_to_Real,'Input|Rate of change'!K$26:K$32),INDEX('Input|Rate of change'!$C$14:$P$22,MATCH('Calc|Opex forecast'!$F21,'Input|Rate of change'!$C$14:$C$22,0),MATCH('Calc|Opex forecast'!$F22,'Input|Rate of change'!$C$14:$P$14,0)))*IF($E21="$millions",1000000,IF($E21="$000",1000,1))/IF($E22="$millions",1000000,IF($E22="$000",1000,1)) -> 0 | K22: =K21*IF($F21="nominal",LOOKUP($F22,Nominal_to_Real,'Input|Rate of change'!L$26:L$32),INDEX('Input|Rate of change'!$C$14:$P$22,MATCH('Calc|Opex forecast'!$F21,'Input|Rate of change'!$C$14:$C$22,0),MATCH('Calc|Opex forecast'!$F22,'Input|Rate of change'!$C$14:$P$14,0)))*IF($E21="$millions",1000000,IF($E21="$000",1000,1))/IF($E22="$millions",1000000,IF($E22="$000",1000,1)) -> 0 | L22: =L21*IF($F21="nominal",LOOKUP($F22,Nominal_to_Real,'Input|Rate of change'!M$26:M$32),INDEX('Input|Rate of change'!$C$14:$P$22,MATCH('Calc|Opex forecast'!$F21,'Input|Rate of change'!$C$14:$C$22,0),MATCH('Calc|Opex forecast'!$F22,'Input|Rate of change'!$C$14:$P$14,0)))*IF($E21="$millions",1000000,IF($E21="$000",1000,1))/IF($E22="$millions",1000000,IF($E22="$000",1000,1)) -> 0 | M22: =M21*IF($F21="nominal",LOOKUP($F22,Nominal_to_Real,'Input|Rate of change'!N$26:N$32),INDEX('Input|Rate of change'!$C$14:$P$22,MATCH('Calc|Opex forecast'!$F21,'Input|Rate of change'!$C$14:$C$22,0),MATCH('Calc|Opex forecast'!$F22,'Input|Rate of change'!$C$14:$P$14,0)))*IF($E21="$millions",1000000,IF($E21="$000",1000,1))/IF($E22="$millions",1000000,IF($E22="$000",1000,1)) -> 4.017907658 | N22: =N21*IF($F21="nominal",LOOKUP($F22,Nominal_to_Real,'Input|Rate of change'!O$26:O$32),INDEX('Input|Rate of change'!$C$14:$P$22,MATCH('Calc|Opex forecast'!$F21,'Input|Rate of change'!$C$14:$C$22,0),MATCH('Calc|Opex forecast'!$F22,'Input|Rate of change'!$C$14:$P$14,0)))*IF($E21="$millions",1000000,IF($E21="$000",1000,1))/IF($E22="$millions",1000000,IF($E22="$000",1000,1)) -> 0 | O22: =O21*IF($F21="nominal",LOOKUP($F22,Nominal_to_Real,'Input|Rate of change'!P$26:P$32),INDEX('Input|Rate of change'!$C$14:$P$22,MATCH('Calc|Opex forecast'!$F21,'Input|Rate of change'!$C$14:$C$22,0),MATCH('Calc|Opex forecast'!$F22,'Input|Rate of change'!$C$14:$P$14,0)))*IF($E21="$millions",1000000,IF($E21="$000",1000,1))/IF($E22="$millions",1000000,IF($E22="$000",1000,1)) -> 0 | P22: =P21*IF($F21="nominal",LOOKUP($F22,Nominal_to_Real,'Input|Rate of change'!Q$26:Q$32),INDEX('Input|Rate of change'!$C$14:$P$22,MATCH('Calc|Opex forecast'!$F21,'Input|Rate of change'!$C$14:$C$22,0),MATCH('Calc|Opex forecast'!$F22,'Input|Rate of change'!$C$14:$P$14,0)))*IF($E21="$millions",1000000,IF($E21="$000",1000,1))/IF($E22="$millions",1000000,IF($E22="$000",1000,1)) -> 0 | Q22: =Q21*IF($F21="nominal",LOOKUP($F22,Nominal_to_Real,'Input|Rate of change'!R$26:R$32),INDEX('Input|Rate of change'!$C$14:$P$22,MATCH('Calc|Opex forecast'!$F21,'Input|Rate of change'!$C$14:$C$22,0),MATCH('Calc|Opex forecast'!$F22,'Input|Rate of change'!$C$14:$P$14,0)))*IF($E21="$millions",1000000,IF($E21="$000",1000,1))/IF($E22="$millions",1000000,IF($E22="$000",1000,1)) -> 0 | R22: =R21*IF($F21="nominal",LOOKUP($F22,Nominal_to_Real,'Input|Rate of change'!S$26:S$32),INDEX('Input|Rate of change'!$C$14:$P$22,MATCH('Calc|Opex forecast'!$F21,'Input|Rate of change'!$C$14:$C$22,0),MATCH('Calc|Opex forecast'!$F22,'Input|Rate of change'!$C$14:$P$14,0)))*IF($E21="$millions",1000000,IF($E21="$000",1000,1))/IF($E22="$millions",1000000,IF($E22="$000",1000,1)) -> 0 | S22: =S21*IF($F21="nominal",LOOKUP($F22,Nominal_to_Real,'Input|Rate of change'!T$26:T$32),INDEX('Input|Rate of change'!$C$14:$P$22,MATCH('Calc|Opex forecast'!$F21,'Input|Rate of change'!$C$14:$C$22,0),MATCH('Calc|Opex forecast'!$F22,'Input|Rate of change'!$C$14:$P$14,0)))*IF($E21="$millions",1000000,IF($E21="$000",1000,1))/IF($E22="$millions",1000000,IF($E22="$000",1000,1)) -> 0 | T22: =T21*IF($F21="nominal",LOOKUP($F22,Nominal_to_Real,'Input|Rate of change'!U$26:U$32),INDEX('Input|Rate of change'!$C$14:$P$22,MATCH('Calc|Opex forecast'!$F21,'Input|Rate of change'!$C$14:$C$22,0),MATCH('Calc|Opex forecast'!$F22,'Input|Rate of change'!$C$14:$P$14,0)))*IF($E21="$millions",1000000,IF($E21="$000",1000,1))/IF($E22="$millions",1000000,IF($E22="$000",1000,1)) -> 0
C23: Final year opex allowance, category specific forecasts | D23: Inputs|Reported opex | E23: ='Input|Reported opex'!E22 -> $millions | F23: ='Input|Reported opex'!F29 -> 2019-06-01 | J23: =IF(YEAR(J$4)=PPLastYear,'Input|Reported opex'!J29,0) -> 0 | K23: =IF(YEAR(K$4)=PPLastYear,'Input|Reported opex'!K29,0) -> 0 | L23: =IF(YEAR(L$4)=PPLastYear,'Input|Reported opex'!L29,0) -> 0 | M23: =IF(YEAR(M$4)=PPLastYear,'Input|Reported opex'!M29,0) -> 0 | N23: =IF(YEAR(N$4)=PPLastYear,'Input|Reported opex'!N29,0) -> 3.354914192 | O23: =IF(YEAR(O$4)=PPLastYear,'Input|Reported opex'!O29,0) -> 0 | P23: =IF(YEAR(P$4)=PPLastYear,'Input|Reported opex'!P29,0) -> 0 | Q23: =IF(YEAR(Q$4)=PPLastYear,'Input|Reported opex'!Q29,0) -> 0 | R23: =IF(YEAR(R$4)=PPLastYear,'Input|Reported opex'!R29,0) -> 0 | S23: =IF(YEAR(S$4)=PPLastYear,'Input|Reported opex'!S29,0) -> 0
C24: Final year opex allowance, category specific forecasts | D24: Calculated | E24: =$E$8 -> $millions | F24: =$F$8 -> 2024-06-01 | J24: =J23*IF($F23="nominal",LOOKUP($F24,Nominal_to_Real,'Input|Rate of change'!K$26:K$32),INDEX('Input|Rate of change'!$C$14:$P$22,MATCH('Calc|Opex forecast'!$F23,'Input|Rate of change'!$C$14:$C$22,0),MATCH('Calc|Opex forecast'!$F24,'Input|Rate of change'!$C$14:$P$14,0)))*IF($E23="$millions",1000000,IF($E23="$000",1000,1))/IF($E24="$millions",1000000,IF($E24="$000",1000,1)) -> 0 | K24: =K23*IF($F23="nominal",LOOKUP($F24,Nominal_to_Real,'Input|Rate of change'!L$26:L$32),INDEX('Input|Rate of change'!$C$14:$P$22,MATCH('Calc|Opex forecast'!$F23,'Input|Rate of change'!$C$14:$C$22,0),MATCH('Calc|Opex forecast'!$F24,'Input|Rate of change'!$C$14:$P$14,0)))*IF($E23="$millions",1000000,IF($E23="$000",1000,1))/IF($E24="$millions",1000000,IF($E24="$000",1000,1)) -> 0 | L24: =L23*IF($F23="nominal",LOOKUP($F24,Nominal_to_Real,'Input|Rate of change'!M$26:M$32),INDEX('Input|Rate of change'!$C$14:$P$22,MATCH('Calc|Opex forecast'!$F23,'Input|Rate of change'!$C$14:$C$22,0),MATCH('Calc|Opex forecast'!$F24,'Input|Rate of change'!$C$14:$P$14,0)))*IF($E23="$millions",1000000,IF($E23="$000",1000,1))/IF($E24="$millions",1000000,IF($E24="$000",1000,1)) -> 0 | M24: =M23*IF($F23="nominal",LOOKUP($F24,Nominal_to_Real,'Input|Rate of change'!N$26:N$32),INDEX('Input|Rate of change'!$C$14:$P$22,MATCH('Calc|Opex forecast'!$F23,'Input|Rate of change'!$C$14:$C$22,0),MATCH('Calc|Opex forecast'!$F24,'Input|Rate of change'!$C$14:$P$14,0)))*IF($E23="$millions",1000000,IF($E23="$000",1000,1))/IF($E24="$millions",1000000,IF($E24="$000",1000,1)) -> 0 | N24: =N23*IF($F23="nominal",LOOKUP($F24,Nominal_to_Real,'Input|Rate of change'!O$26:O$32),INDEX('Input|Rate of change'!$C$14:$P$22,MATCH('Calc|Opex forecast'!$F23,'Input|Rate of change'!$C$14:$C$22,0),MATCH('Calc|Opex forecast'!$F24,'Input|Rate of change'!$C$14:$P$14,0)))*IF($E23="$millions",1000000,IF($E23="$000",1000,1))/IF($E24="$millions",1000000,IF($E24="$000",1000,1)) -> 4.060131029 | O24: =O23*IF($F23="nominal",LOOKUP($F24,Nominal_to_Real,'Input|Rate of change'!P$26:P$32),INDEX('Input|Rate of change'!$C$14:$P$22,MATCH('Calc|Opex forecast'!$F23,'Input|Rate of change'!$C$14:$C$22,0),MATCH('Calc|Opex forecast'!$F24,'Input|Rate of change'!$C$14:$P$14,0)))*IF($E23="$millions",1000000,IF($E23="$000",1000,1))/IF($E24="$millions",1000000,IF($E24="$000",1000,1)) -> 0 | P24: =P23*IF($F23="nominal",LOOKUP($F24,Nominal_to_Real,'Input|Rate of change'!Q$26:Q$32),INDEX('Input|Rate of change'!$C$14:$P$22,MATCH('Calc|Opex forecast'!$F23,'Input|Rate of change'!$C$14:$C$22,0),MATCH('Calc|Opex forecast'!$F24,'Input|Rate of change'!$C$14:$P$14,0)))*IF($E23="$millions",1000000,IF($E23="$000",1000,1))/IF($E24="$millions",1000000,IF($E24="$000",1000,1)) -> 0 | Q24: =Q23*IF($F23="nominal",LOOKUP($F24,Nominal_to_Real,'Input|Rate of change'!R$26:R$32),INDEX('Input|Rate of change'!$C$14:$P$22,MATCH('Calc|Opex forecast'!$F23,'Input|Rate of change'!$C$14:$C$22,0),MATCH('Calc|Opex forecast'!$F24,'Input|Rate of change'!$C$14:$P$14,0)))*IF($E23="$millions",1000000,IF($E23="$000",1000,1))/IF($E24="$millions",1000000,IF($E24="$000",1000,1)) -> 0 | R24: =R23*IF($F23="nominal",LOOKUP($F24,Nominal_to_Real,'Input|Rate of change'!S$26:S$32),INDEX('Input|Rate of change'!$C$14:$P$22,MATCH('Calc|Opex forecast'!$F23,'Input|Rate of change'!$C$14:$C$22,0),MATCH('Calc|Opex forecast'!$F24,'Input|Rate of change'!$C$14:$P$14,0)))*IF($E23="$millions",1000000,IF($E23="$000",1000,1))/IF($E24="$millions",1000000,IF($E24="$000",1000,1)) -> 0 | S24: =S23*IF($F23="nominal",LOOKUP($F24,Nominal_to_Real,'Input|Rate of change'!T$26:T$32),INDEX('Input|Rate of change'!$C$14:$P$22,MATCH('Calc|Opex forecast'!$F23,'Input|Rate of change'!$C$14:$C$22,0),MATCH('Calc|Opex forecast'!$F24,'Input|Rate of change'!$C$14:$P$14,0)))*IF($E23="$millions",1000000,IF($E23="$000",1000,1))/IF($E24="$millions",1000000,IF($E24="$000",1000,1)) -> 0 | T24: =T23*IF($F23="nominal",LOOKUP($F24,Nominal_to_Real,'Input|Rate of change'!U$26:U$32),INDEX('Input|Rate of change'!$C$14:$P$22,MATCH('Calc|Opex forecast'!$F23,'Input|Rate of change'!$C$14:$C$22,0),MATCH('Calc|Opex forecast'!$F24,'Input|Rate of change'!$C$14:$P$14,0)))*IF($E23="$millions",1000000,IF($E23="$000",1000,1))/IF($E24="$millions",1000000,IF($E24="$000",1000,1)) -> 0
C26: Reported base year opex | D26: Calculated | E26: =$E$8 -> $millions | F26: =$F$8 -> 2024-06-01 | J26: =J13 -> 0 | K26: =K13 -> 0 | L26: 0 | M26: 266.5256955 | N26: 0 | O26: 0 | P26: 0 | Q26: 0 | R26: 0 | S26: 0
C28: Add back non-recurrent efficiency gains in the base year | D28: Inputs|Reported opex | E28: ='Input|Reported opex'!E69 -> $millions | F28: ='Input|Reported opex'!F69 -> 2024-06-01 | J28: =IF('Input|Reported opex'!J$61='Input|Reported opex'!J$10,'Input|Reported opex'!J69,0) -> 0 | K28: =IF('Input|Reported opex'!K$61='Input|Reported opex'!K$10,'Input|Reported opex'!K69,0) -> 0 | L28: =IF('Input|Reported opex'!L$61='Input|Reported opex'!L$10,'Input|Reported opex'!L69,0) -> 0 | M28: =IF('Input|Reported opex'!M$61='Input|Reported opex'!M$10,'Input|Reported opex'!M69,0) -> 0 | N28: =IF('Input|Reported opex'!N$61='Input|Reported opex'!N$10,'Input|Reported opex'!N69,0) -> 0 | O28: =IF('Input|Reported opex'!O$61='Input|Reported opex'!O$10,'Input|Reported opex'!O69,0) -> 0 | P28: =IF('Input|Reported opex'!P$61='Input|Reported opex'!P$10,'Input|Reported opex'!P69,0) -> 0 | Q28: =IF('Input|Reported opex'!Q$61='Input|Reported opex'!Q$10,'Input|Reported opex'!Q69,0) -> 0 | R28: =IF('Input|Reported opex'!R$61='Input|Reported opex'!R$10,'Input|Reported opex'!R69,0) -> 0 | S28: =IF('Input|Reported opex'!S$61='Input|Reported opex'!S$10,'Input|Reported opex'!S69,0) -> 0
C29: =C28 -> Add back non-recurrent efficiency gains in the base year | D29: Calculated | E29: =$E$8 -> $millions | F29: =$F$8 -> 2024-06-01 | J29: =J28*IF($F28="nominal",LOOKUP($F29,Nominal_to_Real,'Input|Rate of change'!K$26:K$32),INDEX('Input|Rate of change'!$C$14:$P$22,MATCH('Calc|Opex forecast'!$F28,'Input|Rate of change'!$C$14:$C$22,0),MATCH('Calc|Opex forecast'!$F29,'Input|Rate of change'!$C$14:$P$14,0)))*IF($E28="$millions",1000000,IF($E28="$000",1000,1))/IF($E29="$millions",1000000,IF($E29="$000",1000,1)) -> 0 | K29: =K28*IF($F28="nominal",LOOKUP($F29,Nominal_to_Real,'Input|Rate of change'!L$26:L$32),INDEX('Input|Rate of change'!$C$14:$P$22,MATCH('Calc|Opex forecast'!$F28,'Input|Rate of change'!$C$14:$C$22,0),MATCH('Calc|Opex forecast'!$F29,'Input|Rate of change'!$C$14:$P$14,0)))*IF($E28="$millions",1000000,IF($E28="$000",1000,1))/IF($E29="$millions",1000000,IF($E29="$000",1000,1)) -> 0 | L29: =L28*IF($F28="nominal",LOOKUP($F29,Nominal_to_Real,'Input|Rate of change'!M$26:M$32),INDEX('Input|Rate of change'!$C$14:$P$22,MATCH('Calc|Opex forecast'!$F28,'Input|Rate of change'!$C$14:$C$22,0),MATCH('Calc|Opex forecast'!$F29,'Input|Rate of change'!$C$14:$P$14,0)))*IF($E28="$millions",1000000,IF($E28="$000",1000,1))/IF($E29="$millions",1000000,IF($E29="$000",1000,1)) -> 0 | M29: =M28*IF($F28="nominal",LOOKUP($F29,Nominal_to_Real,'Input|Rate of change'!N$26:N$32),INDEX('Input|Rate of change'!$C$14:$P$22,MATCH('Calc|Opex forecast'!$F28,'Input|Rate of change'!$C$14:$C$22,0),MATCH('Calc|Opex forecast'!$F29,'Input|Rate of change'!$C$14:$P$14,0)))*IF($E28="$millions",1000000,IF($E28="$000",1000,1))/IF($E29="$millions",1000000,IF($E29="$000",1000,1)) -> 0 | N29: =N28*IF($F28="nominal",LOOKUP($F29,Nominal_to_Real,'Input|Rate of change'!O$26:O$32),INDEX('Input|Rate of change'!$C$14:$P$22,MATCH('Calc|Opex forecast'!$F28,'Input|Rate of change'!$C$14:$C$22,0),MATCH('Calc|Opex forecast'!$F29,'Input|Rate of change'!$C$14:$P$14,0)))*IF($E28="$millions",1000000,IF($E28="$000",1000,1))/IF($E29="$millions",1000000,IF($E29="$000",1000,1)) -> 0 | O29: =O28*IF($F28="nominal",LOOKUP($F29,Nominal_to_Real,'Input|Rate of change'!P$26:P$32),INDEX('Input|Rate of change'!$C$14:$P$22,MATCH('Calc|Opex forecast'!$F28,'Input|Rate of change'!$C$14:$C$22,0),MATCH('Calc|Opex forecast'!$F29,'Input|Rate of change'!$C$14:$P$14,0)))*IF($E28="$millions",1000000,IF($E28="$000",1000,1))/IF($E29="$millions",1000000,IF($E29="$000",1000,1)) -> 0 | P29: =P28*IF($F28="nominal",LOOKUP($F29,Nominal_to_Real,'Input|Rate of change'!Q$26:Q$32),INDEX('Input|Rate of change'!$C$14:$P$22,MATCH('Calc|Opex forecast'!$F28,'Input|Rate of change'!$C$14:$C$22,0),MATCH('Calc|Opex forecast'!$F29,'Input|Rate of change'!$C$14:$P$14,0)))*IF($E28="$millions",1000000,IF($E28="$000",1000,1))/IF($E29="$millions",1000000,IF($E29="$000",1000,1)) -> 0 | Q29: =Q28*IF($F28="nominal",LOOKUP($F29,Nominal_to_Real,'Input|Rate of change'!R$26:R$32),INDEX('Input|Rate of change'!$C$14:$P$22,MATCH('Calc|Opex forecast'!$F28,'Input|Rate of change'!$C$14:$C$22,0),MATCH('Calc|Opex forecast'!$F29,'Input|Rate of change'!$C$14:$P$14,0)))*IF($E28="$millions",1000000,IF($E28="$000",1000,1))/IF($E29="$millions",1000000,IF($E29="$000",1000,1)) -> 0 | R29: =R28*IF($F28="nominal",LOOKUP($F29,Nominal_to_Real,'Input|Rate of change'!S$26:S$32),INDEX('Input|Rate of change'!$C$14:$P$22,MATCH('Calc|Opex forecast'!$F28,'Input|Rate of change'!$C$14:$C$22,0),MATCH('Calc|Opex forecast'!$F29,'Input|Rate of change'!$C$14:$P$14,0)))*IF($E28="$millions",1000000,IF($E28="$000",1000,1))/IF($E29="$millions",1000000,IF($E29="$000",1000,1)) -> 0 | S29: =S28*IF($F28="nominal",LOOKUP($F29,Nominal_to_Real,'Input|Rate of change'!T$26:T$32),INDEX('Input|Rate of change'!$C$14:$P$22,MATCH('Calc|Opex forecast'!$F28,'Input|Rate of change'!$C$14:$C$22,0),MATCH('Calc|Opex forecast'!$F29,'Input|Rate of change'!$C$14:$P$14,0)))*IF($E28="$millions",1000000,IF($E28="$000",1000,1))/IF($E29="$millions",1000000,IF($E29="$000",1000,1)) -> 0 | T29: =T28*IF($F28="nominal",LOOKUP($F29,Nominal_to_Real,'Input|Rate of change'!U$26:U$32),INDEX('Input|Rate of change'!$C$14:$P$22,MATCH('Calc|Opex forecast'!$F28,'Input|Rate of change'!$C$14:$C$22,0),MATCH('Calc|Opex forecast'!$F29,'Input|Rate of change'!$C$14:$P$14,0)))*IF($E28="$millions",1000000,IF($E28="$000",1000,1))/IF($E29="$millions",1000000,IF($E29="$000",1000,1)) -> 0
C31: Add estimated change in opex between the base year and the final year | D31: Calculated | E31: =$E$8 -> $millions | F31: =$F$8 -> 2024-06-01 | J31: =IF(YEAR(J$4)=PPLastYear,-SUM($J15:$S15)+SUM($J17:$S17),0) -> 0 | K31: 0 | L31: 0 | M31: 0 | N31: 7.135281489 | O31: 0 | P31: 0 | Q31: 0 | R31: 0 | S31: 0
C33: Estimated final year opex | D33: Calculated | E33: =$E$8 -> $millions | F33: =$F$8 -> 2024-06-01 | J33: =IF(YEAR(J$4)=PPLastYear,SUM($J26:$S26,$J29:$S29,$J31:$S31),0) -> 0 | K33: 0 | L33: 0 | M33: 0 | N33: 273.660977 | O33: 0 | P33: 0 | Q33: 0 | R33: 0 | S33: 0
C35: Remove estimated final year opex for categories forecast specifically | D35: Calculated | E35: =$E$8 -> $millions | F35: =$F$8 -> 2024-06-01 | J35: =IF(YEAR(J$4)=PPLastYear,-(SUM($J20:$S20)-SUM($J22:$S22)+SUM($J24:$S24)),0) -> 0 | K35: 0 | L35: 0 | M35: 0 | N35: -0.04222337151 | O35: 0 | P35: 0 | Q35: 0 | R35: 0 | S35: 0
C37: ='Input|Reported opex'!$C$63 -> Remove Lease costs | D37: Inputs|Reported opex | E37: ='Input|Reported opex'!E63 -> $millions | F37: ='Input|Reported opex'!F63 -> 2024-06-01 | J37: =IF(YEAR(J$4)=PPLastYear,'Input|Reported opex'!J63,0) -> 0 | K37: =IF(YEAR(K$4)=PPLastYear,'Input|Reported opex'!K63,0) -> 0 | L37: =IF(YEAR(L$4)=PPLastYear,'Input|Reported opex'!L63,0) -> 0 | M37: =IF(YEAR(M$4)=PPLastYear,'Input|Reported opex'!M63,0) -> 0 | N37: =IF(YEAR(N$4)=PPLastYear,'Input|Reported opex'!N63,0) -> -5.851587884 | O37: =IF(YEAR(O$4)=PPLastYear,'Input|Reported opex'!O63,0) -> 0 | P37: =IF(YEAR(P$4)=PPLastYear,'Input|Reported opex'!P63,0) -> 0 | Q37: =IF(YEAR(Q$4)=PPLastYear,'Input|Reported opex'!Q63,0) -> 0 | R37: =IF(YEAR(R$4)=PPLastYear,'Input|Reported opex'!R63,0) -> 0 | S37: =IF(YEAR(S$4)=PPLastYear,'Input|Reported opex'!S63,0) -> 0
C38: =C37 -> Remove Lease costs | D38: Calculated | E38: =$E$8 -> $millions | F38: =$F$8 -> 2024-06-01 | J38: =J37*IF($F37="nominal",LOOKUP($F38,Nominal_to_Real,'Input|Rate of change'!K$26:K$32),INDEX('Input|Rate of change'!$C$14:$P$22,MATCH('Calc|Opex forecast'!$F37,'Input|Rate of change'!$C$14:$C$22,0),MATCH('Calc|Opex forecast'!$F38,'Input|Rate of change'!$C$14:$P$14,0)))*IF($E37="$millions",1000000,IF($E37="$000",1000,1))/IF($E38="$millions",1000000,IF($E38="$000",1000,1)) -> 0 | K38: =K37*IF($F37="nominal",LOOKUP($F38,Nominal_to_Real,'Input|Rate of change'!L$26:L$32),INDEX('Input|Rate of change'!$C$14:$P$22,MATCH('Calc|Opex forecast'!$F37,'Input|Rate of change'!$C$14:$C$22,0),MATCH('Calc|Opex forecast'!$F38,'Input|Rate of change'!$C$14:$P$14,0)))*IF($E37="$millions",1000000,IF($E37="$000",1000,1))/IF($E38="$millions",1000000,IF($E38="$000",1000,1)) -> 0 | L38: =L37*IF($F37="nominal",LOOKUP($F38,Nominal_to_Real,'Input|Rate of change'!M$26:M$32),INDEX('Input|Rate of change'!$C$14:$P$22,MATCH('Calc|Opex forecast'!$F37,'Input|Rate of change'!$C$14:$C$22,0),MATCH('Calc|Opex forecast'!$F38,'Input|Rate of change'!$C$14:$P$14,0)))*IF($E37="$millions",1000000,IF($E37="$000",1000,1))/IF($E38="$millions",1000000,IF($E38="$000",1000,1)) -> 0 | M38: =M37*IF($F37="nominal",LOOKUP($F38,Nominal_to_Real,'Input|Rate of change'!N$26:N$32),INDEX('Input|Rate of change'!$C$14:$P$22,MATCH('Calc|Opex forecast'!$F37,'Input|Rate of change'!$C$14:$C$22,0),MATCH('Calc|Opex forecast'!$F38,'Input|Rate of change'!$C$14:$P$14,0)))*IF($E37="$millions",1000000,IF($E37="$000",1000,1))/IF($E38="$millions",1000000,IF($E38="$000",1000,1)) -> 0 | N38: =N37*IF($F37="nominal",LOOKUP($F38,Nominal_to_Real,'Input|Rate of change'!O$26:O$32),INDEX('Input|Rate of change'!$C$14:$P$22,MATCH('Calc|Opex forecast'!$F37,'Input|Rate of change'!$C$14:$C$22,0),MATCH('Calc|Opex forecast'!$F38,'Input|Rate of change'!$C$14:$P$14,0)))*IF($E37="$millions",1000000,IF($E37="$000",1000,1))/IF($E38="$millions",1000000,IF($E38="$000",1000,1)) -> -5.851587884 | O38: =O37*IF($F37="nominal",LOOKUP($F38,Nominal_to_Real,'Input|Rate of change'!P$26:P$32),INDEX('Input|Rate of change'!$C$14:$P$22,MATCH('Calc|Opex forecast'!$F37,'Input|Rate of change'!$C$14:$C$22,0),MATCH('Calc|Opex forecast'!$F38,'Input|Rate of change'!$C$14:$P$14,0)))*IF($E37="$millions",1000000,IF($E37="$000",1000,1))/IF($E38="$millions",1000000,IF($E38="$000",1000,1)) -> 0 | P38: =P37*IF($F37="nominal",LOOKUP($F38,Nominal_to_Real,'Input|Rate of change'!Q$26:Q$32),INDEX('Input|Rate of change'!$C$14:$P$22,MATCH('Calc|Opex forecast'!$F37,'Input|Rate of change'!$C$14:$C$22,0),MATCH('Calc|Opex forecast'!$F38,'Input|Rate of change'!$C$14:$P$14,0)))*IF($E37="$millions",1000000,IF($E37="$000",1000,1))/IF($E38="$millions",1000000,IF($E38="$000",1000,1)) -> 0 | Q38: =Q37*IF($F37="nominal",LOOKUP($F38,Nominal_to_Real,'Input|Rate of change'!R$26:R$32),INDEX('Input|Rate of change'!$C$14:$P$22,MATCH('Calc|Opex forecast'!$F37,'Input|Rate of change'!$C$14:$C$22,0),MATCH('Calc|Opex forecast'!$F38,'Input|Rate of change'!$C$14:$P$14,0)))*IF($E37="$millions",1000000,IF($E37="$000",1000,1))/IF($E38="$millions",1000000,IF($E38="$000",1000,1)) -> 0 | R38: =R37*IF($F37="nominal",LOOKUP($F38,Nominal_to_Real,'Input|Rate of change'!S$26:S$32),INDEX('Input|Rate of change'!$C$14:$P$22,MATCH('Calc|Opex forecast'!$F37,'Input|Rate of change'!$C$14:$C$22,0),MATCH('Calc|Opex forecast'!$F38,'Input|Rate of change'!$C$14:$P$14,0)))*IF($E37="$millions",1000000,IF($E37="$000",1000,1))/IF($E38="$millions",1000000,IF($E38="$000",1000,1)) -> 0 | S38: =S37*IF($F37="nominal",LOOKUP($F38,Nominal_to_Real,'Input|Rate of change'!T$26:T$32),INDEX('Input|Rate of change'!$C$14:$P$22,MATCH('Calc|Opex forecast'!$F37,'Input|Rate of change'!$C$14:$C$22,0),MATCH('Calc|Opex forecast'!$F38,'Input|Rate of change'!$C$14:$P$14,0)))*IF($E37="$millions",1000000,IF($E37="$000",1000,1))/IF($E38="$millions",1000000,IF($E38="$000",1000,1)) -> 0 | T38: =T37*IF($F37="nominal",LOOKUP($F38,Nominal_to_Real,'Input|Rate of change'!U$26:U$32),INDEX('Input|Rate of change'!$C$14:$P$22,MATCH('Calc|Opex forecast'!$F37,'Input|Rate of change'!$C$14:$C$22,0),MATCH('Calc|Opex forecast'!$F38,'Input|Rate of change'!$C$14:$P$14,0)))*IF($E37="$millions",1000000,IF($E37="$000",1000,1))/IF($E38="$millions",1000000,IF($E38="$000",1000,1)) -> 0
C40: ='Input|Reported opex'!$C$64 -> Add SaaS | D40: Inputs|Reported opex | E40: ='Input|Reported opex'!$E$64 -> $millions | F40: ='Input|Reported opex'!$F$64 -> 2024-06-01 | J40: =IF(YEAR(J$4)=PPLastYear,'Input|Reported opex'!J64,0) -> 0 | K40: =IF(YEAR(K$4)=PPLastYear,'Input|Reported opex'!K64,0) -> 0 | L40: =IF(YEAR(L$4)=PPLastYear,'Input|Reported opex'!L64,0) -> 0 | M40: =IF(YEAR(M$4)=PPLastYear,'Input|Reported opex'!M64,0) -> 0 | N40: =IF(YEAR(N$4)=PPLastYear,'Input|Reported opex'!N64,0) -> 0.9180633926 | O40: =IF(YEAR(O$4)=PPLastYear,'Input|Reported opex'!O64,0) -> 0 | P40: =IF(YEAR(P$4)=PPLastYear,'Input|Reported opex'!P64,0) -> 0 | Q40: =IF(YEAR(Q$4)=PPLastYear,'Input|Reported opex'!Q64,0) -> 0 | R40: =IF(YEAR(R$4)=PPLastYear,'Input|Reported opex'!R64,0) -> 0 | S40: =IF(YEAR(S$4)=PPLastYear,'Input|Reported opex'!S64,0) -> 0
C41: =C40 -> Add SaaS | D41: Calculated | E41: =$E$8 -> $millions | F41: =$F$8 -> 2024-06-01 | J41: =J40*IF($F40="nominal",LOOKUP($F41,Nominal_to_Real,'Input|Rate of change'!K$26:K$32),INDEX('Input|Rate of change'!$C$14:$P$22,MATCH('Calc|Opex forecast'!$F40,'Input|Rate of change'!$C$14:$C$22,0),MATCH('Calc|Opex forecast'!$F41,'Input|Rate of change'!$C$14:$P$14,0)))*IF($E40="$millions",1000000,IF($E40="$000",1000,1))/IF($E41="$millions",1000000,IF($E41="$000",1000,1)) -> 0 | K41: =K40*IF($F40="nominal",LOOKUP($F41,Nominal_to_Real,'Input|Rate of change'!L$26:L$32),INDEX('Input|Rate of change'!$C$14:$P$22,MATCH('Calc|Opex forecast'!$F40,'Input|Rate of change'!$C$14:$C$22,0),MATCH('Calc|Opex forecast'!$F41,'Input|Rate of change'!$C$14:$P$14,0)))*IF($E40="$millions",1000000,IF($E40="$000",1000,1))/IF($E41="$millions",1000000,IF($E41="$000",1000,1)) -> 0 | L41: =L40*IF($F40="nominal",LOOKUP($F41,Nominal_to_Real,'Input|Rate of change'!M$26:M$32),INDEX('Input|Rate of change'!$C$14:$P$22,MATCH('Calc|Opex forecast'!$F40,'Input|Rate of change'!$C$14:$C$22,0),MATCH('Calc|Opex forecast'!$F41,'Input|Rate of change'!$C$14:$P$14,0)))*IF($E40="$millions",1000000,IF($E40="$000",1000,1))/IF($E41="$millions",1000000,IF($E41="$000",1000,1)) -> 0 | M41: =M40*IF($F40="nominal",LOOKUP($F41,Nominal_to_Real,'Input|Rate of change'!N$26:N$32),INDEX('Input|Rate of change'!$C$14:$P$22,MATCH('Calc|Opex forecast'!$F40,'Input|Rate of change'!$C$14:$C$22,0),MATCH('Calc|Opex forecast'!$F41,'Input|Rate of change'!$C$14:$P$14,0)))*IF($E40="$millions",1000000,IF($E40="$000",1000,1))/IF($E41="$millions",1000000,IF($E41="$000",1000,1)) -> 0 | N41: =N40*IF($F40="nominal",LOOKUP($F41,Nominal_to_Real,'Input|Rate of change'!O$26:O$32),INDEX('Input|Rate of change'!$C$14:$P$22,MATCH('Calc|Opex forecast'!$F40,'Input|Rate of change'!$C$14:$C$22,0),MATCH('Calc|Opex forecast'!$F41,'Input|Rate of change'!$C$14:$P$14,0)))*IF($E40="$millions",1000000,IF($E40="$000",1000,1))/IF($E41="$millions",1000000,IF($E41="$000",1000,1)) -> 0.9180633926 | O41: =O40*IF($F40="nominal",LOOKUP($F41,Nominal_to_Real,'Input|Rate of change'!P$26:P$32),INDEX('Input|Rate of change'!$C$14:$P$22,MATCH('Calc|Opex forecast'!$F40,'Input|Rate of change'!$C$14:$C$22,0),MATCH('Calc|Opex forecast'!$F41,'Input|Rate of change'!$C$14:$P$14,0)))*IF($E40="$millions",1000000,IF($E40="$000",1000,1))/IF($E41="$millions",1000000,IF($E41="$000",1000,1)) -> 0 | P41: =P40*IF($F40="nominal",LOOKUP($F41,Nominal_to_Real,'Input|Rate of change'!Q$26:Q$32),INDEX('Input|Rate of change'!$C$14:$P$22,MATCH('Calc|Opex forecast'!$F40,'Input|Rate of change'!$C$14:$C$22,0),MATCH('Calc|Opex forecast'!$F41,'Input|Rate of change'!$C$14:$P$14,0)))*IF($E40="$millions",1000000,IF($E40="$000",1000,1))/IF($E41="$millions",1000000,IF($E41="$000",1000,1)) -> 0 | Q41: =Q40*IF($F40="nominal",LOOKUP($F41,Nominal_to_Real,'Input|Rate of change'!R$26:R$32),INDEX('Input|Rate of change'!$C$14:$P$22,MATCH('Calc|Opex forecast'!$F40,'Input|Rate of change'!$C$14:$C$22,0),MATCH('Calc|Opex forecast'!$F41,'Input|Rate of change'!$C$14:$P$14,0)))*IF($E40="$millions",1000000,IF($E40="$000",1000,1))/IF($E41="$millions",1000000,IF($E41="$000",1000,1)) -> 0 | R41: =R40*IF($F40="nominal",LOOKUP($F41,Nominal_to_Real,'Input|Rate of change'!S$26:S$32),INDEX('Input|Rate of change'!$C$14:$P$22,MATCH('Calc|Opex forecast'!$F40,'Input|Rate of change'!$C$14:$C$22,0),MATCH('Calc|Opex forecast'!$F41,'Input|Rate of change'!$C$14:$P$14,0)))*IF($E40="$millions",1000000,IF($E40="$000",1000,1))/IF($E41="$millions",1000000,IF($E41="$000",1000,1)) -> 0 | S41: =S40*IF($F40="nominal",LOOKUP($F41,Nominal_to_Real,'Input|Rate of change'!T$26:T$32),INDEX('Input|Rate of change'!$C$14:$P$22,MATCH('Calc|Opex forecast'!$F40,'Input|Rate of change'!$C$14:$C$22,0),MATCH('Calc|Opex forecast'!$F41,'Input|Rate of change'!$C$14:$P$14,0)))*IF($E40="$millions",1000000,IF($E40="$000",1000,1))/IF($E41="$millions",1000000,IF($E41="$000",1000,1)) -> 0 | T41: =T40*IF($F40="nominal",LOOKUP($F41,Nominal_to_Real,'Input|Rate of change'!U$26:U$32),INDEX('Input|Rate of change'!$C$14:$P$22,MATCH('Calc|Opex forecast'!$F40,'Input|Rate of change'!$C$14:$C$22,0),MATCH('Calc|Opex forecast'!$F41,'Input|Rate of change'!$C$14:$P$14,0)))*IF($E40="$millions",1000000,IF($E40="$000",1000,1))/IF($E41="$millions",1000000,IF($E41="$000",1000,1)) -> 0
C43: ='Input|Reported opex'!$C$65 -> Adjustment 3 | D43: Inputs|Reported opex | E43: ='Input|Reported opex'!$E$65 -> $millions | F43: ='Input|Reported opex'!$F$65 -> 2024-06-01 | J43: =IF(YEAR(J$4)=PPLastYear,'Input|Reported opex'!J65,0) -> 0 | K43: =IF(YEAR(K$4)=PPLastYear,'Input|Reported opex'!K65,0) -> 0 | L43: =IF(YEAR(L$4)=PPLastYear,'Input|Reported opex'!L65,0) -> 0 | M43: =IF(YEAR(M$4)=PPLastYear,'Input|Reported opex'!M65,0) -> 0 | N43: =IF(YEAR(N$4)=PPLastYear,'Input|Reported opex'!N65,0) -> 0 | O43: =IF(YEAR(O$4)=PPLastYear,'Input|Reported opex'!O65,0) -> 0 | P43: =IF(YEAR(P$4)=PPLastYear,'Input|Reported opex'!P65,0) -> 0 | Q43: =IF(YEAR(Q$4)=PPLastYear,'Input|Reported opex'!Q65,0) -> 0 | R43: =IF(YEAR(R$4)=PPLastYear,'Input|Reported opex'!R65,0) -> 0 | S43: =IF(YEAR(S$4)=PPLastYear,'Input|Reported opex'!S65,0) -> 0
C44: =C43 -> Adjustment 3 | D44: Calculated | E44: =$E$8 -> $millions | F44: =$F$8 -> 2024-06-01 | J44: =J43*IF($F43="nominal",LOOKUP($F44,Nominal_to_Real,'Input|Rate of change'!K$26:K$32),INDEX('Input|Rate of change'!$C$14:$P$22,MATCH('Calc|Opex forecast'!$F43,'Input|Rate of change'!$C$14:$C$22,0),MATCH('Calc|Opex forecast'!$F44,'Input|Rate of change'!$C$14:$P$14,0)))*IF($E43="$millions",1000000,IF($E43="$000",1000,1))/IF($E44="$millions",1000000,IF($E44="$000",1000,1)) -> 0 | K44: =K43*IF($F43="nominal",LOOKUP($F44,Nominal_to_Real,'Input|Rate of change'!L$26:L$32),INDEX('Input|Rate of change'!$C$14:$P$22,MATCH('Calc|Opex forecast'!$F43,'Input|Rate of change'!$C$14:$C$22,0),MATCH('Calc|Opex forecast'!$F44,'Input|Rate of change'!$C$14:$P$14,0)))*IF($E43="$millions",1000000,IF($E43="$000",1000,1))/IF($E44="$millions",1000000,IF($E44="$000",1000,1)) -> 0 | L44: =L43*IF($F43="nominal",LOOKUP($F44,Nominal_to_Real,'Input|Rate of change'!M$26:M$32),INDEX('Input|Rate of change'!$C$14:$P$22,MATCH('Calc|Opex forecast'!$F43,'Input|Rate of change'!$C$14:$C$22,0),MATCH('Calc|Opex forecast'!$F44,'Input|Rate of change'!$C$14:$P$14,0)))*IF($E43="$millions",1000000,IF($E43="$000",1000,1))/IF($E44="$millions",1000000,IF($E44="$000",1000,1)) -> 0 | M44: =M43*IF($F43="nominal",LOOKUP($F44,Nominal_to_Real,'Input|Rate of change'!N$26:N$32),INDEX('Input|Rate of change'!$C$14:$P$22,MATCH('Calc|Opex forecast'!$F43,'Input|Rate of change'!$C$14:$C$22,0),MATCH('Calc|Opex forecast'!$F44,'Input|Rate of change'!$C$14:$P$14,0)))*IF($E43="$millions",1000000,IF($E43="$000",1000,1))/IF($E44="$millions",1000000,IF($E44="$000",1000,1)) -> 0 | N44: =N43*IF($F43="nominal",LOOKUP($F44,Nominal_to_Real,'Input|Rate of change'!O$26:O$32),INDEX('Input|Rate of change'!$C$14:$P$22,MATCH('Calc|Opex forecast'!$F43,'Input|Rate of change'!$C$14:$C$22,0),MATCH('Calc|Opex forecast'!$F44,'Input|Rate of change'!$C$14:$P$14,0)))*IF($E43="$millions",1000000,IF($E43="$000",1000,1))/IF($E44="$millions",1000000,IF($E44="$000",1000,1)) -> 0 | O44: =O43*IF($F43="nominal",LOOKUP($F44,Nominal_to_Real,'Input|Rate of change'!P$26:P$32),INDEX('Input|Rate of change'!$C$14:$P$22,MATCH('Calc|Opex forecast'!$F43,'Input|Rate of change'!$C$14:$C$22,0),MATCH('Calc|Opex forecast'!$F44,'Input|Rate of change'!$C$14:$P$14,0)))*IF($E43="$millions",1000000,IF($E43="$000",1000,1))/IF($E44="$millions",1000000,IF($E44="$000",1000,1)) -> 0 | P44: =P43*IF($F43="nominal",LOOKUP($F44,Nominal_to_Real,'Input|Rate of change'!Q$26:Q$32),INDEX('Input|Rate of change'!$C$14:$P$22,MATCH('Calc|Opex forecast'!$F43,'Input|Rate of change'!$C$14:$C$22,0),MATCH('Calc|Opex forecast'!$F44,'Input|Rate of change'!$C$14:$P$14,0)))*IF($E43="$millions",1000000,IF($E43="$000",1000,1))/IF($E44="$millions",1000000,IF($E44="$000",1000,1)) -> 0 | Q44: =Q43*IF($F43="nominal",LOOKUP($F44,Nominal_to_Real,'Input|Rate of change'!R$26:R$32),INDEX('Input|Rate of change'!$C$14:$P$22,MATCH('Calc|Opex forecast'!$F43,'Input|Rate of change'!$C$14:$C$22,0),MATCH('Calc|Opex forecast'!$F44,'Input|Rate of change'!$C$14:$P$14,0)))*IF($E43="$millions",1000000,IF($E43="$000",1000,1))/IF($E44="$millions",1000000,IF($E44="$000",1000,1)) -> 0 | R44: =R43*IF($F43="nominal",LOOKUP($F44,Nominal_to_Real,'Input|Rate of change'!S$26:S$32),INDEX('Input|Rate of change'!$C$14:$P$22,MATCH('Calc|Opex forecast'!$F43,'Input|Rate of change'!$C$14:$C$22,0),MATCH('Calc|Opex forecast'!$F44,'Input|Rate of change'!$C$14:$P$14,0)))*IF($E43="$millions",1000000,IF($E43="$000",1000,1))/IF($E44="$millions",1000000,IF($E44="$000",1000,1)) -> 0 | S44: =S43*IF($F43="nominal",LOOKUP($F44,Nominal_to_Real,'Input|Rate of change'!T$26:T$32),INDEX('Input|Rate of change'!$C$14:$P$22,MATCH('Calc|Opex forecast'!$F43,'Input|Rate of change'!$C$14:$C$22,0),MATCH('Calc|Opex forecast'!$F44,'Input|Rate of change'!$C$14:$P$14,0)))*IF($E43="$millions",1000000,IF($E43="$000",1000,1))/IF($E44="$millions",1000000,IF($E44="$000",1000,1)) -> 0 | T44: =T43*IF($F43="nominal",LOOKUP($F44,Nominal_to_Real,'Input|Rate of change'!U$26:U$32),INDEX('Input|Rate of change'!$C$14:$P$22,MATCH('Calc|Opex forecast'!$F43,'Input|Rate of change'!$C$14:$C$22,0),MATCH('Calc|Opex forecast'!$F44,'Input|Rate of change'!$C$14:$P$14,0)))*IF($E43="$millions",1000000,IF($E43="$000",1000,1))/IF($E44="$millions",1000000,IF($E44="$000",1000,1)) -> 0
C46: ='Input|Reported opex'!$C$66 -> Adjustment 4 | D46: Inputs|Reported opex | E46: ='Input|Reported opex'!$E$66 -> $millions | F46: ='Input|Reported opex'!$F$66 -> 2024-06-01 | J46: =IF(YEAR(J$4)=PPLastYear,'Input|Reported opex'!J66,0) -> 0 | K46: =IF(YEAR(K$4)=PPLastYear,'Input|Reported opex'!K66,0) -> 0 | L46: =IF(YEAR(L$4)=PPLastYear,'Input|Reported opex'!L66,0) -> 0 | M46: =IF(YEAR(M$4)=PPLastYear,'Input|Reported opex'!M66,0) -> 0 | N46: =IF(YEAR(N$4)=PPLastYear,'Input|Reported opex'!N66,0) -> 0 | O46: =IF(YEAR(O$4)=PPLastYear,'Input|Reported opex'!O66,0) -> 0 | P46: =IF(YEAR(P$4)=PPLastYear,'Input|Reported opex'!P66,0) -> 0 | Q46: =IF(YEAR(Q$4)=PPLastYear,'Input|Reported opex'!Q66,0) -> 0 | R46: =IF(YEAR(R$4)=PPLastYear,'Input|Reported opex'!R66,0) -> 0 | S46: =IF(YEAR(S$4)=PPLastYear,'Input|Reported opex'!S66,0) -> 0
C47: =C46 -> Adjustment 4 | D47: Calculated | E47: =$E$8 -> $millions | F47: =$F$8 -> 2024-06-01 | J47: =J46*IF($F46="nominal",LOOKUP($F47,Nominal_to_Real,'Input|Rate of change'!K$26:K$32),INDEX('Input|Rate of change'!$C$14:$P$22,MATCH('Calc|Opex forecast'!$F46,'Input|Rate of change'!$C$14:$C$22,0),MATCH('Calc|Opex forecast'!$F47,'Input|Rate of change'!$C$14:$P$14,0)))*IF($E46="$millions",1000000,IF($E46="$000",1000,1))/IF($E47="$millions",1000000,IF($E47="$000",1000,1)) -> 0 | K47: =K46*IF($F46="nominal",LOOKUP($F47,Nominal_to_Real,'Input|Rate of change'!L$26:L$32),INDEX('Input|Rate of change'!$C$14:$P$22,MATCH('Calc|Opex forecast'!$F46,'Input|Rate of change'!$C$14:$C$22,0),MATCH('Calc|Opex forecast'!$F47,'Input|Rate of change'!$C$14:$P$14,0)))*IF($E46="$millions",1000000,IF($E46="$000",1000,1))/IF($E47="$millions",1000000,IF($E47="$000",1000,1)) -> 0 | L47: =L46*IF($F46="nominal",LOOKUP($F47,Nominal_to_Real,'Input|Rate of change'!M$26:M$32),INDEX('Input|Rate of change'!$C$14:$P$22,MATCH('Calc|Opex forecast'!$F46,'Input|Rate of change'!$C$14:$C$22,0),MATCH('Calc|Opex forecast'!$F47,'Input|Rate of change'!$C$14:$P$14,0)))*IF($E46="$millions",1000000,IF($E46="$000",1000,1))/IF($E47="$millions",1000000,IF($E47="$000",1000,1)) -> 0 | M47: =M46*IF($F46="nominal",LOOKUP($F47,Nominal_to_Real,'Input|Rate of change'!N$26:N$32),INDEX('Input|Rate of change'!$C$14:$P$22,MATCH('Calc|Opex forecast'!$F46,'Input|Rate of change'!$C$14:$C$22,0),MATCH('Calc|Opex forecast'!$F47,'Input|Rate of change'!$C$14:$P$14,0)))*IF($E46="$millions",1000000,IF($E46="$000",1000,1))/IF($E47="$millions",1000000,IF($E47="$000",1000,1)) -> 0 | N47: =N46*IF($F46="nominal",LOOKUP($F47,Nominal_to_Real,'Input|Rate of change'!O$26:O$32),INDEX('Input|Rate of change'!$C$14:$P$22,MATCH('Calc|Opex forecast'!$F46,'Input|Rate of change'!$C$14:$C$22,0),MATCH('Calc|Opex forecast'!$F47,'Input|Rate of change'!$C$14:$P$14,0)))*IF($E46="$millions",1000000,IF($E46="$000",1000,1))/IF($E47="$millions",1000000,IF($E47="$000",1000,1)) -> 0 | O47: =O46*IF($F46="nominal",LOOKUP($F47,Nominal_to_Real,'Input|Rate of change'!P$26:P$32),INDEX('Input|Rate of change'!$C$14:$P$22,MATCH('Calc|Opex forecast'!$F46,'Input|Rate of change'!$C$14:$C$22,0),MATCH('Calc|Opex forecast'!$F47,'Input|Rate of change'!$C$14:$P$14,0)))*IF($E46="$millions",1000000,IF($E46="$000",1000,1))/IF($E47="$millions",1000000,IF($E47="$000",1000,1)) -> 0 | P47: =P46*IF($F46="nominal",LOOKUP($F47,Nominal_to_Real,'Input|Rate of change'!Q$26:Q$32),INDEX('Input|Rate of change'!$C$14:$P$22,MATCH('Calc|Opex forecast'!$F46,'Input|Rate of change'!$C$14:$C$22,0),MATCH('Calc|Opex forecast'!$F47,'Input|Rate of change'!$C$14:$P$14,0)))*IF($E46="$millions",1000000,IF($E46="$000",1000,1))/IF($E47="$millions",1000000,IF($E47="$000",1000,1)) -> 0 | Q47: =Q46*IF($F46="nominal",LOOKUP($F47,Nominal_to_Real,'Input|Rate of change'!R$26:R$32),INDEX('Input|Rate of change'!$C$14:$P$22,MATCH('Calc|Opex forecast'!$F46,'Input|Rate of change'!$C$14:$C$22,0),MATCH('Calc|Opex forecast'!$F47,'Input|Rate of change'!$C$14:$P$14,0)))*IF($E46="$millions",1000000,IF($E46="$000",1000,1))/IF($E47="$millions",1000000,IF($E47="$000",1000,1)) -> 0 | R47: =R46*IF($F46="nominal",LOOKUP($F47,Nominal_to_Real,'Input|Rate of change'!S$26:S$32),INDEX('Input|Rate of change'!$C$14:$P$22,MATCH('Calc|Opex forecast'!$F46,'Input|Rate of change'!$C$14:$C$22,0),MATCH('Calc|Opex forecast'!$F47,'Input|Rate of change'!$C$14:$P$14,0)))*IF($E46="$millions",1000000,IF($E46="$000",1000,1))/IF($E47="$millions",1000000,IF($E47="$000",1000,1)) -> 0 | S47: =S46*IF($F46="nominal",LOOKUP($F47,Nominal_to_Real,'Input|Rate of change'!T$26:T$32),INDEX('Input|Rate of change'!$C$14:$P$22,MATCH('Calc|Opex forecast'!$F46,'Input|Rate of change'!$C$14:$C$22,0),MATCH('Calc|Opex forecast'!$F47,'Input|Rate of change'!$C$14:$P$14,0)))*IF($E46="$millions",1000000,IF($E46="$000",1000,1))/IF($E47="$millions",1000000,IF($E47="$000",1000,1)) -> 0 | T47: =T46*IF($F46="nominal",LOOKUP($F47,Nominal_to_Real,'Input|Rate of change'!U$26:U$32),INDEX('Input|Rate of change'!$C$14:$P$22,MATCH('Calc|Opex forecast'!$F46,'Input|Rate of change'!$C$14:$C$22,0),MATCH('Calc|Opex forecast'!$F47,'Input|Rate of change'!$C$14:$P$14,0)))*IF($E46="$millions",1000000,IF($E46="$000",1000,1))/IF($E47="$millions",1000000,IF($E47="$000",1000,1)) -> 0
C49: ='Input|Reported opex'!$C$67 -> Adjustment 5 | D49: Inputs|Reported opex | E49: ='Input|Reported opex'!$E$67 -> $millions | F49: ='Input|Reported opex'!$F$67 -> 2024-06-01 | J49: =IF(YEAR(J$4)=PPLastYear,'Input|Reported opex'!J67,0) -> 0 | K49: =IF(YEAR(K$4)=PPLastYear,'Input|Reported opex'!K67,0) -> 0 | L49: =IF(YEAR(L$4)=PPLastYear,'Input|Reported opex'!L67,0) -> 0 | M49: =IF(YEAR(M$4)=PPLastYear,'Input|Reported opex'!M67,0) -> 0 | N49: =IF(YEAR(N$4)=PPLastYear,'Input|Reported opex'!N67,0) -> 0 | O49: =IF(YEAR(O$4)=PPLastYear,'Input|Reported opex'!O67,0) -> 0 | P49: =IF(YEAR(P$4)=PPLastYear,'Input|Reported opex'!P67,0) -> 0 | Q49: =IF(YEAR(Q$4)=PPLastYear,'Input|Reported opex'!Q67,0) -> 0 | R49: =IF(YEAR(R$4)=PPLastYear,'Input|Reported opex'!R67,0) -> 0 | S49: =IF(YEAR(S$4)=PPLastYear,'Input|Reported opex'!S67,0) -> 0
C50: =C49 -> Adjustment 5 | D50: Calculated | E50: =$E$8 -> $millions | F50: =$F$8 -> 2024-06-01 | J50: =J49*IF($F49="nominal",LOOKUP($F50,Nominal_to_Real,'Input|Rate of change'!K$26:K$32),INDEX('Input|Rate of change'!$C$14:$P$22,MATCH('Calc|Opex forecast'!$F49,'Input|Rate of change'!$C$14:$C$22,0),MATCH('Calc|Opex forecast'!$F50,'Input|Rate of change'!$C$14:$P$14,0)))*IF($E49="$millions",1000000,IF($E49="$000",1000,1))/IF($E50="$millions",1000000,IF($E50="$000",1000,1)) -> 0 | K50: =K49*IF($F49="nominal",LOOKUP($F50,Nominal_to_Real,'Input|Rate of change'!L$26:L$32),INDEX('Input|Rate of change'!$C$14:$P$22,MATCH('Calc|Opex forecast'!$F49,'Input|Rate of change'!$C$14:$C$22,0),MATCH('Calc|Opex forecast'!$F50,'Input|Rate of change'!$C$14:$P$14,0)))*IF($E49="$millions",1000000,IF($E49="$000",1000,1))/IF($E50="$millions",1000000,IF($E50="$000",1000,1)) -> 0 | L50: =L49*IF($F49="nominal",LOOKUP($F50,Nominal_to_Real,'Input|Rate of change'!M$26:M$32),INDEX('Input|Rate of change'!$C$14:$P$22,MATCH('Calc|Opex forecast'!$F49,'Input|Rate of change'!$C$14:$C$22,0),MATCH('Calc|Opex forecast'!$F50,'Input|Rate of change'!$C$14:$P$14,0)))*IF($E49="$millions",1000000,IF($E49="$000",1000,1))/IF($E50="$millions",1000000,IF($E50="$000",1000,1)) -> 0 | M50: =M49*IF($F49="nominal",LOOKUP($F50,Nominal_to_Real,'Input|Rate of change'!N$26:N$32),INDEX('Input|Rate of change'!$C$14:$P$22,MATCH('Calc|Opex forecast'!$F49,'Input|Rate of change'!$C$14:$C$22,0),MATCH('Calc|Opex forecast'!$F50,'Input|Rate of change'!$C$14:$P$14,0)))*IF($E49="$millions",1000000,IF($E49="$000",1000,1))/IF($E50="$millions",1000000,IF($E50="$000",1000,1)) -> 0 | N50: =N49*IF($F49="nominal",LOOKUP($F50,Nominal_to_Real,'Input|Rate of change'!O$26:O$32),INDEX('Input|Rate of change'!$C$14:$P$22,MATCH('Calc|Opex forecast'!$F49,'Input|Rate of change'!$C$14:$C$22,0),MATCH('Calc|Opex forecast'!$F50,'Input|Rate of change'!$C$14:$P$14,0)))*IF($E49="$millions",1000000,IF($E49="$000",1000,1))/IF($E50="$millions",1000000,IF($E50="$000",1000,1)) -> 0 | O50: =O49*IF($F49="nominal",LOOKUP($F50,Nominal_to_Real,'Input|Rate of change'!P$26:P$32),INDEX('Input|Rate of change'!$C$14:$P$22,MATCH('Calc|Opex forecast'!$F49,'Input|Rate of change'!$C$14:$C$22,0),MATCH('Calc|Opex forecast'!$F50,'Input|Rate of change'!$C$14:$P$14,0)))*IF($E49="$millions",1000000,IF($E49="$000",1000,1))/IF($E50="$millions",1000000,IF($E50="$000",1000,1)) -> 0 | P50: =P49*IF($F49="nominal",LOOKUP($F50,Nominal_to_Real,'Input|Rate of change'!Q$26:Q$32),INDEX('Input|Rate of change'!$C$14:$P$22,MATCH('Calc|Opex forecast'!$F49,'Input|Rate of change'!$C$14:$C$22,0),MATCH('Calc|Opex forecast'!$F50,'Input|Rate of change'!$C$14:$P$14,0)))*IF($E49="$millions",1000000,IF($E49="$000",1000,1))/IF($E50="$millions",1000000,IF($E50="$000",1000,1)) -> 0 | Q50: =Q49*IF($F49="nominal",LOOKUP($F50,Nominal_to_Real,'Input|Rate of change'!R$26:R$32),INDEX('Input|Rate of change'!$C$14:$P$22,MATCH('Calc|Opex forecast'!$F49,'Input|Rate of change'!$C$14:$C$22,0),MATCH('Calc|Opex forecast'!$F50,'Input|Rate of change'!$C$14:$P$14,0)))*IF($E49="$millions",1000000,IF($E49="$000",1000,1))/IF($E50="$millions",1000000,IF($E50="$000",1000,1)) -> 0 | R50: =R49*IF($F49="nominal",LOOKUP($F50,Nominal_to_Real,'Input|Rate of change'!S$26:S$32),INDEX('Input|Rate of change'!$C$14:$P$22,MATCH('Calc|Opex forecast'!$F49,'Input|Rate of change'!$C$14:$C$22,0),MATCH('Calc|Opex forecast'!$F50,'Input|Rate of change'!$C$14:$P$14,0)))*IF($E49="$millions",1000000,IF($E49="$000",1000,1))/IF($E50="$millions",1000000,IF($E50="$000",1000,1)) -> 0 | S50: =S49*IF($F49="nominal",LOOKUP($F50,Nominal_to_Real,'Input|Rate of change'!T$26:T$32),INDEX('Input|Rate of change'!$C$14:$P$22,MATCH('Calc|Opex forecast'!$F49,'Input|Rate of change'!$C$14:$C$22,0),MATCH('Calc|Opex forecast'!$F50,'Input|Rate of change'!$C$14:$P$14,0)))*IF($E49="$millions",1000000,IF($E49="$000",1000,1))/IF($E50="$millions",1000000,IF($E50="$000",1000,1)) -> 0 | T50: =T49*IF($F49="nominal",LOOKUP($F50,Nominal_to_Real,'Input|Rate of change'!U$26:U$32),INDEX('Input|Rate of change'!$C$14:$P$22,MATCH('Calc|Opex forecast'!$F49,'Input|Rate of change'!$C$14:$C$22,0),MATCH('Calc|Opex forecast'!$F50,'Input|Rate of change'!$C$14:$P$14,0)))*IF($E49="$millions",1000000,IF($E49="$000",1000,1))/IF($E50="$millions",1000000,IF($E50="$000",1000,1)) -> 0
C52: Efficiency adjustment | D52: calculated | E52: =$E$8 -> $millions | F52: =$F$8 -> 2024-06-01 | J52: =SUM(J33,J38,J41,J44,J47,J50)*'Input|Reported opex'!J71 -> 0 | K52: =SUM(K33,K38,K41,K44,K47,K50)*'Input|Reported opex'!K71 -> 0 | L52: =SUM(L33,L38,L41,L44,L47,L50)*'Input|Reported opex'!L71 -> 0 | M52: =SUM(M33,M38,M41,M44,M47,M50)*'Input|Reported opex'!M71 -> 0 | N52: =SUM(N33,N38,N41,N44,N47,N50)*'Input|Reported opex'!N71 -> 0 | O52: =SUM(O33,O38,O41,O44,O47,O50)*'Input|Reported opex'!O71 -> 0 | P52: =SUM(P33,P38,P41,P44,P47,P50)*'Input|Reported opex'!P71 -> 0 | Q52: =SUM(Q33,Q38,Q41,Q44,Q47,Q50)*'Input|Reported opex'!Q71 -> 0 | R52: =SUM(R33,R38,R41,R44,R47,R50)*'Input|Reported opex'!R71 -> 0 | S52: =SUM(S33,S38,S41,S44,S47,S50)*'Input|Reported opex'!S71 -> 0
C54: Adjusted final year opex | D54: calculated | E54: =$E$8 -> $millions | F54: =$F$8 -> 2024-06-01 | J54: =SUM(J33,J35,J38,J41,J44,J47,J50,J52) -> 0 | K54: =SUM(K33,K35,K38,K41,K44,K47,K50,K52) -> 0 | L54: 0 | M54: 0 | N54: 268.6852292 | O54: 0 | P54: 0 | Q54: 0 | R54: 0 | S54: 0
B56: Calc | Rate of change
C58: Rate of change | D58: Source | E58: Unit | F58: Basis | J58: =IF(YEAR(J$4)>='Input|General'!$G$13,IF(YEAR(J$4)<='Input|General'!$G$14,J$4,""),"") ->  | K58: =IF(YEAR(K$4)>='Input|General'!$G$13,IF(YEAR(K$4)<='Input|General'!$G$14,K$4,""),"") ->  | L58: =IF(YEAR(L$4)>='Input|General'!$G$13,IF(YEAR(L$4)<='Input|General'!$G$14,L$4,""),"") ->  | M58: =IF(YEAR(M$4)>='Input|General'!$G$13,IF(YEAR(M$4)<='Input|General'!$G$14,M$4,""),"") ->  | N58: =IF(YEAR(N$4)>='Input|General'!$G$13,IF(YEAR(N$4)<='Input|General'!$G$14,N$4,""),"") ->  | O58: =IF(YEAR(O$4)>='Input|General'!$G$13,IF(YEAR(O$4)<='Input|General'!$G$14,O$4,""),"") -> 2025-06-01 | P58: =IF(YEAR(P$4)>='Input|General'!$G$13,IF(YEAR(P$4)<='Input|General'!$G$14,P$4,""),"") -> 2026-06-01 | Q58: =IF(YEAR(Q$4)>='Input|General'!$G$13,IF(YEAR(Q$4)<='Input|General'!$G$14,Q$4,""),"") -> 2027-06-01 | R58: =IF(YEAR(R$4)>='Input|General'!$G$13,IF(YEAR(R$4)<='Input|General'!$G$14,R$4,""),"") -> 2028-06-01 | S58: =IF(YEAR(S$4)>='Input|General'!$G$13,IF(YEAR(S$4)<='Input|General'!$G$14,S$4,""),"") -> 2029-06-01 | T58: =IF(YEAR(T$4)>='Input|General'!$G$13,IF(YEAR(T$4)<='Input|General'!$G$14,T$4,""),"") -> 
C61: Forecast output change, year-on-year | D61: Calculated | E61: Per cent | F61: n/a | J61: =IF(J58=J4,AVERAGE(OFFSET('Input|Rate of change'!K106,0,0,COUNTA('Input|Rate of change'!$J$93:$M$93),1)),0) -> 0 | K61: =IF(K58=K4,AVERAGE(OFFSET('Input|Rate of change'!L106,0,0,COUNTA('Input|Rate of change'!$J$93:$M$93),1)),0) -> 0 | L61: =IF(L58=L4,AVERAGE(OFFSET('Input|Rate of change'!M106,0,0,COUNTA('Input|Rate of change'!$J$93:$M$93),1)),0) -> 0 | M61: =IF(M58=M4,AVERAGE(OFFSET('Input|Rate of change'!N106,0,0,COUNTA('Input|Rate of change'!$J$93:$M$93),1)),0) -> 0 | N61: =IF(N58=N4,AVERAGE(OFFSET('Input|Rate of change'!O106,0,0,COUNTA('Input|Rate of change'!$J$93:$M$93),1)),0) -> 0 | O61: =IF(O58=O4,AVERAGE(OFFSET('Input|Rate of change'!P106,0,0,COUNTA('Input|Rate of change'!$J$93:$M$93),1)),0) -> 0.01909114154 | P61: =IF(P58=P4,AVERAGE(OFFSET('Input|Rate of change'!Q106,0,0,COUNTA('Input|Rate of change'!$J$93:$M$93),1)),0) -> 0.01251273284 | Q61: =IF(Q58=Q4,AVERAGE(OFFSET('Input|Rate of change'!R106,0,0,COUNTA('Input|Rate of change'!$J$93:$M$93),1)),0) -> 0.01510833737 | R61: =IF(R58=R4,AVERAGE(OFFSET('Input|Rate of change'!S106,0,0,COUNTA('Input|Rate of change'!$J$93:$M$93),1)),0) -> 0.01629230399 | S61: =IF(S58=S4,AVERAGE(OFFSET('Input|Rate of change'!T106,0,0,COUNTA('Input|Rate of change'!$J$93:$M$93),1)),0) -> 0.015516635 | T61: =IF(T58=T4,AVERAGE(OFFSET('Input|Rate of change'!U106,0,0,COUNTA('Input|Rate of change'!$J$93:$M$93),1)),0) -> 0
C62: Forecast output change, cumulative | D62: Calculated | E62: Per cent | F62: n/a | J62: =IF(J$58=J$4,PRODUCT(1+$J61:J61)-1,0) -> 0 | K62: =IF(K$58=K$4,PRODUCT(1+$J61:K61)-1,0) -> 0 | L62: =IF(L$58=L$4,PRODUCT(1+$J61:L61)-1,0) -> 0 | M62: =IF(M$58=M$4,PRODUCT(1+$J61:M61)-1,0) -> 0 | N62: =IF(N$58=N$4,PRODUCT(1+$J61:N61)-1,0) -> 0 | O62: =IF(O$58=O$4,PRODUCT(1+$J61:O61)-1,0) -> 0.01909114154 | P62: =IF(P$58=P$4,PRODUCT(1+$J61:P61)-1,0) -> 0.03184275674 | Q62: =IF(Q$58=Q$4,PRODUCT(1+$J61:Q61)-1,0) -> 0.04743218522 | R62: =IF(R$58=R$4,PRODUCT(1+$J61:R61)-1,0) -> 0.06449726879 | S62: =IF(S$58=S$4,PRODUCT(1+$J61:S61)-1,0) -> 0.08101468437 | T62: =IF(T$58=T$4,PRODUCT(1+$J61:T61)-1,0) -> 0
C64: Forecast price change, year-on-year | D64: Calculated | E64: Per cent | F64: n/a | J64: =SUMPRODUCT('Input|Rate of change'!K38:K45,'Input|Rate of change'!K51:K58) -> 0 | K64: =SUMPRODUCT('Input|Rate of change'!L38:L45,'Input|Rate of change'!L51:L58) -> 0 | L64: =SUMPRODUCT('Input|Rate of change'!M38:M45,'Input|Rate of change'!M51:M58) -> 0 | M64: =SUMPRODUCT('Input|Rate of change'!N38:N45,'Input|Rate of change'!N51:N58) -> 0 | N64: =SUMPRODUCT('Input|Rate of change'!O38:O45,'Input|Rate of change'!O51:O58) -> 0 | O64: =SUMPRODUCT('Input|Rate of change'!P38:P45,'Input|Rate of change'!P51:P58) -> 0.009784741669 | P64: =SUMPRODUCT('Input|Rate of change'!Q38:Q45,'Input|Rate of change'!Q51:Q58) -> 0.008854937026 | Q64: =SUMPRODUCT('Input|Rate of change'!R38:R45,'Input|Rate of change'!R51:R58) -> 0.003927488463 | R64: =SUMPRODUCT('Input|Rate of change'!S38:S45,'Input|Rate of change'!S51:S58) -> 0.002969429999 | S64: =SUMPRODUCT('Input|Rate of change'!T38:T45,'Input|Rate of change'!T51:T58) -> 0.004180269859 | T64: =SUMPRODUCT('Input|Rate of change'!U38:U45,'Input|Rate of change'!U51:U58) -> 0
C65: Forecast price change, cumulative | D65: Calculated | E65: Per cent | F65: n/a | J65: =IF(J$58=J$4,PRODUCT(1+$J64:J64)-1,0) -> 0 | K65: =IF(K$58=K$4,PRODUCT(1+$J64:K64)-1,0) -> 0 | L65: =IF(L$58=L$4,PRODUCT(1+$J64:L64)-1,0) -> 0 | M65: =IF(M$58=M$4,PRODUCT(1+$J64:M64)-1,0) -> 0 | N65: =IF(N$58=N$4,PRODUCT(1+$J64:N64)-1,0) -> 0 | O65: =IF(O$58=O$4,PRODUCT(1+$J64:O64)-1,0) -> 0.009784741669 | P65: =IF(P$58=P$4,PRODUCT(1+$J64:P64)-1,0) -> 0.01872632197 | Q65: =IF(Q$58=Q$4,PRODUCT(1+$J64:Q64)-1,0) -> 0.02272735784 | R65: =IF(R$58=R$4,PRODUCT(1+$J64:R64)-1,0) -> 0.02576427514 | S65: =IF(S$58=S$4,PRODUCT(1+$J64:S64)-1,0) -> 0.03005224662 | T65: =IF(T$58=T$4,PRODUCT(1+$J64:T64)-1,0) -> 0
C67: Forecast productivity change, year-on-year | D67: Calculated | E67: Per cent | F67: n/a | J67: ='Input|Rate of change'!K115 -> 0 | K67: ='Input|Rate of change'!L115 -> 0 | L67: ='Input|Rate of change'!M115 -> 0 | M67: ='Input|Rate of change'!N115 -> 0 | N67: ='Input|Rate of change'!O115 -> 0 | O67: ='Input|Rate of change'!P115 -> 0.005 | P67: ='Input|Rate of change'!Q115 -> 0.005 | Q67: ='Input|Rate of change'!R115 -> 0.005 | R67: ='Input|Rate of change'!S115 -> 0.005 | S67: ='Input|Rate of change'!T115 -> 0.005 | T67: ='Input|Rate of change'!U115 -> 0
C68: Forecast productivity change, cumulative | D68: Calculated | E68: Per cent | F68: n/a | J68: =IF(J$58=J$4,PRODUCT(1+$J67:J67)-1,0) -> 0 | K68: =IF(K$58=K$4,PRODUCT(1+$J67:K67)-1,0) -> 0 | L68: =IF(L$58=L$4,PRODUCT(1+$J67:L67)-1,0) -> 0 | M68: =IF(M$58=M$4,PRODUCT(1+$J67:M67)-1,0) -> 0 | N68: =IF(N$58=N$4,PRODUCT(1+$J67:N67)-1,0) -> 0 | O68: =IF(O$58=O$4,PRODUCT(1+$J67:O67)-1,0) -> 0.005 | P68: =IF(P$58=P$4,PRODUCT(1+$J67:P67)-1,0) -> 0.010025 | Q68: =IF(Q$58=Q$4,PRODUCT(1+$J67:Q67)-1,0) -> 0.015075125 | R68: =IF(R$58=R$4,PRODUCT(1+$J67:R67)-1,0) -> 0.02015050062 | S68: =IF(S$58=S$4,PRODUCT(1+$J67:S67)-1,0) -> 0.02525125313 | T68: =IF(T$58=T$4,PRODUCT(1+$J67:T67)-1,0) -> 0
C70: Forecast rate of change, year-on-year | D70: Calculated | E70: Per cent | F70: n/a | J70: =(1+J61)*(1+J64)*(1-J67)-1 -> 0 | K70: =(1+K61)*(1+K64)*(1-K67)-1 -> 0 | L70: 0 | M70: 0 | N70: 0 | O70: 0.02391737168 | P70: 0.01637107698 | Q70: 0.01399968783 | R70: 0.01421356228 | S70: 0.01466295974 | T70: =(1+T61)*(1+T64)*(1-T67)-1 -> 0
C71: Forecast rate of change, cumulative | D71: Calculated | E71: Per cent | F71: n/a | J71: =IF(J$58=J$4,PRODUCT(1+$J70:J70)-1,"") ->  | K71: =IF(K$58=K$4,PRODUCT(1+$J70:K70)-1,"") ->  | L71: =IF(L$58=L$4,PRODUCT(1+$J70:L70)-1,"") ->  | M71: =IF(M$58=M$4,PRODUCT(1+$J70:M70)-1,"") ->  | N71: =IF(N$58=N$4,PRODUCT(1+$J70:N70)-1,"") ->  | O71: =IF(O$58=O$4,PRODUCT(1+$J70:O70)-1,"") -> 0.02391737168 | P71: =IF(P$58=P$4,PRODUCT(1+$J70:P70)-1,"") -> 0.04068000179 | Q71: =IF(Q$58=Q$4,PRODUCT(1+$J70:Q70)-1,"") -> 0.05524919695 | R71: =IF(R$58=R$4,PRODUCT(1+$J70:R70)-1,"") -> 0.07024804713 | S71: =IF(S$58=S$4,PRODUCT(1+$J70:S70)-1,"") -> 0.08594105116 | T71: =IF(T$58=T$4,PRODUCT(1+$J70:T70)-1,"") -> 
B73: Calc | Step changes
C75: Step changes | D75: Source | E75: Unit | F75: Basis | J75: =IF(YEAR(J$4)>='Input|General'!$G$13,IF(YEAR(J$4)<='Input|General'!$G$14,J$4,""),"") ->  | K75: =IF(YEAR(K$4)>='Input|General'!$G$13,IF(YEAR(K$4)<='Input|General'!$G$14,K$4,""),"") ->  | L75: =IF(YEAR(L$4)>='Input|General'!$G$13,IF(YEAR(L$4)<='Input|General'!$G$14,L$4,""),"") ->  | M75: =IF(YEAR(M$4)>='Input|General'!$G$13,IF(YEAR(M$4)<='Input|General'!$G$14,M$4,""),"") ->  | N75: =IF(YEAR(N$4)>='Input|General'!$G$13,IF(YEAR(N$4)<='Input|General'!$G$14,N$4,""),"") ->  | O75: =IF(YEAR(O$4)>='Input|General'!$G$13,IF(YEAR(O$4)<='Input|General'!$G$14,O$4,""),"") -> 2025-06-01 | P75: =IF(YEAR(P$4)>='Input|General'!$G$13,IF(YEAR(P$4)<='Input|General'!$G$14,P$4,""),"") -> 2026-06-01 | Q75: =IF(YEAR(Q$4)>='Input|General'!$G$13,IF(YEAR(Q$4)<='Input|General'!$G$14,Q$4,""),"") -> 2027-06-01 | R75: =IF(YEAR(R$4)>='Input|General'!$G$13,IF(YEAR(R$4)<='Input|General'!$G$14,R$4,""),"") -> 2028-06-01 | S75: =IF(YEAR(S$4)>='Input|General'!$G$13,IF(YEAR(S$4)<='Input|General'!$G$14,S$4,""),"") -> 2029-06-01 | T75: =IF(YEAR(T$4)>='Input|General'!$G$13,IF(YEAR(T$4)<='Input|General'!$G$14,T$4,""),"") -> 
C77: ='Input|Step changes'!C12 -> Solar Soak / Off-Peak Conversion | D77: Calculated | E77: =$E$8 -> $millions | F77: =$F$8 -> 2024-06-01 | J77: ='Input|Step changes'!J12*INDEX('Input|Rate of change'!$C$14:$P$22,MATCH('Input|Step changes'!$F12,'Input|Rate of change'!$C$14:$C$22,0),MATCH('Calc|Opex forecast'!$F77,'Input|Rate of change'!$C$14:$P$14,0))*IF('Input|Step changes'!$E12="$millions",1000000,IF('Input|Step changes'!$E12="$000",1000,1))/IF($E77="$millions",1000000,IF($E77="$000",1000,1)) -> 0 | K77: ='Input|Step changes'!K12*INDEX('Input|Rate of change'!$C$14:$P$22,MATCH('Input|Step changes'!$F12,'Input|Rate of change'!$C$14:$C$22,0),MATCH('Calc|Opex forecast'!$F77,'Input|Rate of change'!$C$14:$P$14,0))*IF('Input|Step changes'!$E12="$millions",1000000,IF('Input|Step changes'!$E12="$000",1000,1))/IF($E77="$millions",1000000,IF($E77="$000",1000,1)) -> 0 | L77: ='Input|Step changes'!L12*INDEX('Input|Rate of change'!$C$14:$P$22,MATCH('Input|Step changes'!$F12,'Input|Rate of change'!$C$14:$C$22,0),MATCH('Calc|Opex forecast'!$F77,'Input|Rate of change'!$C$14:$P$14,0))*IF('Input|Step changes'!$E12="$millions",1000000,IF('Input|Step changes'!$E12="$000",1000,1))/IF($E77="$millions",1000000,IF($E77="$000",1000,1)) -> 0 | M77: ='Input|Step changes'!M12*INDEX('Input|Rate of change'!$C$14:$P$22,MATCH('Input|Step changes'!$F12,'Input|Rate of change'!$C$14:$C$22,0),MATCH('Calc|Opex forecast'!$F77,'Input|Rate of change'!$C$14:$P$14,0))*IF('Input|Step changes'!$E12="$millions",1000000,IF('Input|Step changes'!$E12="$000",1000,1))/IF($E77="$millions",1000000,IF($E77="$000",1000,1)) -> 0 | N77: ='Input|Step changes'!N12*INDEX('Input|Rate of change'!$C$14:$P$22,MATCH('Input|Step changes'!$F12,'Input|Rate of change'!$C$14:$C$22,0),MATCH('Calc|Opex forecast'!$F77,'Input|Rate of change'!$C$14:$P$14,0))*IF('Input|Step changes'!$E12="$millions",1000000,IF('Input|Step changes'!$E12="$000",1000,1))/IF($E77="$millions",1000000,IF($E77="$000",1000,1)) -> 0 | O77: ='Input|Step changes'!O12*INDEX('Input|Rate of change'!$C$14:$P$22,MATCH('Input|Step changes'!$F12,'Input|Rate of change'!$C$14:$C$22,0),MATCH('Calc|Opex forecast'!$F77,'Input|Rate of change'!$C$14:$P$14,0))*IF('Input|Step changes'!$E12="$millions",1000000,IF('Input|Step changes'!$E12="$000",1000,1))/IF($E77="$millions",1000000,IF($E77="$000",1000,1)) -> 2.904385549 | P77: ='Input|Step changes'!P12*INDEX('Input|Rate of change'!$C$14:$P$22,MATCH('Input|Step changes'!$F12,'Input|Rate of change'!$C$14:$C$22,0),MATCH('Calc|Opex forecast'!$F77,'Input|Rate of change'!$C$14:$P$14,0))*IF('Input|Step changes'!$E12="$millions",1000000,IF('Input|Step changes'!$E12="$000",1000,1))/IF($E77="$millions",1000000,IF($E77="$000",1000,1)) -> 2.861497732 | Q77: ='Input|Step changes'!Q12*INDEX('Input|Rate of change'!$C$14:$P$22,MATCH('Input|Step changes'!$F12,'Input|Rate of change'!$C$14:$C$22,0),MATCH('Calc|Opex forecast'!$F77,'Input|Rate of change'!$C$14:$P$14,0))*IF('Input|Step changes'!$E12="$millions",1000000,IF('Input|Step changes'!$E12="$000",1000,1))/IF($E77="$millions",1000000,IF($E77="$000",1000,1)) -> 0 | R77: ='Input|Step changes'!R12*INDEX('Input|Rate of change'!$C$14:$P$22,MATCH('Input|Step changes'!$F12,'Input|Rate of change'!$C$14:$C$22,0),MATCH('Calc|Opex forecast'!$F77,'Input|Rate of change'!$C$14:$P$14,0))*IF('Input|Step changes'!$E12="$millions",1000000,IF('Input|Step changes'!$E12="$000",1000,1))/IF($E77="$millions",1000000,IF($E77="$000",1000,1)) -> 0 | S77: ='Input|Step changes'!S12*INDEX('Input|Rate of change'!$C$14:$P$22,MATCH('Input|Step changes'!$F12,'Input|Rate of change'!$C$14:$C$22,0),MATCH('Calc|Opex forecast'!$F77,'Input|Rate of change'!$C$14:$P$14,0))*IF('Input|Step changes'!$E12="$millions",1000000,IF('Input|Step changes'!$E12="$000",1000,1))/IF($E77="$millions",1000000,IF($E77="$000",1000,1)) -> 0 | T77: ='Input|Step changes'!T12*INDEX('Input|Rate of change'!$C$14:$P$22,MATCH('Input|Step changes'!$F12,'Input|Rate of change'!$C$14:$C$22,0),MATCH('Calc|Opex forecast'!$F77,'Input|Rate of change'!$C$14:$P$14,0))*IF('Input|Step changes'!$E12="$millions",1000000,IF('Input|Step changes'!$E12="$000",1000,1))/IF($E77="$millions",1000000,IF($E77="$000",1000,1)) -> 0
C78: ='Input|Step changes'!C13 -> Network visibility | D78: Calculated | E78: $millions | F78: 2024-06-01 | J78: ='Input|Step changes'!J13*INDEX('Input|Rate of change'!$C$14:$P$22,MATCH('Input|Step changes'!$F13,'Input|Rate of change'!$C$14:$C$22,0),MATCH('Calc|Opex forecast'!$F78,'Input|Rate of change'!$C$14:$P$14,0))*IF('Input|Step changes'!$E13="$millions",1000000,IF('Input|Step changes'!$E13="$000",1000,1))/IF($E78="$millions",1000000,IF($E78="$000",1000,1)) -> 0 | K78: ='Input|Step changes'!K13*INDEX('Input|Rate of change'!$C$14:$P$22,MATCH('Input|Step changes'!$F13,'Input|Rate of change'!$C$14:$C$22,0),MATCH('Calc|Opex forecast'!$F78,'Input|Rate of change'!$C$14:$P$14,0))*IF('Input|Step changes'!$E13="$millions",1000000,IF('Input|Step changes'!$E13="$000",1000,1))/IF($E78="$millions",1000000,IF($E78="$000",1000,1)) -> 0 | L78: ='Input|Step changes'!L13*INDEX('Input|Rate of change'!$C$14:$P$22,MATCH('Input|Step changes'!$F13,'Input|Rate of change'!$C$14:$C$22,0),MATCH('Calc|Opex forecast'!$F78,'Input|Rate of change'!$C$14:$P$14,0))*IF('Input|Step changes'!$E13="$millions",1000000,IF('Input|Step changes'!$E13="$000",1000,1))/IF($E78="$millions",1000000,IF($E78="$000",1000,1)) -> 0 | M78: ='Input|Step changes'!M13*INDEX('Input|Rate of change'!$C$14:$P$22,MATCH('Input|Step changes'!$F13,'Input|Rate of change'!$C$14:$C$22,0),MATCH('Calc|Opex forecast'!$F78,'Input|Rate of change'!$C$14:$P$14,0))*IF('Input|Step changes'!$E13="$millions",1000000,IF('Input|Step changes'!$E13="$000",1000,1))/IF($E78="$millions",1000000,IF($E78="$000",1000,1)) -> 0 | N78: ='Input|Step changes'!N13*INDEX('Input|Rate of change'!$C$14:$P$22,MATCH('Input|Step changes'!$F13,'Input|Rate of change'!$C$14:$C$22,0),MATCH('Calc|Opex forecast'!$F78,'Input|Rate of change'!$C$14:$P$14,0))*IF('Input|Step changes'!$E13="$millions",1000000,IF('Input|Step changes'!$E13="$000",1000,1))/IF($E78="$millions",1000000,IF($E78="$000",1000,1)) -> 0 | O78: ='Input|Step changes'!O13*INDEX('Input|Rate of change'!$C$14:$P$22,MATCH('Input|Step changes'!$F13,'Input|Rate of change'!$C$14:$C$22,0),MATCH('Calc|Opex forecast'!$F78,'Input|Rate of change'!$C$14:$P$14,0))*IF('Input|Step changes'!$E13="$millions",1000000,IF('Input|Step changes'!$E13="$000",1000,1))/IF($E78="$millions",1000000,IF($E78="$000",1000,1)) -> 2.138981895 | P78: ='Input|Step changes'!P13*INDEX('Input|Rate of change'!$C$14:$P$22,MATCH('Input|Step changes'!$F13,'Input|Rate of change'!$C$14:$C$22,0),MATCH('Calc|Opex forecast'!$F78,'Input|Rate of change'!$C$14:$P$14,0))*IF('Input|Step changes'!$E13="$millions",1000000,IF('Input|Step changes'!$E13="$000",1000,1))/IF($E78="$millions",1000000,IF($E78="$000",1000,1)) -> 2.481544547 | Q78: ='Input|Step changes'!Q13*INDEX('Input|Rate of change'!$C$14:$P$22,MATCH('Input|Step changes'!$F13,'Input|Rate of change'!$C$14:$C$22,0),MATCH('Calc|Opex forecast'!$F78,'Input|Rate of change'!$C$14:$P$14,0))*IF('Input|Step changes'!$E13="$millions",1000000,IF('Input|Step changes'!$E13="$000",1000,1))/IF($E78="$millions",1000000,IF($E78="$000",1000,1)) -> 2.835478364 | R78: ='Input|Step changes'!R13*INDEX('Input|Rate of change'!$C$14:$P$22,MATCH('Input|Step changes'!$F13,'Input|Rate of change'!$C$14:$C$22,0),MATCH('Calc|Opex forecast'!$F78,'Input|Rate of change'!$C$14:$P$14,0))*IF('Input|Step changes'!$E13="$millions",1000000,IF('Input|Step changes'!$E13="$000",1000,1))/IF($E78="$millions",1000000,IF($E78="$000",1000,1)) -> 3.187491611 | S78: ='Input|Step changes'!S13*INDEX('Input|Rate of change'!$C$14:$P$22,MATCH('Input|Step changes'!$F13,'Input|Rate of change'!$C$14:$C$22,0),MATCH('Calc|Opex forecast'!$F78,'Input|Rate of change'!$C$14:$P$14,0))*IF('Input|Step changes'!$E13="$millions",1000000,IF('Input|Step changes'!$E13="$000",1000,1))/IF($E78="$millions",1000000,IF($E78="$000",1000,1)) -> 3.546575754 | T78: ='Input|Step changes'!T13*INDEX('Input|Rate of change'!$C$14:$P$22,MATCH('Input|Step changes'!$F13,'Input|Rate of change'!$C$14:$C$22,0),MATCH('Calc|Opex forecast'!$F78,'Input|Rate of change'!$C$14:$P$14,0))*IF('Input|Step changes'!$E13="$millions",1000000,IF('Input|Step changes'!$E13="$000",1000,1))/IF($E78="$millions",1000000,IF($E78="$000",1000,1)) -> 0
C79: ='Input|Step changes'!C14 -> SOCI Act | D79: Calculated | E79: $millions | F79: 2024-06-01 | J79: ='Input|Step changes'!J14*INDEX('Input|Rate of change'!$C$14:$P$22,MATCH('Input|Step changes'!$F14,'Input|Rate of change'!$C$14:$C$22,0),MATCH('Calc|Opex forecast'!$F79,'Input|Rate of change'!$C$14:$P$14,0))*IF('Input|Step changes'!$E14="$millions",1000000,IF('Input|Step changes'!$E14="$000",1000,1))/IF($E79="$millions",1000000,IF($E79="$000",1000,1)) -> 0 | K79: ='Input|Step changes'!K14*INDEX('Input|Rate of change'!$C$14:$P$22,MATCH('Input|Step changes'!$F14,'Input|Rate of change'!$C$14:$C$22,0),MATCH('Calc|Opex forecast'!$F79,'Input|Rate of change'!$C$14:$P$14,0))*IF('Input|Step changes'!$E14="$millions",1000000,IF('Input|Step changes'!$E14="$000",1000,1))/IF($E79="$millions",1000000,IF($E79="$000",1000,1)) -> 0 | L79: ='Input|Step changes'!L14*INDEX('Input|Rate of change'!$C$14:$P$22,MATCH('Input|Step changes'!$F14,'Input|Rate of change'!$C$14:$C$22,0),MATCH('Calc|Opex forecast'!$F79,'Input|Rate of change'!$C$14:$P$14,0))*IF('Input|Step changes'!$E14="$millions",1000000,IF('Input|Step changes'!$E14="$000",1000,1))/IF($E79="$millions",1000000,IF($E79="$000",1000,1)) -> 0 | M79: ='Input|Step changes'!M14*INDEX('Input|Rate of change'!$C$14:$P$22,MATCH('Input|Step changes'!$F14,'Input|Rate of change'!$C$14:$C$22,0),MATCH('Calc|Opex forecast'!$F79,'Input|Rate of change'!$C$14:$P$14,0))*IF('Input|Step changes'!$E14="$millions",1000000,IF('Input|Step changes'!$E14="$000",1000,1))/IF($E79="$millions",1000000,IF($E79="$000",1000,1)) -> 0 | N79: ='Input|Step changes'!N14*INDEX('Input|Rate of change'!$C$14:$P$22,MATCH('Input|Step changes'!$F14,'Input|Rate of change'!$C$14:$C$22,0),MATCH('Calc|Opex forecast'!$F79,'Input|Rate of change'!$C$14:$P$14,0))*IF('Input|Step changes'!$E14="$millions",1000000,IF('Input|Step changes'!$E14="$000",1000,1))/IF($E79="$millions",1000000,IF($E79="$000",1000,1)) -> 0 | O79: ='Input|Step changes'!O14*INDEX('Input|Rate of change'!$C$14:$P$22,MATCH('Input|Step changes'!$F14,'Input|Rate of change'!$C$14:$C$22,0),MATCH('Calc|Opex forecast'!$F79,'Input|Rate of change'!$C$14:$P$14,0))*IF('Input|Step changes'!$E14="$millions",1000000,IF('Input|Step changes'!$E14="$000",1000,1))/IF($E79="$millions",1000000,IF($E79="$000",1000,1)) -> 0 | P79: ='Input|Step changes'!P14*INDEX('Input|Rate of change'!$C$14:$P$22,MATCH('Input|Step changes'!$F14,'Input|Rate of change'!$C$14:$C$22,0),MATCH('Calc|Opex forecast'!$F79,'Input|Rate of change'!$C$14:$P$14,0))*IF('Input|Step changes'!$E14="$millions",1000000,IF('Input|Step changes'!$E14="$000",1000,1))/IF($E79="$millions",1000000,IF($E79="$000",1000,1)) -> 0 | Q79: ='Input|Step changes'!Q14*INDEX('Input|Rate of change'!$C$14:$P$22,MATCH('Input|Step changes'!$F14,'Input|Rate of change'!$C$14:$C$22,0),MATCH('Calc|Opex forecast'!$F79,'Input|Rate of change'!$C$14:$P$14,0))*IF('Input|Step changes'!$E14="$millions",1000000,IF('Input|Step changes'!$E14="$000",1000,1))/IF($E79="$millions",1000000,IF($E79="$000",1000,1)) -> 0 | R79: ='Input|Step changes'!R14*INDEX('Input|Rate of change'!$C$14:$P$22,MATCH('Input|Step changes'!$F14,'Input|Rate of change'!$C$14:$C$22,0),MATCH('Calc|Opex forecast'!$F79,'Input|Rate of change'!$C$14:$P$14,0))*IF('Input|Step changes'!$E14="$millions",1000000,IF('Input|Step changes'!$E14="$000",1000,1))/IF($E79="$millions",1000000,IF($E79="$000",1000,1)) -> 0 | S79: ='Input|Step changes'!S14*INDEX('Input|Rate of change'!$C$14:$P$22,MATCH('Input|Step changes'!$F14,'Input|Rate of change'!$C$14:$C$22,0),MATCH('Calc|Opex forecast'!$F79,'Input|Rate of change'!$C$14:$P$14,0))*IF('Input|Step changes'!$E14="$millions",1000000,IF('Input|Step changes'!$E14="$000",1000,1))/IF($E79="$millions",1000000,IF($E79="$000",1000,1)) -> 0 | T79: ='Input|Step changes'!T14*INDEX('Input|Rate of change'!$C$14:$P$22,MATCH('Input|Step changes'!$F14,'Input|Rate of change'!$C$14:$C$22,0),MATCH('Calc|Opex forecast'!$F79,'Input|Rate of change'!$C$14:$P$14,0))*IF('Input|Step changes'!$E14="$millions",1000000,IF('Input|Step changes'!$E14="$000",1000,1))/IF($E79="$millions",1000000,IF($E79="$000",1000,1)) -> 0
C80: ='Input|Step changes'!C15 -> Insurance premium | D80: Calculated | E80: $millions | F80: 2024-06-01 | J80: ='Input|Step changes'!J15*INDEX('Input|Rate of change'!$C$14:$P$22,MATCH('Input|Step changes'!$F15,'Input|Rate of change'!$C$14:$C$22,0),MATCH('Calc|Opex forecast'!$F80,'Input|Rate of change'!$C$14:$P$14,0))*IF('Input|Step changes'!$E15="$millions",1000000,IF('Input|Step changes'!$E15="$000",1000,1))/IF($E80="$millions",1000000,IF($E80="$000",1000,1)) -> 0 | K80: ='Input|Step changes'!K15*INDEX('Input|Rate of change'!$C$14:$P$22,MATCH('Input|Step changes'!$F15,'Input|Rate of change'!$C$14:$C$22,0),MATCH('Calc|Opex forecast'!$F80,'Input|Rate of change'!$C$14:$P$14,0))*IF('Input|Step changes'!$E15="$millions",1000000,IF('Input|Step changes'!$E15="$000",1000,1))/IF($E80="$millions",1000000,IF($E80="$000",1000,1)) -> 0 | L80: ='Input|Step changes'!L15*INDEX('Input|Rate of change'!$C$14:$P$22,MATCH('Input|Step changes'!$F15,'Input|Rate of change'!$C$14:$C$22,0),MATCH('Calc|Opex forecast'!$F80,'Input|Rate of change'!$C$14:$P$14,0))*IF('Input|Step changes'!$E15="$millions",1000000,IF('Input|Step changes'!$E15="$000",1000,1))/IF($E80="$millions",1000000,IF($E80="$000",1000,1)) -> 0 | M80: ='Input|Step changes'!M15*INDEX('Input|Rate of change'!$C$14:$P$22,MATCH('Input|Step changes'!$F15,'Input|Rate of change'!$C$14:$C$22,0),MATCH('Calc|Opex forecast'!$F80,'Input|Rate of change'!$C$14:$P$14,0))*IF('Input|Step changes'!$E15="$millions",1000000,IF('Input|Step changes'!$E15="$000",1000,1))/IF($E80="$millions",1000000,IF($E80="$000",1000,1)) -> 0 | N80: ='Input|Step changes'!N15*INDEX('Input|Rate of change'!$C$14:$P$22,MATCH('Input|Step changes'!$F15,'Input|Rate of change'!$C$14:$C$22,0),MATCH('Calc|Opex forecast'!$F80,'Input|Rate of change'!$C$14:$P$14,0))*IF('Input|Step changes'!$E15="$millions",1000000,IF('Input|Step changes'!$E15="$000",1000,1))/IF($E80="$millions",1000000,IF($E80="$000",1000,1)) -> 0 | O80: ='Input|Step changes'!O15*INDEX('Input|Rate of change'!$C$14:$P$22,MATCH('Input|Step changes'!$F15,'Input|Rate of change'!$C$14:$C$22,0),MATCH('Calc|Opex forecast'!$F80,'Input|Rate of change'!$C$14:$P$14,0))*IF('Input|Step changes'!$E15="$millions",1000000,IF('Input|Step changes'!$E15="$000",1000,1))/IF($E80="$millions",1000000,IF($E80="$000",1000,1)) -> 3.557776186 | P80: ='Input|Step changes'!P15*INDEX('Input|Rate of change'!$C$14:$P$22,MATCH('Input|Step changes'!$F15,'Input|Rate of change'!$C$14:$C$22,0),MATCH('Calc|Opex forecast'!$F80,'Input|Rate of change'!$C$14:$P$14,0))*IF('Input|Step changes'!$E15="$millions",1000000,IF('Input|Step changes'!$E15="$000",1000,1))/IF($E80="$millions",1000000,IF($E80="$000",1000,1)) -> 5.188656922 | Q80: ='Input|Step changes'!Q15*INDEX('Input|Rate of change'!$C$14:$P$22,MATCH('Input|Step changes'!$F15,'Input|Rate of change'!$C$14:$C$22,0),MATCH('Calc|Opex forecast'!$F80,'Input|Rate of change'!$C$14:$P$14,0))*IF('Input|Step changes'!$E15="$millions",1000000,IF('Input|Step changes'!$E15="$000",1000,1))/IF($E80="$millions",1000000,IF($E80="$000",1000,1)) -> 7.052361292 | R80: ='Input|Step changes'!R15*INDEX('Input|Rate of change'!$C$14:$P$22,MATCH('Input|Step changes'!$F15,'Input|Rate of change'!$C$14:$C$22,0),MATCH('Calc|Opex forecast'!$F80,'Input|Rate of change'!$C$14:$P$14,0))*IF('Input|Step changes'!$E15="$millions",1000000,IF('Input|Step changes'!$E15="$000",1000,1))/IF($E80="$millions",1000000,IF($E80="$000",1000,1)) -> 9.182838596 | S80: ='Input|Step changes'!S15*INDEX('Input|Rate of change'!$C$14:$P$22,MATCH('Input|Step changes'!$F15,'Input|Rate of change'!$C$14:$C$22,0),MATCH('Calc|Opex forecast'!$F80,'Input|Rate of change'!$C$14:$P$14,0))*IF('Input|Step changes'!$E15="$millions",1000000,IF('Input|Step changes'!$E15="$000",1000,1))/IF($E80="$millions",1000000,IF($E80="$000",1000,1)) -> 11.61942397 | T80: ='Input|Step changes'!T15*INDEX('Input|Rate of change'!$C$14:$P$22,MATCH('Input|Step changes'!$F15,'Input|Rate of change'!$C$14:$C$22,0),MATCH('Calc|Opex forecast'!$F80,'Input|Rate of change'!$C$14:$P$14,0))*IF('Input|Step changes'!$E15="$millions",1000000,IF('Input|Step changes'!$E15="$000",1000,1))/IF($E80="$millions",1000000,IF($E80="$000",1000,1)) -> 0
C81: ='Input|Step changes'!C16 -> Demand management | D81: Calculated | E81: $millions | F81: 2024-06-01 | J81: ='Input|Step changes'!J16*INDEX('Input|Rate of change'!$C$14:$P$22,MATCH('Input|Step changes'!$F16,'Input|Rate of change'!$C$14:$C$22,0),MATCH('Calc|Opex forecast'!$F81,'Input|Rate of change'!$C$14:$P$14,0))*IF('Input|Step changes'!$E16="$millions",1000000,IF('Input|Step changes'!$E16="$000",1000,1))/IF($E81="$millions",1000000,IF($E81="$000",1000,1)) -> 0 | K81: ='Input|Step changes'!K16*INDEX('Input|Rate of change'!$C$14:$P$22,MATCH('Input|Step changes'!$F16,'Input|Rate of change'!$C$14:$C$22,0),MATCH('Calc|Opex forecast'!$F81,'Input|Rate of change'!$C$14:$P$14,0))*IF('Input|Step changes'!$E16="$millions",1000000,IF('Input|Step changes'!$E16="$000",1000,1))/IF($E81="$millions",1000000,IF($E81="$000",1000,1)) -> 0 | L81: ='Input|Step changes'!L16*INDEX('Input|Rate of change'!$C$14:$P$22,MATCH('Input|Step changes'!$F16,'Input|Rate of change'!$C$14:$C$22,0),MATCH('Calc|Opex forecast'!$F81,'Input|Rate of change'!$C$14:$P$14,0))*IF('Input|Step changes'!$E16="$millions",1000000,IF('Input|Step changes'!$E16="$000",1000,1))/IF($E81="$millions",1000000,IF($E81="$000",1000,1)) -> 0 | M81: ='Input|Step changes'!M16*INDEX('Input|Rate of change'!$C$14:$P$22,MATCH('Input|Step changes'!$F16,'Input|Rate of change'!$C$14:$C$22,0),MATCH('Calc|Opex forecast'!$F81,'Input|Rate of change'!$C$14:$P$14,0))*IF('Input|Step changes'!$E16="$millions",1000000,IF('Input|Step changes'!$E16="$000",1000,1))/IF($E81="$millions",1000000,IF($E81="$000",1000,1)) -> 0 | N81: ='Input|Step changes'!N16*INDEX('Input|Rate of change'!$C$14:$P$22,MATCH('Input|Step changes'!$F16,'Input|Rate of change'!$C$14:$C$22,0),MATCH('Calc|Opex forecast'!$F81,'Input|Rate of change'!$C$14:$P$14,0))*IF('Input|Step changes'!$E16="$millions",1000000,IF('Input|Step changes'!$E16="$000",1000,1))/IF($E81="$millions",1000000,IF($E81="$000",1000,1)) -> 0 | O81: ='Input|Step changes'!O16*INDEX('Input|Rate of change'!$C$14:$P$22,MATCH('Input|Step changes'!$F16,'Input|Rate of change'!$C$14:$C$22,0),MATCH('Calc|Opex forecast'!$F81,'Input|Rate of change'!$C$14:$P$14,0))*IF('Input|Step changes'!$E16="$millions",1000000,IF('Input|Step changes'!$E16="$000",1000,1))/IF($E81="$millions",1000000,IF($E81="$000",1000,1)) -> 0 | P81: ='Input|Step changes'!P16*INDEX('Input|Rate of change'!$C$14:$P$22,MATCH('Input|Step changes'!$F16,'Input|Rate of change'!$C$14:$C$22,0),MATCH('Calc|Opex forecast'!$F81,'Input|Rate of change'!$C$14:$P$14,0))*IF('Input|Step changes'!$E16="$millions",1000000,IF('Input|Step changes'!$E16="$000",1000,1))/IF($E81="$millions",1000000,IF($E81="$000",1000,1)) -> 0.4737550907 | Q81: ='Input|Step changes'!Q16*INDEX('Input|Rate of change'!$C$14:$P$22,MATCH('Input|Step changes'!$F16,'Input|Rate of change'!$C$14:$C$22,0),MATCH('Calc|Opex forecast'!$F81,'Input|Rate of change'!$C$14:$P$14,0))*IF('Input|Step changes'!$E16="$millions",1000000,IF('Input|Step changes'!$E16="$000",1000,1))/IF($E81="$millions",1000000,IF($E81="$000",1000,1)) -> 0.7712292174 | R81: ='Input|Step changes'!R16*INDEX('Input|Rate of change'!$C$14:$P$22,MATCH('Input|Step changes'!$F16,'Input|Rate of change'!$C$14:$C$22,0),MATCH('Calc|Opex forecast'!$F81,'Input|Rate of change'!$C$14:$P$14,0))*IF('Input|Step changes'!$E16="$millions",1000000,IF('Input|Step changes'!$E16="$000",1000,1))/IF($E81="$millions",1000000,IF($E81="$000",1000,1)) -> 1.052177004 | S81: ='Input|Step changes'!S16*INDEX('Input|Rate of change'!$C$14:$P$22,MATCH('Input|Step changes'!$F16,'Input|Rate of change'!$C$14:$C$22,0),MATCH('Calc|Opex forecast'!$F81,'Input|Rate of change'!$C$14:$P$14,0))*IF('Input|Step changes'!$E16="$millions",1000000,IF('Input|Step changes'!$E16="$000",1000,1))/IF($E81="$millions",1000000,IF($E81="$000",1000,1)) -> 1.145826266 | T81: ='Input|Step changes'!T16*INDEX('Input|Rate of change'!$C$14:$P$22,MATCH('Input|Step changes'!$F16,'Input|Rate of change'!$C$14:$C$22,0),MATCH('Calc|Opex forecast'!$F81,'Input|Rate of change'!$C$14:$P$14,0))*IF('Input|Step changes'!$E16="$millions",1000000,IF('Input|Step changes'!$E16="$000",1000,1))/IF($E81="$millions",1000000,IF($E81="$000",1000,1)) -> 0
C82: ='Input|Step changes'!C17 -> NSW GSL scheme | D82: Calculated | E82: $millions | F82: 2024-06-01 | J82: ='Input|Step changes'!J17*INDEX('Input|Rate of change'!$C$14:$P$22,MATCH('Input|Step changes'!$F17,'Input|Rate of change'!$C$14:$C$22,0),MATCH('Calc|Opex forecast'!$F82,'Input|Rate of change'!$C$14:$P$14,0))*IF('Input|Step changes'!$E17="$millions",1000000,IF('Input|Step changes'!$E17="$000",1000,1))/IF($E82="$millions",1000000,IF($E82="$000",1000,1)) -> 0 | K82: ='Input|Step changes'!K17*INDEX('Input|Rate of change'!$C$14:$P$22,MATCH('Input|Step changes'!$F17,'Input|Rate of change'!$C$14:$C$22,0),MATCH('Calc|Opex forecast'!$F82,'Input|Rate of change'!$C$14:$P$14,0))*IF('Input|Step changes'!$E17="$millions",1000000,IF('Input|Step changes'!$E17="$000",1000,1))/IF($E82="$millions",1000000,IF($E82="$000",1000,1)) -> 0 | L82: ='Input|Step changes'!L17*INDEX('Input|Rate of change'!$C$14:$P$22,MATCH('Input|Step changes'!$F17,'Input|Rate of change'!$C$14:$C$22,0),MATCH('Calc|Opex forecast'!$F82,'Input|Rate of change'!$C$14:$P$14,0))*IF('Input|Step changes'!$E17="$millions",1000000,IF('Input|Step changes'!$E17="$000",1000,1))/IF($E82="$millions",1000000,IF($E82="$000",1000,1)) -> 0 | M82: ='Input|Step changes'!M17*INDEX('Input|Rate of change'!$C$14:$P$22,MATCH('Input|Step changes'!$F17,'Input|Rate of change'!$C$14:$C$22,0),MATCH('Calc|Opex forecast'!$F82,'Input|Rate of change'!$C$14:$P$14,0))*IF('Input|Step changes'!$E17="$millions",1000000,IF('Input|Step changes'!$E17="$000",1000,1))/IF($E82="$millions",1000000,IF($E82="$000",1000,1)) -> 0 | N82: ='Input|Step changes'!N17*INDEX('Input|Rate of change'!$C$14:$P$22,MATCH('Input|Step changes'!$F17,'Input|Rate of change'!$C$14:$C$22,0),MATCH('Calc|Opex forecast'!$F82,'Input|Rate of change'!$C$14:$P$14,0))*IF('Input|Step changes'!$E17="$millions",1000000,IF('Input|Step changes'!$E17="$000",1000,1))/IF($E82="$millions",1000000,IF($E82="$000",1000,1)) -> 0 | O82: ='Input|Step changes'!O17*INDEX('Input|Rate of change'!$C$14:$P$22,MATCH('Input|Step changes'!$F17,'Input|Rate of change'!$C$14:$C$22,0),MATCH('Calc|Opex forecast'!$F82,'Input|Rate of change'!$C$14:$P$14,0))*IF('Input|Step changes'!$E17="$millions",1000000,IF('Input|Step changes'!$E17="$000",1000,1))/IF($E82="$millions",1000000,IF($E82="$000",1000,1)) -> 0 | P82: ='Input|Step changes'!P17*INDEX('Input|Rate of change'!$C$14:$P$22,MATCH('Input|Step changes'!$F17,'Input|Rate of change'!$C$14:$C$22,0),MATCH('Calc|Opex forecast'!$F82,'Input|Rate of change'!$C$14:$P$14,0))*IF('Input|Step changes'!$E17="$millions",1000000,IF('Input|Step changes'!$E17="$000",1000,1))/IF($E82="$millions",1000000,IF($E82="$000",1000,1)) -> 0 | Q82: ='Input|Step changes'!Q17*INDEX('Input|Rate of change'!$C$14:$P$22,MATCH('Input|Step changes'!$F17,'Input|Rate of change'!$C$14:$C$22,0),MATCH('Calc|Opex forecast'!$F82,'Input|Rate of change'!$C$14:$P$14,0))*IF('Input|Step changes'!$E17="$millions",1000000,IF('Input|Step changes'!$E17="$000",1000,1))/IF($E82="$millions",1000000,IF($E82="$000",1000,1)) -> 0 | R82: ='Input|Step changes'!R17*INDEX('Input|Rate of change'!$C$14:$P$22,MATCH('Input|Step changes'!$F17,'Input|Rate of change'!$C$14:$C$22,0),MATCH('Calc|Opex forecast'!$F82,'Input|Rate of change'!$C$14:$P$14,0))*IF('Input|Step changes'!$E17="$millions",1000000,IF('Input|Step changes'!$E17="$000",1000,1))/IF($E82="$millions",1000000,IF($E82="$000",1000,1)) -> 0 | S82: ='Input|Step changes'!S17*INDEX('Input|Rate of change'!$C$14:$P$22,MATCH('Input|Step changes'!$F17,'Input|Rate of change'!$C$14:$C$22,0),MATCH('Calc|Opex forecast'!$F82,'Input|Rate of change'!$C$14:$P$14,0))*IF('Input|Step changes'!$E17="$millions",1000000,IF('Input|Step changes'!$E17="$000",1000,1))/IF($E82="$millions",1000000,IF($E82="$000",1000,1)) -> 0 | T82: ='Input|Step changes'!T17*INDEX('Input|Rate of change'!$C$14:$P$22,MATCH('Input|Step changes'!$F17,'Input|Rate of change'!$C$14:$C$22,0),MATCH('Calc|Opex forecast'!$F82,'Input|Rate of change'!$C$14:$P$14,0))*IF('Input|Step changes'!$E17="$millions",1000000,IF('Input|Step changes'!$E17="$000",1000,1))/IF($E82="$millions",1000000,IF($E82="$000",1000,1)) -> 0
C83: ='Input|Step changes'!C18 -> 0 | D83: Calculated | E83: $millions | F83: 2024-06-01 | J83: ='Input|Step changes'!J18*INDEX('Input|Rate of change'!$C$14:$P$22,MATCH('Input|Step changes'!$F18,'Input|Rate of change'!$C$14:$C$22,0),MATCH('Calc|Opex forecast'!$F83,'Input|Rate of change'!$C$14:$P$14,0))*IF('Input|Step changes'!$E18="$millions",1000000,IF('Input|Step changes'!$E18="$000",1000,1))/IF($E83="$millions",1000000,IF($E83="$000",1000,1)) -> 0 | K83: ='Input|Step changes'!K18*INDEX('Input|Rate of change'!$C$14:$P$22,MATCH('Input|Step changes'!$F18,'Input|Rate of change'!$C$14:$C$22,0),MATCH('Calc|Opex forecast'!$F83,'Input|Rate of change'!$C$14:$P$14,0))*IF('Input|Step changes'!$E18="$millions",1000000,IF('Input|Step changes'!$E18="$000",1000,1))/IF($E83="$millions",1000000,IF($E83="$000",1000,1)) -> 0 | L83: ='Input|Step changes'!L18*INDEX('Input|Rate of change'!$C$14:$P$22,MATCH('Input|Step changes'!$F18,'Input|Rate of change'!$C$14:$C$22,0),MATCH('Calc|Opex forecast'!$F83,'Input|Rate of change'!$C$14:$P$14,0))*IF('Input|Step changes'!$E18="$millions",1000000,IF('Input|Step changes'!$E18="$000",1000,1))/IF($E83="$millions",1000000,IF($E83="$000",1000,1)) -> 0 | M83: ='Input|Step changes'!M18*INDEX('Input|Rate of change'!$C$14:$P$22,MATCH('Input|Step changes'!$F18,'Input|Rate of change'!$C$14:$C$22,0),MATCH('Calc|Opex forecast'!$F83,'Input|Rate of change'!$C$14:$P$14,0))*IF('Input|Step changes'!$E18="$millions",1000000,IF('Input|Step changes'!$E18="$000",1000,1))/IF($E83="$millions",1000000,IF($E83="$000",1000,1)) -> 0 | N83: ='Input|Step changes'!N18*INDEX('Input|Rate of change'!$C$14:$P$22,MATCH('Input|Step changes'!$F18,'Input|Rate of change'!$C$14:$C$22,0),MATCH('Calc|Opex forecast'!$F83,'Input|Rate of change'!$C$14:$P$14,0))*IF('Input|Step changes'!$E18="$millions",1000000,IF('Input|Step changes'!$E18="$000",1000,1))/IF($E83="$millions",1000000,IF($E83="$000",1000,1)) -> 0 | O83: ='Input|Step changes'!O18*INDEX('Input|Rate of change'!$C$14:$P$22,MATCH('Input|Step changes'!$F18,'Input|Rate of change'!$C$14:$C$22,0),MATCH('Calc|Opex forecast'!$F83,'Input|Rate of change'!$C$14:$P$14,0))*IF('Input|Step changes'!$E18="$millions",1000000,IF('Input|Step changes'!$E18="$000",1000,1))/IF($E83="$millions",1000000,IF($E83="$000",1000,1)) -> 0 | P83: ='Input|Step changes'!P18*INDEX('Input|Rate of change'!$C$14:$P$22,MATCH('Input|Step changes'!$F18,'Input|Rate of change'!$C$14:$C$22,0),MATCH('Calc|Opex forecast'!$F83,'Input|Rate of change'!$C$14:$P$14,0))*IF('Input|Step changes'!$E18="$millions",1000000,IF('Input|Step changes'!$E18="$000",1000,1))/IF($E83="$millions",1000000,IF($E83="$000",1000,1)) -> 0 | Q83: ='Input|Step changes'!Q18*INDEX('Input|Rate of change'!$C$14:$P$22,MATCH('Input|Step changes'!$F18,'Input|Rate of change'!$C$14:$C$22,0),MATCH('Calc|Opex forecast'!$F83,'Input|Rate of change'!$C$14:$P$14,0))*IF('Input|Step changes'!$E18="$millions",1000000,IF('Input|Step changes'!$E18="$000",1000,1))/IF($E83="$millions",1000000,IF($E83="$000",1000,1)) -> 0 | R83: ='Input|Step changes'!R18*INDEX('Input|Rate of change'!$C$14:$P$22,MATCH('Input|Step changes'!$F18,'Input|Rate of change'!$C$14:$C$22,0),MATCH('Calc|Opex forecast'!$F83,'Input|Rate of change'!$C$14:$P$14,0))*IF('Input|Step changes'!$E18="$millions",1000000,IF('Input|Step changes'!$E18="$000",1000,1))/IF($E83="$millions",1000000,IF($E83="$000",1000,1)) -> 0 | S83: ='Input|Step changes'!S18*INDEX('Input|Rate of change'!$C$14:$P$22,MATCH('Input|Step changes'!$F18,'Input|Rate of change'!$C$14:$C$22,0),MATCH('Calc|Opex forecast'!$F83,'Input|Rate of change'!$C$14:$P$14,0))*IF('Input|Step changes'!$E18="$millions",1000000,IF('Input|Step changes'!$E18="$000",1000,1))/IF($E83="$millions",1000000,IF($E83="$000",1000,1)) -> 0 | T83: ='Input|Step changes'!T18*INDEX('Input|Rate of change'!$C$14:$P$22,MATCH('Input|Step changes'!$F18,'Input|Rate of change'!$C$14:$C$22,0),MATCH('Calc|Opex forecast'!$F83,'Input|Rate of change'!$C$14:$P$14,0))*IF('Input|Step changes'!$E18="$millions",1000000,IF('Input|Step changes'!$E18="$000",1000,1))/IF($E83="$millions",1000000,IF($E83="$000",1000,1)) -> 0
C84: ='Input|Step changes'!C19 -> 0 | D84: Calculated | E84: $millions | F84: 2024-06-01 | J84: ='Input|Step changes'!J19*INDEX('Input|Rate of change'!$C$14:$P$22,MATCH('Input|Step changes'!$F19,'Input|Rate of change'!$C$14:$C$22,0),MATCH('Calc|Opex forecast'!$F84,'Input|Rate of change'!$C$14:$P$14,0))*IF('Input|Step changes'!$E19="$millions",1000000,IF('Input|Step changes'!$E19="$000",1000,1))/IF($E84="$millions",1000000,IF($E84="$000",1000,1)) -> 0 | K84: ='Input|Step changes'!K19*INDEX('Input|Rate of change'!$C$14:$P$22,MATCH('Input|Step changes'!$F19,'Input|Rate of change'!$C$14:$C$22,0),MATCH('Calc|Opex forecast'!$F84,'Input|Rate of change'!$C$14:$P$14,0))*IF('Input|Step changes'!$E19="$millions",1000000,IF('Input|Step changes'!$E19="$000",1000,1))/IF($E84="$millions",1000000,IF($E84="$000",1000,1)) -> 0 | L84: ='Input|Step changes'!L19*INDEX('Input|Rate of change'!$C$14:$P$22,MATCH('Input|Step changes'!$F19,'Input|Rate of change'!$C$14:$C$22,0),MATCH('Calc|Opex forecast'!$F84,'Input|Rate of change'!$C$14:$P$14,0))*IF('Input|Step changes'!$E19="$millions",1000000,IF('Input|Step changes'!$E19="$000",1000,1))/IF($E84="$millions",1000000,IF($E84="$000",1000,1)) -> 0 | M84: ='Input|Step changes'!M19*INDEX('Input|Rate of change'!$C$14:$P$22,MATCH('Input|Step changes'!$F19,'Input|Rate of change'!$C$14:$C$22,0),MATCH('Calc|Opex forecast'!$F84,'Input|Rate of change'!$C$14:$P$14,0))*IF('Input|Step changes'!$E19="$millions",1000000,IF('Input|Step changes'!$E19="$000",1000,1))/IF($E84="$millions",1000000,IF($E84="$000",1000,1)) -> 0 | N84: ='Input|Step changes'!N19*INDEX('Input|Rate of change'!$C$14:$P$22,MATCH('Input|Step changes'!$F19,'Input|Rate of change'!$C$14:$C$22,0),MATCH('Calc|Opex forecast'!$F84,'Input|Rate of change'!$C$14:$P$14,0))*IF('Input|Step changes'!$E19="$millions",1000000,IF('Input|Step changes'!$E19="$000",1000,1))/IF($E84="$millions",1000000,IF($E84="$000",1000,1)) -> 0 | O84: ='Input|Step changes'!O19*INDEX('Input|Rate of change'!$C$14:$P$22,MATCH('Input|Step changes'!$F19,'Input|Rate of change'!$C$14:$C$22,0),MATCH('Calc|Opex forecast'!$F84,'Input|Rate of change'!$C$14:$P$14,0))*IF('Input|Step changes'!$E19="$millions",1000000,IF('Input|Step changes'!$E19="$000",1000,1))/IF($E84="$millions",1000000,IF($E84="$000",1000,1)) -> 0 | P84: ='Input|Step changes'!P19*INDEX('Input|Rate of change'!$C$14:$P$22,MATCH('Input|Step changes'!$F19,'Input|Rate of change'!$C$14:$C$22,0),MATCH('Calc|Opex forecast'!$F84,'Input|Rate of change'!$C$14:$P$14,0))*IF('Input|Step changes'!$E19="$millions",1000000,IF('Input|Step changes'!$E19="$000",1000,1))/IF($E84="$millions",1000000,IF($E84="$000",1000,1)) -> 0 | Q84: ='Input|Step changes'!Q19*INDEX('Input|Rate of change'!$C$14:$P$22,MATCH('Input|Step changes'!$F19,'Input|Rate of change'!$C$14:$C$22,0),MATCH('Calc|Opex forecast'!$F84,'Input|Rate of change'!$C$14:$P$14,0))*IF('Input|Step changes'!$E19="$millions",1000000,IF('Input|Step changes'!$E19="$000",1000,1))/IF($E84="$millions",1000000,IF($E84="$000",1000,1)) -> 0 | R84: ='Input|Step changes'!R19*INDEX('Input|Rate of change'!$C$14:$P$22,MATCH('Input|Step changes'!$F19,'Input|Rate of change'!$C$14:$C$22,0),MATCH('Calc|Opex forecast'!$F84,'Input|Rate of change'!$C$14:$P$14,0))*IF('Input|Step changes'!$E19="$millions",1000000,IF('Input|Step changes'!$E19="$000",1000,1))/IF($E84="$millions",1000000,IF($E84="$000",1000,1)) -> 0 | S84: ='Input|Step changes'!S19*INDEX('Input|Rate of change'!$C$14:$P$22,MATCH('Input|Step changes'!$F19,'Input|Rate of change'!$C$14:$C$22,0),MATCH('Calc|Opex forecast'!$F84,'Input|Rate of change'!$C$14:$P$14,0))*IF('Input|Step changes'!$E19="$millions",1000000,IF('Input|Step changes'!$E19="$000",1000,1))/IF($E84="$millions",1000000,IF($E84="$000",1000,1)) -> 0 | T84: ='Input|Step changes'!T19*INDEX('Input|Rate of change'!$C$14:$P$22,MATCH('Input|Step changes'!$F19,'Input|Rate of change'!$C$14:$C$22,0),MATCH('Calc|Opex forecast'!$F84,'Input|Rate of change'!$C$14:$P$14,0))*IF('Input|Step changes'!$E19="$millions",1000000,IF('Input|Step changes'!$E19="$000",1000,1))/IF($E84="$millions",1000000,IF($E84="$000",1000,1)) -> 0
C85: ='Input|Step changes'!C20 -> 0 | D85: Calculated | E85: $millions | F85: 2024-06-01 | J85: ='Input|Step changes'!J20*INDEX('Input|Rate of change'!$C$14:$P$22,MATCH('Input|Step changes'!$F20,'Input|Rate of change'!$C$14:$C$22,0),MATCH('Calc|Opex forecast'!$F85,'Input|Rate of change'!$C$14:$P$14,0))*IF('Input|Step changes'!$E20="$millions",1000000,IF('Input|Step changes'!$E20="$000",1000,1))/IF($E85="$millions",1000000,IF($E85="$000",1000,1)) -> 0 | K85: ='Input|Step changes'!K20*INDEX('Input|Rate of change'!$C$14:$P$22,MATCH('Input|Step changes'!$F20,'Input|Rate of change'!$C$14:$C$22,0),MATCH('Calc|Opex forecast'!$F85,'Input|Rate of change'!$C$14:$P$14,0))*IF('Input|Step changes'!$E20="$millions",1000000,IF('Input|Step changes'!$E20="$000",1000,1))/IF($E85="$millions",1000000,IF($E85="$000",1000,1)) -> 0 | L85: ='Input|Step changes'!L20*INDEX('Input|Rate of change'!$C$14:$P$22,MATCH('Input|Step changes'!$F20,'Input|Rate of change'!$C$14:$C$22,0),MATCH('Calc|Opex forecast'!$F85,'Input|Rate of change'!$C$14:$P$14,0))*IF('Input|Step changes'!$E20="$millions",1000000,IF('Input|Step changes'!$E20="$000",1000,1))/IF($E85="$millions",1000000,IF($E85="$000",1000,1)) -> 0 | M85: ='Input|Step changes'!M20*INDEX('Input|Rate of change'!$C$14:$P$22,MATCH('Input|Step changes'!$F20,'Input|Rate of change'!$C$14:$C$22,0),MATCH('Calc|Opex forecast'!$F85,'Input|Rate of change'!$C$14:$P$14,0))*IF('Input|Step changes'!$E20="$millions",1000000,IF('Input|Step changes'!$E20="$000",1000,1))/IF($E85="$millions",1000000,IF($E85="$000",1000,1)) -> 0 | N85: ='Input|Step changes'!N20*INDEX('Input|Rate of change'!$C$14:$P$22,MATCH('Input|Step changes'!$F20,'Input|Rate of change'!$C$14:$C$22,0),MATCH('Calc|Opex forecast'!$F85,'Input|Rate of change'!$C$14:$P$14,0))*IF('Input|Step changes'!$E20="$millions",1000000,IF('Input|Step changes'!$E20="$000",1000,1))/IF($E85="$millions",1000000,IF($E85="$000",1000,1)) -> 0 | O85: ='Input|Step changes'!O20*INDEX('Input|Rate of change'!$C$14:$P$22,MATCH('Input|Step changes'!$F20,'Input|Rate of change'!$C$14:$C$22,0),MATCH('Calc|Opex forecast'!$F85,'Input|Rate of change'!$C$14:$P$14,0))*IF('Input|Step changes'!$E20="$millions",1000000,IF('Input|Step changes'!$E20="$000",1000,1))/IF($E85="$millions",1000000,IF($E85="$000",1000,1)) -> 0 | P85: ='Input|Step changes'!P20*INDEX('Input|Rate of change'!$C$14:$P$22,MATCH('Input|Step changes'!$F20,'Input|Rate of change'!$C$14:$C$22,0),MATCH('Calc|Opex forecast'!$F85,'Input|Rate of change'!$C$14:$P$14,0))*IF('Input|Step changes'!$E20="$millions",1000000,IF('Input|Step changes'!$E20="$000",1000,1))/IF($E85="$millions",1000000,IF($E85="$000",1000,1)) -> 0 | Q85: ='Input|Step changes'!Q20*INDEX('Input|Rate of change'!$C$14:$P$22,MATCH('Input|Step changes'!$F20,'Input|Rate of change'!$C$14:$C$22,0),MATCH('Calc|Opex forecast'!$F85,'Input|Rate of change'!$C$14:$P$14,0))*IF('Input|Step changes'!$E20="$millions",1000000,IF('Input|Step changes'!$E20="$000",1000,1))/IF($E85="$millions",1000000,IF($E85="$000",1000,1)) -> 0 | R85: ='Input|Step changes'!R20*INDEX('Input|Rate of change'!$C$14:$P$22,MATCH('Input|Step changes'!$F20,'Input|Rate of change'!$C$14:$C$22,0),MATCH('Calc|Opex forecast'!$F85,'Input|Rate of change'!$C$14:$P$14,0))*IF('Input|Step changes'!$E20="$millions",1000000,IF('Input|Step changes'!$E20="$000",1000,1))/IF($E85="$millions",1000000,IF($E85="$000",1000,1)) -> 0 | S85: ='Input|Step changes'!S20*INDEX('Input|Rate of change'!$C$14:$P$22,MATCH('Input|Step changes'!$F20,'Input|Rate of change'!$C$14:$C$22,0),MATCH('Calc|Opex forecast'!$F85,'Input|Rate of change'!$C$14:$P$14,0))*IF('Input|Step changes'!$E20="$millions",1000000,IF('Input|Step changes'!$E20="$000",1000,1))/IF($E85="$millions",1000000,IF($E85="$000",1000,1)) -> 0 | T85: ='Input|Step changes'!T20*INDEX('Input|Rate of change'!$C$14:$P$22,MATCH('Input|Step changes'!$F20,'Input|Rate of change'!$C$14:$C$22,0),MATCH('Calc|Opex forecast'!$F85,'Input|Rate of change'!$C$14:$P$14,0))*IF('Input|Step changes'!$E20="$millions",1000000,IF('Input|Step changes'!$E20="$000",1000,1))/IF($E85="$millions",1000000,IF($E85="$000",1000,1)) -> 0
C87: Total step changes | D87: Calculated | E87: =$E$8 -> $millions | F87: 2024-06-01 | J87: =SUM(J76:J86) -> 0 | K87: =SUM(K76:K86) -> 0 | L87: 0 | M87: 0 | N87: 0 | O87: 8.601143629 | P87: 11.00545429 | Q87: 10.65906887 | R87: 13.42250721 | S87: 16.31182599 | T87: =SUM(T76:T86) -> 0
B89: Calc | Category specific forecasts
C91: Category specific forecasts | D91: Source | E91: Unit | F91: Basis | J91: =IF(YEAR(J$4)>='Input|General'!$G$13,IF(YEAR(J$4)<='Input|General'!$G$14,J$4,""),"") ->  | K91: =IF(YEAR(K$4)>='Input|General'!$G$13,IF(YEAR(K$4)<='Input|General'!$G$14,K$4,""),"") ->  | L91: =IF(YEAR(L$4)>='Input|General'!$G$13,IF(YEAR(L$4)<='Input|General'!$G$14,L$4,""),"") ->  | M91: =IF(YEAR(M$4)>='Input|General'!$G$13,IF(YEAR(M$4)<='Input|General'!$G$14,M$4,""),"") ->  | N91: =IF(YEAR(N$4)>='Input|General'!$G$13,IF(YEAR(N$4)<='Input|General'!$G$14,N$4,""),"") ->  | O91: =IF(YEAR(O$4)>='Input|General'!$G$13,IF(YEAR(O$4)<='Input|General'!$G$14,O$4,""),"") -> 2025-06-01 | P91: =IF(YEAR(P$4)>='Input|General'!$G$13,IF(YEAR(P$4)<='Input|General'!$G$14,P$4,""),"") -> 2026-06-01 | Q91: =IF(YEAR(Q$4)>='Input|General'!$G$13,IF(YEAR(Q$4)<='Input|General'!$G$14,Q$4,""),"") -> 2027-06-01 | R91: =IF(YEAR(R$4)>='Input|General'!$G$13,IF(YEAR(R$4)<='Input|General'!$G$14,R$4,""),"") -> 2028-06-01 | S91: =IF(YEAR(S$4)>='Input|General'!$G$13,IF(YEAR(S$4)<='Input|General'!$G$14,S$4,""),"") -> 2029-06-01 | T91: =IF(YEAR(T$4)>='Input|General'!$G$13,IF(YEAR(T$4)<='Input|General'!$G$14,T$4,""),"") -> 
C93: ='Input|Step changes'!C28 -> 0 | D93: Calculated | E93: $millions | F93: =$F$8 -> 2024-06-01 | J93: ='Input|Step changes'!J28*INDEX('Input|Rate of change'!$C$14:$P$22,MATCH('Input|Step changes'!$F28,'Input|Rate of change'!$C$14:$C$22,0),MATCH('Calc|Opex forecast'!$F93,'Input|Rate of change'!$C$14:$P$14,0))*IF('Input|Step changes'!$E28="$millions",1000000,IF('Input|Step changes'!$E28="$000",1000,1))/IF($E93="$millions",1000000,IF($E93="$000",1000,1)) -> 0 | K93: ='Input|Step changes'!K28*INDEX('Input|Rate of change'!$C$14:$P$22,MATCH('Input|Step changes'!$F28,'Input|Rate of change'!$C$14:$C$22,0),MATCH('Calc|Opex forecast'!$F93,'Input|Rate of change'!$C$14:$P$14,0))*IF('Input|Step changes'!$E28="$millions",1000000,IF('Input|Step changes'!$E28="$000",1000,1))/IF($E93="$millions",1000000,IF($E93="$000",1000,1)) -> 0 | L93: ='Input|Step changes'!L28*INDEX('Input|Rate of change'!$C$14:$P$22,MATCH('Input|Step changes'!$F28,'Input|Rate of change'!$C$14:$C$22,0),MATCH('Calc|Opex forecast'!$F93,'Input|Rate of change'!$C$14:$P$14,0))*IF('Input|Step changes'!$E28="$millions",1000000,IF('Input|Step changes'!$E28="$000",1000,1))/IF($E93="$millions",1000000,IF($E93="$000",1000,1)) -> 0 | M93: ='Input|Step changes'!M28*INDEX('Input|Rate of change'!$C$14:$P$22,MATCH('Input|Step changes'!$F28,'Input|Rate of change'!$C$14:$C$22,0),MATCH('Calc|Opex forecast'!$F93,'Input|Rate of change'!$C$14:$P$14,0))*IF('Input|Step changes'!$E28="$millions",1000000,IF('Input|Step changes'!$E28="$000",1000,1))/IF($E93="$millions",1000000,IF($E93="$000",1000,1)) -> 0 | N93: ='Input|Step changes'!N28*INDEX('Input|Rate of change'!$C$14:$P$22,MATCH('Input|Step changes'!$F28,'Input|Rate of change'!$C$14:$C$22,0),MATCH('Calc|Opex forecast'!$F93,'Input|Rate of change'!$C$14:$P$14,0))*IF('Input|Step changes'!$E28="$millions",1000000,IF('Input|Step changes'!$E28="$000",1000,1))/IF($E93="$millions",1000000,IF($E93="$000",1000,1)) -> 0 | O93: ='Input|Step changes'!O28*INDEX('Input|Rate of change'!$C$14:$P$22,MATCH('Input|Step changes'!$F28,'Input|Rate of change'!$C$14:$C$22,0),MATCH('Calc|Opex forecast'!$F93,'Input|Rate of change'!$C$14:$P$14,0))*IF('Input|Step changes'!$E28="$millions",1000000,IF('Input|Step changes'!$E28="$000",1000,1))/IF($E93="$millions",1000000,IF($E93="$000",1000,1)) -> 0 | P93: ='Input|Step changes'!P28*INDEX('Input|Rate of change'!$C$14:$P$22,MATCH('Input|Step changes'!$F28,'Input|Rate of change'!$C$14:$C$22,0),MATCH('Calc|Opex forecast'!$F93,'Input|Rate of change'!$C$14:$P$14,0))*IF('Input|Step changes'!$E28="$millions",1000000,IF('Input|Step changes'!$E28="$000",1000,1))/IF($E93="$millions",1000000,IF($E93="$000",1000,1)) -> 0 | Q93: ='Input|Step changes'!Q28*INDEX('Input|Rate of change'!$C$14:$P$22,MATCH('Input|Step changes'!$F28,'Input|Rate of change'!$C$14:$C$22,0),MATCH('Calc|Opex forecast'!$F93,'Input|Rate of change'!$C$14:$P$14,0))*IF('Input|Step changes'!$E28="$millions",1000000,IF('Input|Step changes'!$E28="$000",1000,1))/IF($E93="$millions",1000000,IF($E93="$000",1000,1)) -> 0 | R93: ='Input|Step changes'!R28*INDEX('Input|Rate of change'!$C$14:$P$22,MATCH('Input|Step changes'!$F28,'Input|Rate of change'!$C$14:$C$22,0),MATCH('Calc|Opex forecast'!$F93,'Input|Rate of change'!$C$14:$P$14,0))*IF('Input|Step changes'!$E28="$millions",1000000,IF('Input|Step changes'!$E28="$000",1000,1))/IF($E93="$millions",1000000,IF($E93="$000",1000,1)) -> 0 | S93: ='Input|Step changes'!S28*INDEX('Input|Rate of change'!$C$14:$P$22,MATCH('Input|Step changes'!$F28,'Input|Rate of change'!$C$14:$C$22,0),MATCH('Calc|Opex forecast'!$F93,'Input|Rate of change'!$C$14:$P$14,0))*IF('Input|Step changes'!$E28="$millions",1000000,IF('Input|Step changes'!$E28="$000",1000,1))/IF($E93="$millions",1000000,IF($E93="$000",1000,1)) -> 0 | T93: ='Input|Step changes'!T28*INDEX('Input|Rate of change'!$C$14:$P$22,MATCH('Input|Step changes'!$F28,'Input|Rate of change'!$C$14:$C$22,0),MATCH('Calc|Opex forecast'!$F93,'Input|Rate of change'!$C$14:$P$14,0))*IF('Input|Step changes'!$E28="$millions",1000000,IF('Input|Step changes'!$E28="$000",1000,1))/IF($E93="$millions",1000000,IF($E93="$000",1000,1)) -> 0
C94: ='Input|Step changes'!C29 -> 0 | D94: Calculated | E94: $millions | F94: 2024-06-01 | J94: ='Input|Step changes'!J29*INDEX('Input|Rate of change'!$C$14:$P$22,MATCH('Input|Step changes'!$F29,'Input|Rate of change'!$C$14:$C$22,0),MATCH('Calc|Opex forecast'!$F94,'Input|Rate of change'!$C$14:$P$14,0))*IF('Input|Step changes'!$E29="$millions",1000000,IF('Input|Step changes'!$E29="$000",1000,1))/IF($E94="$millions",1000000,IF($E94="$000",1000,1)) -> 0 | K94: ='Input|Step changes'!K29*INDEX('Input|Rate of change'!$C$14:$P$22,MATCH('Input|Step changes'!$F29,'Input|Rate of change'!$C$14:$C$22,0),MATCH('Calc|Opex forecast'!$F94,'Input|Rate of change'!$C$14:$P$14,0))*IF('Input|Step changes'!$E29="$millions",1000000,IF('Input|Step changes'!$E29="$000",1000,1))/IF($E94="$millions",1000000,IF($E94="$000",1000,1)) -> 0 | L94: ='Input|Step changes'!L29*INDEX('Input|Rate of change'!$C$14:$P$22,MATCH('Input|Step changes'!$F29,'Input|Rate of change'!$C$14:$C$22,0),MATCH('Calc|Opex forecast'!$F94,'Input|Rate of change'!$C$14:$P$14,0))*IF('Input|Step changes'!$E29="$millions",1000000,IF('Input|Step changes'!$E29="$000",1000,1))/IF($E94="$millions",1000000,IF($E94="$000",1000,1)) -> 0 | M94: ='Input|Step changes'!M29*INDEX('Input|Rate of change'!$C$14:$P$22,MATCH('Input|Step changes'!$F29,'Input|Rate of change'!$C$14:$C$22,0),MATCH('Calc|Opex forecast'!$F94,'Input|Rate of change'!$C$14:$P$14,0))*IF('Input|Step changes'!$E29="$millions",1000000,IF('Input|Step changes'!$E29="$000",1000,1))/IF($E94="$millions",1000000,IF($E94="$000",1000,1)) -> 0 | N94: ='Input|Step changes'!N29*INDEX('Input|Rate of change'!$C$14:$P$22,MATCH('Input|Step changes'!$F29,'Input|Rate of change'!$C$14:$C$22,0),MATCH('Calc|Opex forecast'!$F94,'Input|Rate of change'!$C$14:$P$14,0))*IF('Input|Step changes'!$E29="$millions",1000000,IF('Input|Step changes'!$E29="$000",1000,1))/IF($E94="$millions",1000000,IF($E94="$000",1000,1)) -> 0 | O94: ='Input|Step changes'!O29*INDEX('Input|Rate of change'!$C$14:$P$22,MATCH('Input|Step changes'!$F29,'Input|Rate of change'!$C$14:$C$22,0),MATCH('Calc|Opex forecast'!$F94,'Input|Rate of change'!$C$14:$P$14,0))*IF('Input|Step changes'!$E29="$millions",1000000,IF('Input|Step changes'!$E29="$000",1000,1))/IF($E94="$millions",1000000,IF($E94="$000",1000,1)) -> 0 | P94: ='Input|Step changes'!P29*INDEX('Input|Rate of change'!$C$14:$P$22,MATCH('Input|Step changes'!$F29,'Input|Rate of change'!$C$14:$C$22,0),MATCH('Calc|Opex forecast'!$F94,'Input|Rate of change'!$C$14:$P$14,0))*IF('Input|Step changes'!$E29="$millions",1000000,IF('Input|Step changes'!$E29="$000",1000,1))/IF($E94="$millions",1000000,IF($E94="$000",1000,1)) -> 0 | Q94: ='Input|Step changes'!Q29*INDEX('Input|Rate of change'!$C$14:$P$22,MATCH('Input|Step changes'!$F29,'Input|Rate of change'!$C$14:$C$22,0),MATCH('Calc|Opex forecast'!$F94,'Input|Rate of change'!$C$14:$P$14,0))*IF('Input|Step changes'!$E29="$millions",1000000,IF('Input|Step changes'!$E29="$000",1000,1))/IF($E94="$millions",1000000,IF($E94="$000",1000,1)) -> 0 | R94: ='Input|Step changes'!R29*INDEX('Input|Rate of change'!$C$14:$P$22,MATCH('Input|Step changes'!$F29,'Input|Rate of change'!$C$14:$C$22,0),MATCH('Calc|Opex forecast'!$F94,'Input|Rate of change'!$C$14:$P$14,0))*IF('Input|Step changes'!$E29="$millions",1000000,IF('Input|Step changes'!$E29="$000",1000,1))/IF($E94="$millions",1000000,IF($E94="$000",1000,1)) -> 0 | S94: ='Input|Step changes'!S29*INDEX('Input|Rate of change'!$C$14:$P$22,MATCH('Input|Step changes'!$F29,'Input|Rate of change'!$C$14:$C$22,0),MATCH('Calc|Opex forecast'!$F94,'Input|Rate of change'!$C$14:$P$14,0))*IF('Input|Step changes'!$E29="$millions",1000000,IF('Input|Step changes'!$E29="$000",1000,1))/IF($E94="$millions",1000000,IF($E94="$000",1000,1)) -> 0 | T94: ='Input|Step changes'!T29*INDEX('Input|Rate of change'!$C$14:$P$22,MATCH('Input|Step changes'!$F29,'Input|Rate of change'!$C$14:$C$22,0),MATCH('Calc|Opex forecast'!$F94,'Input|Rate of change'!$C$14:$P$14,0))*IF('Input|Step changes'!$E29="$millions",1000000,IF('Input|Step changes'!$E29="$000",1000,1))/IF($E94="$millions",1000000,IF($E94="$000",1000,1)) -> 0
C95: ='Input|Step changes'!C30 -> 0 | D95: Calculated | E95: $millions | F95: 2024-06-01 | J95: ='Input|Step changes'!J30*INDEX('Input|Rate of change'!$C$14:$P$22,MATCH('Input|Step changes'!$F30,'Input|Rate of change'!$C$14:$C$22,0),MATCH('Calc|Opex forecast'!$F95,'Input|Rate of change'!$C$14:$P$14,0))*IF('Input|Step changes'!$E30="$millions",1000000,IF('Input|Step changes'!$E30="$000",1000,1))/IF($E95="$millions",1000000,IF($E95="$000",1000,1)) -> 0 | K95: ='Input|Step changes'!K30*INDEX('Input|Rate of change'!$C$14:$P$22,MATCH('Input|Step changes'!$F30,'Input|Rate of change'!$C$14:$C$22,0),MATCH('Calc|Opex forecast'!$F95,'Input|Rate of change'!$C$14:$P$14,0))*IF('Input|Step changes'!$E30="$millions",1000000,IF('Input|Step changes'!$E30="$000",1000,1))/IF($E95="$millions",1000000,IF($E95="$000",1000,1)) -> 0 | L95: ='Input|Step changes'!L30*INDEX('Input|Rate of change'!$C$14:$P$22,MATCH('Input|Step changes'!$F30,'Input|Rate of change'!$C$14:$C$22,0),MATCH('Calc|Opex forecast'!$F95,'Input|Rate of change'!$C$14:$P$14,0))*IF('Input|Step changes'!$E30="$millions",1000000,IF('Input|Step changes'!$E30="$000",1000,1))/IF($E95="$millions",1000000,IF($E95="$000",1000,1)) -> 0 | M95: ='Input|Step changes'!M30*INDEX('Input|Rate of change'!$C$14:$P$22,MATCH('Input|Step changes'!$F30,'Input|Rate of change'!$C$14:$C$22,0),MATCH('Calc|Opex forecast'!$F95,'Input|Rate of change'!$C$14:$P$14,0))*IF('Input|Step changes'!$E30="$millions",1000000,IF('Input|Step changes'!$E30="$000",1000,1))/IF($E95="$millions",1000000,IF($E95="$000",1000,1)) -> 0 | N95: ='Input|Step changes'!N30*INDEX('Input|Rate of change'!$C$14:$P$22,MATCH('Input|Step changes'!$F30,'Input|Rate of change'!$C$14:$C$22,0),MATCH('Calc|Opex forecast'!$F95,'Input|Rate of change'!$C$14:$P$14,0))*IF('Input|Step changes'!$E30="$millions",1000000,IF('Input|Step changes'!$E30="$000",1000,1))/IF($E95="$millions",1000000,IF($E95="$000",1000,1)) -> 0 | O95: ='Input|Step changes'!O30*INDEX('Input|Rate of change'!$C$14:$P$22,MATCH('Input|Step changes'!$F30,'Input|Rate of change'!$C$14:$C$22,0),MATCH('Calc|Opex forecast'!$F95,'Input|Rate of change'!$C$14:$P$14,0))*IF('Input|Step changes'!$E30="$millions",1000000,IF('Input|Step changes'!$E30="$000",1000,1))/IF($E95="$millions",1000000,IF($E95="$000",1000,1)) -> 0 | P95: ='Input|Step changes'!P30*INDEX('Input|Rate of change'!$C$14:$P$22,MATCH('Input|Step changes'!$F30,'Input|Rate of change'!$C$14:$C$22,0),MATCH('Calc|Opex forecast'!$F95,'Input|Rate of change'!$C$14:$P$14,0))*IF('Input|Step changes'!$E30="$millions",1000000,IF('Input|Step changes'!$E30="$000",1000,1))/IF($E95="$millions",1000000,IF($E95="$000",1000,1)) -> 0 | Q95: ='Input|Step changes'!Q30*INDEX('Input|Rate of change'!$C$14:$P$22,MATCH('Input|Step changes'!$F30,'Input|Rate of change'!$C$14:$C$22,0),MATCH('Calc|Opex forecast'!$F95,'Input|Rate of change'!$C$14:$P$14,0))*IF('Input|Step changes'!$E30="$millions",1000000,IF('Input|Step changes'!$E30="$000",1000,1))/IF($E95="$millions",1000000,IF($E95="$000",1000,1)) -> 0 | R95: ='Input|Step changes'!R30*INDEX('Input|Rate of change'!$C$14:$P$22,MATCH('Input|Step changes'!$F30,'Input|Rate of change'!$C$14:$C$22,0),MATCH('Calc|Opex forecast'!$F95,'Input|Rate of change'!$C$14:$P$14,0))*IF('Input|Step changes'!$E30="$millions",1000000,IF('Input|Step changes'!$E30="$000",1000,1))/IF($E95="$millions",1000000,IF($E95="$000",1000,1)) -> 0 | S95: ='Input|Step changes'!S30*INDEX('Input|Rate of change'!$C$14:$P$22,MATCH('Input|Step changes'!$F30,'Input|Rate of change'!$C$14:$C$22,0),MATCH('Calc|Opex forecast'!$F95,'Input|Rate of change'!$C$14:$P$14,0))*IF('Input|Step changes'!$E30="$millions",1000000,IF('Input|Step changes'!$E30="$000",1000,1))/IF($E95="$millions",1000000,IF($E95="$000",1000,1)) -> 0 | T95: ='Input|Step changes'!T30*INDEX('Input|Rate of change'!$C$14:$P$22,MATCH('Input|Step changes'!$F30,'Input|Rate of change'!$C$14:$C$22,0),MATCH('Calc|Opex forecast'!$F95,'Input|Rate of change'!$C$14:$P$14,0))*IF('Input|Step changes'!$E30="$millions",1000000,IF('Input|Step changes'!$E30="$000",1000,1))/IF($E95="$millions",1000000,IF($E95="$000",1000,1)) -> 0
C96: ='Input|Step changes'!C31 -> 0 | D96: Calculated | E96: $millions | F96: 2024-06-01 | J96: ='Input|Step changes'!J31*INDEX('Input|Rate of change'!$C$14:$P$22,MATCH('Input|Step changes'!$F31,'Input|Rate of change'!$C$14:$C$22,0),MATCH('Calc|Opex forecast'!$F96,'Input|Rate of change'!$C$14:$P$14,0))*IF('Input|Step changes'!$E31="$millions",1000000,IF('Input|Step changes'!$E31="$000",1000,1))/IF($E96="$millions",1000000,IF($E96="$000",1000,1)) -> 0 | K96: ='Input|Step changes'!K31*INDEX('Input|Rate of change'!$C$14:$P$22,MATCH('Input|Step changes'!$F31,'Input|Rate of change'!$C$14:$C$22,0),MATCH('Calc|Opex forecast'!$F96,'Input|Rate of change'!$C$14:$P$14,0))*IF('Input|Step changes'!$E31="$millions",1000000,IF('Input|Step changes'!$E31="$000",1000,1))/IF($E96="$millions",1000000,IF($E96="$000",1000,1)) -> 0 | L96: ='Input|Step changes'!L31*INDEX('Input|Rate of change'!$C$14:$P$22,MATCH('Input|Step changes'!$F31,'Input|Rate of change'!$C$14:$C$22,0),MATCH('Calc|Opex forecast'!$F96,'Input|Rate of change'!$C$14:$P$14,0))*IF('Input|Step changes'!$E31="$millions",1000000,IF('Input|Step changes'!$E31="$000",1000,1))/IF($E96="$millions",1000000,IF($E96="$000",1000,1)) -> 0 | M96: ='Input|Step changes'!M31*INDEX('Input|Rate of change'!$C$14:$P$22,MATCH('Input|Step changes'!$F31,'Input|Rate of change'!$C$14:$C$22,0),MATCH('Calc|Opex forecast'!$F96,'Input|Rate of change'!$C$14:$P$14,0))*IF('Input|Step changes'!$E31="$millions",1000000,IF('Input|Step changes'!$E31="$000",1000,1))/IF($E96="$millions",1000000,IF($E96="$000",1000,1)) -> 0 | N96: ='Input|Step changes'!N31*INDEX('Input|Rate of change'!$C$14:$P$22,MATCH('Input|Step changes'!$F31,'Input|Rate of change'!$C$14:$C$22,0),MATCH('Calc|Opex forecast'!$F96,'Input|Rate of change'!$C$14:$P$14,0))*IF('Input|Step changes'!$E31="$millions",1000000,IF('Input|Step changes'!$E31="$000",1000,1))/IF($E96="$millions",1000000,IF($E96="$000",1000,1)) -> 0 | O96: ='Input|Step changes'!O31*INDEX('Input|Rate of change'!$C$14:$P$22,MATCH('Input|Step changes'!$F31,'Input|Rate of change'!$C$14:$C$22,0),MATCH('Calc|Opex forecast'!$F96,'Input|Rate of change'!$C$14:$P$14,0))*IF('Input|Step changes'!$E31="$millions",1000000,IF('Input|Step changes'!$E31="$000",1000,1))/IF($E96="$millions",1000000,IF($E96="$000",1000,1)) -> 0 | P96: ='Input|Step changes'!P31*INDEX('Input|Rate of change'!$C$14:$P$22,MATCH('Input|Step changes'!$F31,'Input|Rate of change'!$C$14:$C$22,0),MATCH('Calc|Opex forecast'!$F96,'Input|Rate of change'!$C$14:$P$14,0))*IF('Input|Step changes'!$E31="$millions",1000000,IF('Input|Step changes'!$E31="$000",1000,1))/IF($E96="$millions",1000000,IF($E96="$000",1000,1)) -> 0 | Q96: ='Input|Step changes'!Q31*INDEX('Input|Rate of change'!$C$14:$P$22,MATCH('Input|Step changes'!$F31,'Input|Rate of change'!$C$14:$C$22,0),MATCH('Calc|Opex forecast'!$F96,'Input|Rate of change'!$C$14:$P$14,0))*IF('Input|Step changes'!$E31="$millions",1000000,IF('Input|Step changes'!$E31="$000",1000,1))/IF($E96="$millions",1000000,IF($E96="$000",1000,1)) -> 0 | R96: ='Input|Step changes'!R31*INDEX('Input|Rate of change'!$C$14:$P$22,MATCH('Input|Step changes'!$F31,'Input|Rate of change'!$C$14:$C$22,0),MATCH('Calc|Opex forecast'!$F96,'Input|Rate of change'!$C$14:$P$14,0))*IF('Input|Step changes'!$E31="$millions",1000000,IF('Input|Step changes'!$E31="$000",1000,1))/IF($E96="$millions",1000000,IF($E96="$000",1000,1)) -> 0 | S96: ='Input|Step changes'!S31*INDEX('Input|Rate of change'!$C$14:$P$22,MATCH('Input|Step changes'!$F31,'Input|Rate of change'!$C$14:$C$22,0),MATCH('Calc|Opex forecast'!$F96,'Input|Rate of change'!$C$14:$P$14,0))*IF('Input|Step changes'!$E31="$millions",1000000,IF('Input|Step changes'!$E31="$000",1000,1))/IF($E96="$millions",1000000,IF($E96="$000",1000,1)) -> 0 | T96: ='Input|Step changes'!T31*INDEX('Input|Rate of change'!$C$14:$P$22,MATCH('Input|Step changes'!$F31,'Input|Rate of change'!$C$14:$C$22,0),MATCH('Calc|Opex forecast'!$F96,'Input|Rate of change'!$C$14:$P$14,0))*IF('Input|Step changes'!$E31="$millions",1000000,IF('Input|Step changes'!$E31="$000",1000,1))/IF($E96="$millions",1000000,IF($E96="$000",1000,1)) -> 0
C97: ='Input|Step changes'!C32 -> 0 | D97: Calculated | E97: $millions | F97: 2024-06-01 | J97: ='Input|Step changes'!J32*INDEX('Input|Rate of change'!$C$14:$P$22,MATCH('Input|Step changes'!$F32,'Input|Rate of change'!$C$14:$C$22,0),MATCH('Calc|Opex forecast'!$F97,'Input|Rate of change'!$C$14:$P$14,0))*IF('Input|Step changes'!$E32="$millions",1000000,IF('Input|Step changes'!$E32="$000",1000,1))/IF($E97="$millions",1000000,IF($E97="$000",1000,1)) -> 0 | K97: ='Input|Step changes'!K32*INDEX('Input|Rate of change'!$C$14:$P$22,MATCH('Input|Step changes'!$F32,'Input|Rate of change'!$C$14:$C$22,0),MATCH('Calc|Opex forecast'!$F97,'Input|Rate of change'!$C$14:$P$14,0))*IF('Input|Step changes'!$E32="$millions",1000000,IF('Input|Step changes'!$E32="$000",1000,1))/IF($E97="$millions",1000000,IF($E97="$000",1000,1)) -> 0 | L97: ='Input|Step changes'!L32*INDEX('Input|Rate of change'!$C$14:$P$22,MATCH('Input|Step changes'!$F32,'Input|Rate of change'!$C$14:$C$22,0),MATCH('Calc|Opex forecast'!$F97,'Input|Rate of change'!$C$14:$P$14,0))*IF('Input|Step changes'!$E32="$millions",1000000,IF('Input|Step changes'!$E32="$000",1000,1))/IF($E97="$millions",1000000,IF($E97="$000",1000,1)) -> 0 | M97: ='Input|Step changes'!M32*INDEX('Input|Rate of change'!$C$14:$P$22,MATCH('Input|Step changes'!$F32,'Input|Rate of change'!$C$14:$C$22,0),MATCH('Calc|Opex forecast'!$F97,'Input|Rate of change'!$C$14:$P$14,0))*IF('Input|Step changes'!$E32="$millions",1000000,IF('Input|Step changes'!$E32="$000",1000,1))/IF($E97="$millions",1000000,IF($E97="$000",1000,1)) -> 0 | N97: ='Input|Step changes'!N32*INDEX('Input|Rate of change'!$C$14:$P$22,MATCH('Input|Step changes'!$F32,'Input|Rate of change'!$C$14:$C$22,0),MATCH('Calc|Opex forecast'!$F97,'Input|Rate of change'!$C$14:$P$14,0))*IF('Input|Step changes'!$E32="$millions",1000000,IF('Input|Step changes'!$E32="$000",1000,1))/IF($E97="$millions",1000000,IF($E97="$000",1000,1)) -> 0 | O97: ='Input|Step changes'!O32*INDEX('Input|Rate of change'!$C$14:$P$22,MATCH('Input|Step changes'!$F32,'Input|Rate of change'!$C$14:$C$22,0),MATCH('Calc|Opex forecast'!$F97,'Input|Rate of change'!$C$14:$P$14,0))*IF('Input|Step changes'!$E32="$millions",1000000,IF('Input|Step changes'!$E32="$000",1000,1))/IF($E97="$millions",1000000,IF($E97="$000",1000,1)) -> 0 | P97: ='Input|Step changes'!P32*INDEX('Input|Rate of change'!$C$14:$P$22,MATCH('Input|Step changes'!$F32,'Input|Rate of change'!$C$14:$C$22,0),MATCH('Calc|Opex forecast'!$F97,'Input|Rate of change'!$C$14:$P$14,0))*IF('Input|Step changes'!$E32="$millions",1000000,IF('Input|Step changes'!$E32="$000",1000,1))/IF($E97="$millions",1000000,IF($E97="$000",1000,1)) -> 0 | Q97: ='Input|Step changes'!Q32*INDEX('Input|Rate of change'!$C$14:$P$22,MATCH('Input|Step changes'!$F32,'Input|Rate of change'!$C$14:$C$22,0),MATCH('Calc|Opex forecast'!$F97,'Input|Rate of change'!$C$14:$P$14,0))*IF('Input|Step changes'!$E32="$millions",1000000,IF('Input|Step changes'!$E32="$000",1000,1))/IF($E97="$millions",1000000,IF($E97="$000",1000,1)) -> 0 | R97: ='Input|Step changes'!R32*INDEX('Input|Rate of change'!$C$14:$P$22,MATCH('Input|Step changes'!$F32,'Input|Rate of change'!$C$14:$C$22,0),MATCH('Calc|Opex forecast'!$F97,'Input|Rate of change'!$C$14:$P$14,0))*IF('Input|Step changes'!$E32="$millions",1000000,IF('Input|Step changes'!$E32="$000",1000,1))/IF($E97="$millions",1000000,IF($E97="$000",1000,1)) -> 0 | S97: ='Input|Step changes'!S32*INDEX('Input|Rate of change'!$C$14:$P$22,MATCH('Input|Step changes'!$F32,'Input|Rate of change'!$C$14:$C$22,0),MATCH('Calc|Opex forecast'!$F97,'Input|Rate of change'!$C$14:$P$14,0))*IF('Input|Step changes'!$E32="$millions",1000000,IF('Input|Step changes'!$E32="$000",1000,1))/IF($E97="$millions",1000000,IF($E97="$000",1000,1)) -> 0 | T97: ='Input|Step changes'!T32*INDEX('Input|Rate of change'!$C$14:$P$22,MATCH('Input|Step changes'!$F32,'Input|Rate of change'!$C$14:$C$22,0),MATCH('Calc|Opex forecast'!$F97,'Input|Rate of change'!$C$14:$P$14,0))*IF('Input|Step changes'!$E32="$millions",1000000,IF('Input|Step changes'!$E32="$000",1000,1))/IF($E97="$millions",1000000,IF($E97="$000",1000,1)) -> 0
C99: Total category specific forecasts | D99: Calculated | E99: =$E$8 -> $millions | F99: =$F$8 -> 2024-06-01 | J99: =SUM(J92:J97) -> 0 | K99: 0 | L99: 0 | M99: 0 | N99: 0 | O99: 0 | P99: 0 | Q99: 0 | R99: 0 | S99: 0 | T99: 0
B101: Calc | Total forecast operating expenditure
J103: =IF(YEAR(J$4)>='Input|General'!$G$13,IF(YEAR(J$4)<='Input|General'!$G$14,J$4,""),"") ->  | K103: =IF(YEAR(K$4)>='Input|General'!$G$13,IF(YEAR(K$4)<='Input|General'!$G$14,K$4,""),"") ->  | L103: =IF(YEAR(L$4)>='Input|General'!$G$13,IF(YEAR(L$4)<='Input|General'!$G$14,L$4,""),"") ->  | M103: =IF(YEAR(M$4)>='Input|General'!$G$13,IF(YEAR(M$4)<='Input|General'!$G$14,M$4,""),"") ->  | N103: =IF(YEAR(N$4)>='Input|General'!$G$13,IF(YEAR(N$4)<='Input|General'!$G$14,N$4,""),"") ->  | O103: =IF(YEAR(O$4)>='Input|General'!$G$13,IF(YEAR(O$4)<='Input|General'!$G$14,O$4,""),"") -> 2025-06-01 | P103: =IF(YEAR(P$4)>='Input|General'!$G$13,IF(YEAR(P$4)<='Input|General'!$G$14,P$4,""),"") -> 2026-06-01 | Q103: =IF(YEAR(Q$4)>='Input|General'!$G$13,IF(YEAR(Q$4)<='Input|General'!$G$14,Q$4,""),"") -> 2027-06-01 | R103: =IF(YEAR(R$4)>='Input|General'!$G$13,IF(YEAR(R$4)<='Input|General'!$G$14,R$4,""),"") -> 2028-06-01 | S103: =IF(YEAR(S$4)>='Input|General'!$G$13,IF(YEAR(S$4)<='Input|General'!$G$14,S$4,""),"") -> 2029-06-01 | T103: =IF(YEAR(T$4)>='Input|General'!$G$13,IF(YEAR(T$4)<='Input|General'!$G$14,T$4,""),"") -> 
C105: Total forecast opex, excluding category specific forecasts | D105: Calculated | E105: =$E$8 -> $millions | F105: =$F$8 -> 2024-06-01 | J105: =IF(YEAR(J$4)>=FPFirstYear,IF(YEAR(J$4)<=FPLastYear,IF(ISBLANK(J103),"",(1+J71)*SUM($J54:$S54)+J87),""),"") ->  | O105: 283.7126173 | P105: 290.6207991 | Q105: 294.1889412 | R105: 300.982349 | S105: 308.0881462
C106: Total forecast opex, excluding debt raising costs | D106: Calculated | E106: =$E$8 -> $millions | F106: 2024-06-01 | J106: =IF(YEAR(J$4)>=FPFirstYear,IF(YEAR(J$4)<=FPLastYear,IF(ISBLANK(J103),"",(1+J71)*SUM($J54:$S54)+J87+J99),""),"") ->  | O106: 283.7126173 | P106: 290.6207991 | Q106: 294.1889412 | R106: 300.982349 | S106: 308.0881462
C107: Total forecast opex, including debt raising costs | D107: Calculated | E107: =$E$8 -> $millions | F107: 2024-06-01 | J107: =IF(YEAR(J$4)>=FPFirstYear,IF(YEAR(J$4)<=FPLastYear,J106+'Input|Step changes'!J40,""),"") ->  | K107: =IF(YEAR(K$4)>=FPFirstYear,IF(YEAR(K$4)<=FPLastYear,K106+'Input|Step changes'!K40,""),"") ->  | L107: =IF(YEAR(L$4)>=FPFirstYear,IF(YEAR(L$4)<=FPLastYear,L106+'Input|Step changes'!L40,""),"") ->  | M107: =IF(YEAR(M$4)>=FPFirstYear,IF(YEAR(M$4)<=FPLastYear,M106+'Input|Step changes'!M40,""),"") ->  | N107: =IF(YEAR(N$4)>=FPFirstYear,IF(YEAR(N$4)<=FPLastYear,N106+'Input|Step changes'!N40,""),"") ->  | O107: =IF(YEAR(O$4)>=FPFirstYear,IF(YEAR(O$4)<=FPLastYear,O106+'Input|Step changes'!O40,""),"") -> 287.7701981 | P107: =IF(YEAR(P$4)>=FPFirstYear,IF(YEAR(P$4)<=FPLastYear,P106+'Input|Step changes'!P40,""),"") -> 294.648033 | Q107: =IF(YEAR(Q$4)>=FPFirstYear,IF(YEAR(Q$4)<=FPLastYear,Q106+'Input|Step changes'!Q40,""),"") -> 298.1957893 | R107: =IF(YEAR(R$4)>=FPFirstYear,IF(YEAR(R$4)<=FPLastYear,R106+'Input|Step changes'!R40,""),"") -> 304.958582 | S107: =IF(YEAR(S$4)>=FPFirstYear,IF(YEAR(S$4)<=FPLastYear,S106+'Input|Step changes'!S40,""),"") -> 312.0429491 | T107: =IF(YEAR(T$4)>=FPFirstYear,IF(YEAR(T$4)<=FPLastYear,T106+'Input|Step changes'!T40,""),"") -> 
B109: End

Sheet Output|Models
B1: =Index!$B$1 -> AER opex model v2.0 | J1: Back to Index | L1: Key: | M1: Input | N1: External Link | O1: Internal Link | R1: Worksheet check: | S1: n/a | V1: Overall Check: | W1: ='Check|List'!$S$1 -> Ok
B2: =Index!$C$13 -> Output | Models
J3: Year ending
D4: Source | E4: Unit | F4: Basis | J4: =DATE(PPFirstYear,MONTH('Input|General'!$G$9),1) -> 2020-06-01 | K4: =DATE(PPFirstYear+1,MONTH('Input|General'!$G$9),1) -> 2021-06-01 | L4: =DATE(PPFirstYear+2,MONTH('Input|General'!$G$9),1) -> 2022-06-01 | M4: =DATE(PPFirstYear+3,MONTH('Input|General'!$G$9),1) -> 2023-06-01 | N4: =DATE(PPFirstYear+4,MONTH('Input|General'!$G$9),1) -> 2024-06-01 | O4: =DATE(PPFirstYear+5,MONTH('Input|General'!$G$9),1) -> 2025-06-01 | P4: =DATE(PPFirstYear+6,MONTH('Input|General'!$G$9),1) -> 2026-06-01 | Q4: =DATE(PPFirstYear+7,MONTH('Input|General'!$G$9),1) -> 2027-06-01 | R4: =DATE(PPFirstYear+8,MONTH('Input|General'!$G$9),1) -> 2028-06-01 | S4: =DATE(PPFirstYear+9,MONTH('Input|General'!$G$9),1) -> 2029-06-01 | T4: =DATE(PPFirstYear+10,MONTH('Input|General'!$G$9),1) -> 2030-06-01
B8: Inputs for Post Tax Revenue Model | E8: $millions | F8: =DATE(PPLastYear,MONTH('Input|General'!$G$9),1) -> 2024-06-01 | J8: Note. The dollar base should be consistent with the post tax revenue model
C11: Operating expenditure | D11: Source | E11: Unit | F11: Basis | J11: =IF(YEAR(J$4)>='Input|General'!$G$13,IF(YEAR(J$4)<='Input|General'!$G$14,J$4,""),"") ->  | K11: =IF(YEAR(K$4)>='Input|General'!$G$13,IF(YEAR(K$4)<='Input|General'!$G$14,K$4,""),"") ->  | L11: =IF(YEAR(L$4)>='Input|General'!$G$13,IF(YEAR(L$4)<='Input|General'!$G$14,L$4,""),"") ->  | M11: =IF(YEAR(M$4)>='Input|General'!$G$13,IF(YEAR(M$4)<='Input|General'!$G$14,M$4,""),"") ->  | N11: =IF(YEAR(N$4)>='Input|General'!$G$13,IF(YEAR(N$4)<='Input|General'!$G$14,N$4,""),"") ->  | O11: =IF(YEAR(O$4)>='Input|General'!$G$13,IF(YEAR(O$4)<='Input|General'!$G$14,O$4,""),"") -> 2025-06-01 | P11: =IF(YEAR(P$4)>='Input|General'!$G$13,IF(YEAR(P$4)<='Input|General'!$G$14,P$4,""),"") -> 2026-06-01 | Q11: =IF(YEAR(Q$4)>='Input|General'!$G$13,IF(YEAR(Q$4)<='Input|General'!$G$14,Q$4,""),"") -> 2027-06-01 | R11: =IF(YEAR(R$4)>='Input|General'!$G$13,IF(YEAR(R$4)<='Input|General'!$G$14,R$4,""),"") -> 2028-06-01 | S11: =IF(YEAR(S$4)>='Input|General'!$G$13,IF(YEAR(S$4)<='Input|General'!$G$14,S$4,""),"") -> 2029-06-01 | T11: =IF(YEAR(T$4)>='Input|General'!$G$13,IF(YEAR(T$4)<='Input|General'!$G$14,T$4,""),"") ->  | V11: Notes
C13: ='Calc|Opex forecast'!C105 -> Total forecast opex, excluding category specific forecasts | D13: Calc | Opex forecast | E13: =$E$8 -> $millions | F13: =$F$8 -> 2024-06-01 | J13: =IF(J11="",0,'Calc|Opex forecast'!J105*INDEX('Input|Rate of change'!$C$14:$P$22,MATCH('Calc|Opex forecast'!$F$105,'Input|Rate of change'!$C$14:$C$22,0),MATCH('Output|Models'!$F13,'Input|Rate of change'!$C$14:$P$14,0))*IF('Calc|Opex forecast'!$E$105="$millions",1000000,IF('Calc|Opex forecast'!$E$105="$000",1000,1))/IF($E13="$millions",1000000,IF($E13="$000",1000,1))) -> 0 | K13: =IF(K11="",0,'Calc|Opex forecast'!K105*INDEX('Input|Rate of change'!$C$14:$P$22,MATCH('Calc|Opex forecast'!$F$105,'Input|Rate of change'!$C$14:$C$22,0),MATCH('Output|Models'!$F13,'Input|Rate of change'!$C$14:$P$14,0))*IF('Calc|Opex forecast'!$E$105="$millions",1000000,IF('Calc|Opex forecast'!$E$105="$000",1000,1))/IF($E13="$millions",1000000,IF($E13="$000",1000,1))) -> 0 | L13: =IF(L11="",0,'Calc|Opex forecast'!L105*INDEX('Input|Rate of change'!$C$14:$P$22,MATCH('Calc|Opex forecast'!$F$105,'Input|Rate of change'!$C$14:$C$22,0),MATCH('Output|Models'!$F13,'Input|Rate of change'!$C$14:$P$14,0))*IF('Calc|Opex forecast'!$E$105="$millions",1000000,IF('Calc|Opex forecast'!$E$105="$000",1000,1))/IF($E13="$millions",1000000,IF($E13="$000",1000,1))) -> 0 | M13: =IF(M11="",0,'Calc|Opex forecast'!M105*INDEX('Input|Rate of change'!$C$14:$P$22,MATCH('Calc|Opex forecast'!$F$105,'Input|Rate of change'!$C$14:$C$22,0),MATCH('Output|Models'!$F13,'Input|Rate of change'!$C$14:$P$14,0))*IF('Calc|Opex forecast'!$E$105="$millions",1000000,IF('Calc|Opex forecast'!$E$105="$000",1000,1))/IF($E13="$millions",1000000,IF($E13="$000",1000,1))) -> 0 | N13: =IF(N11="",0,'Calc|Opex forecast'!N105*INDEX('Input|Rate of change'!$C$14:$P$22,MATCH('Calc|Opex forecast'!$F$105,'Input|Rate of change'!$C$14:$C$22,0),MATCH('Output|Models'!$F13,'Input|Rate of change'!$C$14:$P$14,0))*IF('Calc|Opex forecast'!$E$105="$millions",1000000,IF('Calc|Opex forecast'!$E$105="$000",1000,1))/IF($E13="$millions",1000000,IF($E13="$000",1000,1))) -> 0 | O13: =IF(O11="",0,'Calc|Opex forecast'!O105*INDEX('Input|Rate of change'!$C$14:$P$22,MATCH('Calc|Opex forecast'!$F$105,'Input|Rate of change'!$C$14:$C$22,0),MATCH('Output|Models'!$F13,'Input|Rate of change'!$C$14:$P$14,0))*IF('Calc|Opex forecast'!$E$105="$millions",1000000,IF('Calc|Opex forecast'!$E$105="$000",1000,1))/IF($E13="$millions",1000000,IF($E13="$000",1000,1))) -> 283.7126173 | P13: =IF(P11="",0,'Calc|Opex forecast'!P105*INDEX('Input|Rate of change'!$C$14:$P$22,MATCH('Calc|Opex forecast'!$F$105,'Input|Rate of change'!$C$14:$C$22,0),MATCH('Output|Models'!$F13,'Input|Rate of change'!$C$14:$P$14,0))*IF('Calc|Opex forecast'!$E$105="$millions",1000000,IF('Calc|Opex forecast'!$E$105="$000",1000,1))/IF($E13="$millions",1000000,IF($E13="$000",1000,1))) -> 290.6207991 | Q13: =IF(Q11="",0,'Calc|Opex forecast'!Q105*INDEX('Input|Rate of change'!$C$14:$P$22,MATCH('Calc|Opex forecast'!$F$105,'Input|Rate of change'!$C$14:$C$22,0),MATCH('Output|Models'!$F13,'Input|Rate of change'!$C$14:$P$14,0))*IF('Calc|Opex forecast'!$E$105="$millions",1000000,IF('Calc|Opex forecast'!$E$105="$000",1000,1))/IF($E13="$millions",1000000,IF($E13="$000",1000,1))) -> 294.1889412 | R13: =IF(R11="",0,'Calc|Opex forecast'!R105*INDEX('Input|Rate of change'!$C$14:$P$22,MATCH('Calc|Opex forecast'!$F$105,'Input|Rate of change'!$C$14:$C$22,0),MATCH('Output|Models'!$F13,'Input|Rate of change'!$C$14:$P$14,0))*IF('Calc|Opex forecast'!$E$105="$millions",1000000,IF('Calc|Opex forecast'!$E$105="$000",1000,1))/IF($E13="$millions",1000000,IF($E13="$000",1000,1))) -> 300.982349 | S13: =IF(S11="",0,'Calc|Opex forecast'!S105*INDEX('Input|Rate of change'!$C$14:$P$22,MATCH('Calc|Opex forecast'!$F$105,'Input|Rate of change'!$C$14:$C$22,0),MATCH('Output|Models'!$F13,'Input|Rate of change'!$C$14:$P$14,0))*IF('Calc|Opex forecast'!$E$105="$millions",1000000,IF('Calc|Opex forecast'!$E$105="$000",1000,1))/IF($E13="$millions",1000000,IF($E13="$000",1000,1))) -> 308.0881462 | T13: =IF(T11="",0,'Calc|Opex forecast'!T105*INDEX('Input|Rate of change'!$C$14:$P$22,MATCH('Calc|Opex forecast'!$F$105,'Input|Rate of change'!$C$14:$C$22,0),MATCH('Output|Models'!$F13,'Input|Rate of change'!$C$14:$P$14,0))*IF('Calc|Opex forecast'!$E$105="$millions",1000000,IF('Calc|Opex forecast'!$E$105="$000",1000,1))/IF($E13="$millions",1000000,IF($E13="$000",1000,1))) -> 0
C14: ='Input|Step changes'!C28 -> 0 | D14: Calc | Opex forecast | E14: =$E$8 -> $millions | F14: =$F$8 -> 2024-06-01 | J14: =IF(J$11="",0,'Calc|Opex forecast'!J93*INDEX('Input|Rate of change'!$C$14:$P$22,MATCH('Calc|Opex forecast'!$F93,'Input|Rate of change'!$C$14:$C$22,0),MATCH('Output|Models'!$F14,'Input|Rate of change'!$C$14:$P$14,0))*IF('Calc|Opex forecast'!$E93="$millions",1000000,IF('Calc|Opex forecast'!$E93="$000",1000,1))/IF($E14="$millions",1000000,IF($E14="$000",1000,1))) -> 0 | K14: =IF(K$11="",0,'Calc|Opex forecast'!K93*INDEX('Input|Rate of change'!$C$14:$P$22,MATCH('Calc|Opex forecast'!$F93,'Input|Rate of change'!$C$14:$C$22,0),MATCH('Output|Models'!$F14,'Input|Rate of change'!$C$14:$P$14,0))*IF('Calc|Opex forecast'!$E93="$millions",1000000,IF('Calc|Opex forecast'!$E93="$000",1000,1))/IF($E14="$millions",1000000,IF($E14="$000",1000,1))) -> 0 | L14: =IF(L$11="",0,'Calc|Opex forecast'!L93*INDEX('Input|Rate of change'!$C$14:$P$22,MATCH('Calc|Opex forecast'!$F93,'Input|Rate of change'!$C$14:$C$22,0),MATCH('Output|Models'!$F14,'Input|Rate of change'!$C$14:$P$14,0))*IF('Calc|Opex forecast'!$E93="$millions",1000000,IF('Calc|Opex forecast'!$E93="$000",1000,1))/IF($E14="$millions",1000000,IF($E14="$000",1000,1))) -> 0 | M14: =IF(M$11="",0,'Calc|Opex forecast'!M93*INDEX('Input|Rate of change'!$C$14:$P$22,MATCH('Calc|Opex forecast'!$F93,'Input|Rate of change'!$C$14:$C$22,0),MATCH('Output|Models'!$F14,'Input|Rate of change'!$C$14:$P$14,0))*IF('Calc|Opex forecast'!$E93="$millions",1000000,IF('Calc|Opex forecast'!$E93="$000",1000,1))/IF($E14="$millions",1000000,IF($E14="$000",1000,1))) -> 0 | N14: =IF(N$11="",0,'Calc|Opex forecast'!N93*INDEX('Input|Rate of change'!$C$14:$P$22,MATCH('Calc|Opex forecast'!$F93,'Input|Rate of change'!$C$14:$C$22,0),MATCH('Output|Models'!$F14,'Input|Rate of change'!$C$14:$P$14,0))*IF('Calc|Opex forecast'!$E93="$millions",1000000,IF('Calc|Opex forecast'!$E93="$000",1000,1))/IF($E14="$millions",1000000,IF($E14="$000",1000,1))) -> 0 | O14: =IF(O$11="",0,'Calc|Opex forecast'!O93*INDEX('Input|Rate of change'!$C$14:$P$22,MATCH('Calc|Opex forecast'!$F93,'Input|Rate of change'!$C$14:$C$22,0),MATCH('Output|Models'!$F14,'Input|Rate of change'!$C$14:$P$14,0))*IF('Calc|Opex forecast'!$E93="$millions",1000000,IF('Calc|Opex forecast'!$E93="$000",1000,1))/IF($E14="$millions",1000000,IF($E14="$000",1000,1))) -> 0 | P14: =IF(P$11="",0,'Calc|Opex forecast'!P93*INDEX('Input|Rate of change'!$C$14:$P$22,MATCH('Calc|Opex forecast'!$F93,'Input|Rate of change'!$C$14:$C$22,0),MATCH('Output|Models'!$F14,'Input|Rate of change'!$C$14:$P$14,0))*IF('Calc|Opex forecast'!$E93="$millions",1000000,IF('Calc|Opex forecast'!$E93="$000",1000,1))/IF($E14="$millions",1000000,IF($E14="$000",1000,1))) -> 0 | Q14: =IF(Q$11="",0,'Calc|Opex forecast'!Q93*INDEX('Input|Rate of change'!$C$14:$P$22,MATCH('Calc|Opex forecast'!$F93,'Input|Rate of change'!$C$14:$C$22,0),MATCH('Output|Models'!$F14,'Input|Rate of change'!$C$14:$P$14,0))*IF('Calc|Opex forecast'!$E93="$millions",1000000,IF('Calc|Opex forecast'!$E93="$000",1000,1))/IF($E14="$millions",1000000,IF($E14="$000",1000,1))) -> 0 | R14: =IF(R$11="",0,'Calc|Opex forecast'!R93*INDEX('Input|Rate of change'!$C$14:$P$22,MATCH('Calc|Opex forecast'!$F93,'Input|Rate of change'!$C$14:$C$22,0),MATCH('Output|Models'!$F14,'Input|Rate of change'!$C$14:$P$14,0))*IF('Calc|Opex forecast'!$E93="$millions",1000000,IF('Calc|Opex forecast'!$E93="$000",1000,1))/IF($E14="$millions",1000000,IF($E14="$000",1000,1))) -> 0 | S14: =IF(S$11="",0,'Calc|Opex forecast'!S93*INDEX('Input|Rate of change'!$C$14:$P$22,MATCH('Calc|Opex forecast'!$F93,'Input|Rate of change'!$C$14:$C$22,0),MATCH('Output|Models'!$F14,'Input|Rate of change'!$C$14:$P$14,0))*IF('Calc|Opex forecast'!$E93="$millions",1000000,IF('Calc|Opex forecast'!$E93="$000",1000,1))/IF($E14="$millions",1000000,IF($E14="$000",1000,1))) -> 0 | T14: =IF(T$11="",0,'Calc|Opex forecast'!T93*INDEX('Input|Rate of change'!$C$14:$P$22,MATCH('Calc|Opex forecast'!$F93,'Input|Rate of change'!$C$14:$C$22,0),MATCH('Output|Models'!$F14,'Input|Rate of change'!$C$14:$P$14,0))*IF('Calc|Opex forecast'!$E93="$millions",1000000,IF('Calc|Opex forecast'!$E93="$000",1000,1))/IF($E14="$millions",1000000,IF($E14="$000",1000,1))) -> 0
C15: ='Input|Step changes'!C29 -> 0 | D15: Calc | Opex forecast | E15: $millions | F15: 2024-06-01 | J15: =IF(J$11="",0,'Calc|Opex forecast'!J94*INDEX('Input|Rate of change'!$C$14:$P$22,MATCH('Calc|Opex forecast'!$F94,'Input|Rate of change'!$C$14:$C$22,0),MATCH('Output|Models'!$F15,'Input|Rate of change'!$C$14:$P$14,0))*IF('Calc|Opex forecast'!$E94="$millions",1000000,IF('Calc|Opex forecast'!$E94="$000",1000,1))/IF($E15="$millions",1000000,IF($E15="$000",1000,1))) -> 0 | K15: =IF(K$11="",0,'Calc|Opex forecast'!K94*INDEX('Input|Rate of change'!$C$14:$P$22,MATCH('Calc|Opex forecast'!$F94,'Input|Rate of change'!$C$14:$C$22,0),MATCH('Output|Models'!$F15,'Input|Rate of change'!$C$14:$P$14,0))*IF('Calc|Opex forecast'!$E94="$millions",1000000,IF('Calc|Opex forecast'!$E94="$000",1000,1))/IF($E15="$millions",1000000,IF($E15="$000",1000,1))) -> 0 | L15: =IF(L$11="",0,'Calc|Opex forecast'!L94*INDEX('Input|Rate of change'!$C$14:$P$22,MATCH('Calc|Opex forecast'!$F94,'Input|Rate of change'!$C$14:$C$22,0),MATCH('Output|Models'!$F15,'Input|Rate of change'!$C$14:$P$14,0))*IF('Calc|Opex forecast'!$E94="$millions",1000000,IF('Calc|Opex forecast'!$E94="$000",1000,1))/IF($E15="$millions",1000000,IF($E15="$000",1000,1))) -> 0 | M15: =IF(M$11="",0,'Calc|Opex forecast'!M94*INDEX('Input|Rate of change'!$C$14:$P$22,MATCH('Calc|Opex forecast'!$F94,'Input|Rate of change'!$C$14:$C$22,0),MATCH('Output|Models'!$F15,'Input|Rate of change'!$C$14:$P$14,0))*IF('Calc|Opex forecast'!$E94="$millions",1000000,IF('Calc|Opex forecast'!$E94="$000",1000,1))/IF($E15="$millions",1000000,IF($E15="$000",1000,1))) -> 0 | N15: =IF(N$11="",0,'Calc|Opex forecast'!N94*INDEX('Input|Rate of change'!$C$14:$P$22,MATCH('Calc|Opex forecast'!$F94,'Input|Rate of change'!$C$14:$C$22,0),MATCH('Output|Models'!$F15,'Input|Rate of change'!$C$14:$P$14,0))*IF('Calc|Opex forecast'!$E94="$millions",1000000,IF('Calc|Opex forecast'!$E94="$000",1000,1))/IF($E15="$millions",1000000,IF($E15="$000",1000,1))) -> 0 | O15: =IF(O$11="",0,'Calc|Opex forecast'!O94*INDEX('Input|Rate of change'!$C$14:$P$22,MATCH('Calc|Opex forecast'!$F94,'Input|Rate of change'!$C$14:$C$22,0),MATCH('Output|Models'!$F15,'Input|Rate of change'!$C$14:$P$14,0))*IF('Calc|Opex forecast'!$E94="$millions",1000000,IF('Calc|Opex forecast'!$E94="$000",1000,1))/IF($E15="$millions",1000000,IF($E15="$000",1000,1))) -> 0 | P15: =IF(P$11="",0,'Calc|Opex forecast'!P94*INDEX('Input|Rate of change'!$C$14:$P$22,MATCH('Calc|Opex forecast'!$F94,'Input|Rate of change'!$C$14:$C$22,0),MATCH('Output|Models'!$F15,'Input|Rate of change'!$C$14:$P$14,0))*IF('Calc|Opex forecast'!$E94="$millions",1000000,IF('Calc|Opex forecast'!$E94="$000",1000,1))/IF($E15="$millions",1000000,IF($E15="$000",1000,1))) -> 0 | Q15: =IF(Q$11="",0,'Calc|Opex forecast'!Q94*INDEX('Input|Rate of change'!$C$14:$P$22,MATCH('Calc|Opex forecast'!$F94,'Input|Rate of change'!$C$14:$C$22,0),MATCH('Output|Models'!$F15,'Input|Rate of change'!$C$14:$P$14,0))*IF('Calc|Opex forecast'!$E94="$millions",1000000,IF('Calc|Opex forecast'!$E94="$000",1000,1))/IF($E15="$millions",1000000,IF($E15="$000",1000,1))) -> 0 | R15: =IF(R$11="",0,'Calc|Opex forecast'!R94*INDEX('Input|Rate of change'!$C$14:$P$22,MATCH('Calc|Opex forecast'!$F94,'Input|Rate of change'!$C$14:$C$22,0),MATCH('Output|Models'!$F15,'Input|Rate of change'!$C$14:$P$14,0))*IF('Calc|Opex forecast'!$E94="$millions",1000000,IF('Calc|Opex forecast'!$E94="$000",1000,1))/IF($E15="$millions",1000000,IF($E15="$000",1000,1))) -> 0 | S15: =IF(S$11="",0,'Calc|Opex forecast'!S94*INDEX('Input|Rate of change'!$C$14:$P$22,MATCH('Calc|Opex forecast'!$F94,'Input|Rate of change'!$C$14:$C$22,0),MATCH('Output|Models'!$F15,'Input|Rate of change'!$C$14:$P$14,0))*IF('Calc|Opex forecast'!$E94="$millions",1000000,IF('Calc|Opex forecast'!$E94="$000",1000,1))/IF($E15="$millions",1000000,IF($E15="$000",1000,1))) -> 0 | T15: =IF(T$11="",0,'Calc|Opex forecast'!T94*INDEX('Input|Rate of change'!$C$14:$P$22,MATCH('Calc|Opex forecast'!$F94,'Input|Rate of change'!$C$14:$C$22,0),MATCH('Output|Models'!$F15,'Input|Rate of change'!$C$14:$P$14,0))*IF('Calc|Opex forecast'!$E94="$millions",1000000,IF('Calc|Opex forecast'!$E94="$000",1000,1))/IF($E15="$millions",1000000,IF($E15="$000",1000,1))) -> 0
C16: ='Input|Step changes'!C30 -> 0 | D16: Calc | Opex forecast | E16: $millions | F16: 2024-06-01 | J16: =IF(J$11="",0,'Calc|Opex forecast'!J95*INDEX('Input|Rate of change'!$C$14:$P$22,MATCH('Calc|Opex forecast'!$F95,'Input|Rate of change'!$C$14:$C$22,0),MATCH('Output|Models'!$F16,'Input|Rate of change'!$C$14:$P$14,0))*IF('Calc|Opex forecast'!$E95="$millions",1000000,IF('Calc|Opex forecast'!$E95="$000",1000,1))/IF($E16="$millions",1000000,IF($E16="$000",1000,1))) -> 0 | K16: =IF(K$11="",0,'Calc|Opex forecast'!K95*INDEX('Input|Rate of change'!$C$14:$P$22,MATCH('Calc|Opex forecast'!$F95,'Input|Rate of change'!$C$14:$C$22,0),MATCH('Output|Models'!$F16,'Input|Rate of change'!$C$14:$P$14,0))*IF('Calc|Opex forecast'!$E95="$millions",1000000,IF('Calc|Opex forecast'!$E95="$000",1000,1))/IF($E16="$millions",1000000,IF($E16="$000",1000,1))) -> 0 | L16: =IF(L$11="",0,'Calc|Opex forecast'!L95*INDEX('Input|Rate of change'!$C$14:$P$22,MATCH('Calc|Opex forecast'!$F95,'Input|Rate of change'!$C$14:$C$22,0),MATCH('Output|Models'!$F16,'Input|Rate of change'!$C$14:$P$14,0))*IF('Calc|Opex forecast'!$E95="$millions",1000000,IF('Calc|Opex forecast'!$E95="$000",1000,1))/IF($E16="$millions",1000000,IF($E16="$000",1000,1))) -> 0 | M16: =IF(M$11="",0,'Calc|Opex forecast'!M95*INDEX('Input|Rate of change'!$C$14:$P$22,MATCH('Calc|Opex forecast'!$F95,'Input|Rate of change'!$C$14:$C$22,0),MATCH('Output|Models'!$F16,'Input|Rate of change'!$C$14:$P$14,0))*IF('Calc|Opex forecast'!$E95="$millions",1000000,IF('Calc|Opex forecast'!$E95="$000",1000,1))/IF($E16="$millions",1000000,IF($E16="$000",1000,1))) -> 0 | N16: =IF(N$11="",0,'Calc|Opex forecast'!N95*INDEX('Input|Rate of change'!$C$14:$P$22,MATCH('Calc|Opex forecast'!$F95,'Input|Rate of change'!$C$14:$C$22,0),MATCH('Output|Models'!$F16,'Input|Rate of change'!$C$14:$P$14,0))*IF('Calc|Opex forecast'!$E95="$millions",1000000,IF('Calc|Opex forecast'!$E95="$000",1000,1))/IF($E16="$millions",1000000,IF($E16="$000",1000,1))) -> 0 | O16: =IF(O$11="",0,'Calc|Opex forecast'!O95*INDEX('Input|Rate of change'!$C$14:$P$22,MATCH('Calc|Opex forecast'!$F95,'Input|Rate of change'!$C$14:$C$22,0),MATCH('Output|Models'!$F16,'Input|Rate of change'!$C$14:$P$14,0))*IF('Calc|Opex forecast'!$E95="$millions",1000000,IF('Calc|Opex forecast'!$E95="$000",1000,1))/IF($E16="$millions",1000000,IF($E16="$000",1000,1))) -> 0 | P16: =IF(P$11="",0,'Calc|Opex forecast'!P95*INDEX('Input|Rate of change'!$C$14:$P$22,MATCH('Calc|Opex forecast'!$F95,'Input|Rate of change'!$C$14:$C$22,0),MATCH('Output|Models'!$F16,'Input|Rate of change'!$C$14:$P$14,0))*IF('Calc|Opex forecast'!$E95="$millions",1000000,IF('Calc|Opex forecast'!$E95="$000",1000,1))/IF($E16="$millions",1000000,IF($E16="$000",1000,1))) -> 0 | Q16: =IF(Q$11="",0,'Calc|Opex forecast'!Q95*INDEX('Input|Rate of change'!$C$14:$P$22,MATCH('Calc|Opex forecast'!$F95,'Input|Rate of change'!$C$14:$C$22,0),MATCH('Output|Models'!$F16,'Input|Rate of change'!$C$14:$P$14,0))*IF('Calc|Opex forecast'!$E95="$millions",1000000,IF('Calc|Opex forecast'!$E95="$000",1000,1))/IF($E16="$millions",1000000,IF($E16="$000",1000,1))) -> 0 | R16: =IF(R$11="",0,'Calc|Opex forecast'!R95*INDEX('Input|Rate of change'!$C$14:$P$22,MATCH('Calc|Opex forecast'!$F95,'Input|Rate of change'!$C$14:$C$22,0),MATCH('Output|Models'!$F16,'Input|Rate of change'!$C$14:$P$14,0))*IF('Calc|Opex forecast'!$E95="$millions",1000000,IF('Calc|Opex forecast'!$E95="$000",1000,1))/IF($E16="$millions",1000000,IF($E16="$000",1000,1))) -> 0 | S16: =IF(S$11="",0,'Calc|Opex forecast'!S95*INDEX('Input|Rate of change'!$C$14:$P$22,MATCH('Calc|Opex forecast'!$F95,'Input|Rate of change'!$C$14:$C$22,0),MATCH('Output|Models'!$F16,'Input|Rate of change'!$C$14:$P$14,0))*IF('Calc|Opex forecast'!$E95="$millions",1000000,IF('Calc|Opex forecast'!$E95="$000",1000,1))/IF($E16="$millions",1000000,IF($E16="$000",1000,1))) -> 0 | T16: =IF(T$11="",0,'Calc|Opex forecast'!T95*INDEX('Input|Rate of change'!$C$14:$P$22,MATCH('Calc|Opex forecast'!$F95,'Input|Rate of change'!$C$14:$C$22,0),MATCH('Output|Models'!$F16,'Input|Rate of change'!$C$14:$P$14,0))*IF('Calc|Opex forecast'!$E95="$millions",1000000,IF('Calc|Opex forecast'!$E95="$000",1000,1))/IF($E16="$millions",1000000,IF($E16="$000",1000,1))) -> 0
C17: ='Input|Step changes'!C31 -> 0 | D17: Calc | Opex forecast | E17: $millions | F17: 2024-06-01 | J17: =IF(J$11="",0,'Calc|Opex forecast'!J96*INDEX('Input|Rate of change'!$C$14:$P$22,MATCH('Calc|Opex forecast'!$F96,'Input|Rate of change'!$C$14:$C$22,0),MATCH('Output|Models'!$F17,'Input|Rate of change'!$C$14:$P$14,0))*IF('Calc|Opex forecast'!$E96="$millions",1000000,IF('Calc|Opex forecast'!$E96="$000",1000,1))/IF($E17="$millions",1000000,IF($E17="$000",1000,1))) -> 0 | K17: =IF(K$11="",0,'Calc|Opex forecast'!K96*INDEX('Input|Rate of change'!$C$14:$P$22,MATCH('Calc|Opex forecast'!$F96,'Input|Rate of change'!$C$14:$C$22,0),MATCH('Output|Models'!$F17,'Input|Rate of change'!$C$14:$P$14,0))*IF('Calc|Opex forecast'!$E96="$millions",1000000,IF('Calc|Opex forecast'!$E96="$000",1000,1))/IF($E17="$millions",1000000,IF($E17="$000",1000,1))) -> 0 | L17: =IF(L$11="",0,'Calc|Opex forecast'!L96*INDEX('Input|Rate of change'!$C$14:$P$22,MATCH('Calc|Opex forecast'!$F96,'Input|Rate of change'!$C$14:$C$22,0),MATCH('Output|Models'!$F17,'Input|Rate of change'!$C$14:$P$14,0))*IF('Calc|Opex forecast'!$E96="$millions",1000000,IF('Calc|Opex forecast'!$E96="$000",1000,1))/IF($E17="$millions",1000000,IF($E17="$000",1000,1))) -> 0 | M17: =IF(M$11="",0,'Calc|Opex forecast'!M96*INDEX('Input|Rate of change'!$C$14:$P$22,MATCH('Calc|Opex forecast'!$F96,'Input|Rate of change'!$C$14:$C$22,0),MATCH('Output|Models'!$F17,'Input|Rate of change'!$C$14:$P$14,0))*IF('Calc|Opex forecast'!$E96="$millions",1000000,IF('Calc|Opex forecast'!$E96="$000",1000,1))/IF($E17="$millions",1000000,IF($E17="$000",1000,1))) -> 0 | N17: =IF(N$11="",0,'Calc|Opex forecast'!N96*INDEX('Input|Rate of change'!$C$14:$P$22,MATCH('Calc|Opex forecast'!$F96,'Input|Rate of change'!$C$14:$C$22,0),MATCH('Output|Models'!$F17,'Input|Rate of change'!$C$14:$P$14,0))*IF('Calc|Opex forecast'!$E96="$millions",1000000,IF('Calc|Opex forecast'!$E96="$000",1000,1))/IF($E17="$millions",1000000,IF($E17="$000",1000,1))) -> 0 | O17: =IF(O$11="",0,'Calc|Opex forecast'!O96*INDEX('Input|Rate of change'!$C$14:$P$22,MATCH('Calc|Opex forecast'!$F96,'Input|Rate of change'!$C$14:$C$22,0),MATCH('Output|Models'!$F17,'Input|Rate of change'!$C$14:$P$14,0))*IF('Calc|Opex forecast'!$E96="$millions",1000000,IF('Calc|Opex forecast'!$E96="$000",1000,1))/IF($E17="$millions",1000000,IF($E17="$000",1000,1))) -> 0 | P17: =IF(P$11="",0,'Calc|Opex forecast'!P96*INDEX('Input|Rate of change'!$C$14:$P$22,MATCH('Calc|Opex forecast'!$F96,'Input|Rate of change'!$C$14:$C$22,0),MATCH('Output|Models'!$F17,'Input|Rate of change'!$C$14:$P$14,0))*IF('Calc|Opex forecast'!$E96="$millions",1000000,IF('Calc|Opex forecast'!$E96="$000",1000,1))/IF($E17="$millions",1000000,IF($E17="$000",1000,1))) -> 0 | Q17: =IF(Q$11="",0,'Calc|Opex forecast'!Q96*INDEX('Input|Rate of change'!$C$14:$P$22,MATCH('Calc|Opex forecast'!$F96,'Input|Rate of change'!$C$14:$C$22,0),MATCH('Output|Models'!$F17,'Input|Rate of change'!$C$14:$P$14,0))*IF('Calc|Opex forecast'!$E96="$millions",1000000,IF('Calc|Opex forecast'!$E96="$000",1000,1))/IF($E17="$millions",1000000,IF($E17="$000",1000,1))) -> 0 | R17: =IF(R$11="",0,'Calc|Opex forecast'!R96*INDEX('Input|Rate of change'!$C$14:$P$22,MATCH('Calc|Opex forecast'!$F96,'Input|Rate of change'!$C$14:$C$22,0),MATCH('Output|Models'!$F17,'Input|Rate of change'!$C$14:$P$14,0))*IF('Calc|Opex forecast'!$E96="$millions",1000000,IF('Calc|Opex forecast'!$E96="$000",1000,1))/IF($E17="$millions",1000000,IF($E17="$000",1000,1))) -> 0 | S17: =IF(S$11="",0,'Calc|Opex forecast'!S96*INDEX('Input|Rate of change'!$C$14:$P$22,MATCH('Calc|Opex forecast'!$F96,'Input|Rate of change'!$C$14:$C$22,0),MATCH('Output|Models'!$F17,'Input|Rate of change'!$C$14:$P$14,0))*IF('Calc|Opex forecast'!$E96="$millions",1000000,IF('Calc|Opex forecast'!$E96="$000",1000,1))/IF($E17="$millions",1000000,IF($E17="$000",1000,1))) -> 0 | T17: =IF(T$11="",0,'Calc|Opex forecast'!T96*INDEX('Input|Rate of change'!$C$14:$P$22,MATCH('Calc|Opex forecast'!$F96,'Input|Rate of change'!$C$14:$C$22,0),MATCH('Output|Models'!$F17,'Input|Rate of change'!$C$14:$P$14,0))*IF('Calc|Opex forecast'!$E96="$millions",1000000,IF('Calc|Opex forecast'!$E96="$000",1000,1))/IF($E17="$millions",1000000,IF($E17="$000",1000,1))) -> 0
C18: ='Input|Step changes'!C32 -> 0 | D18: Calc | Opex forecast | E18: $millions | F18: 2024-06-01 | J18: =IF(J$11="",0,'Calc|Opex forecast'!J97*INDEX('Input|Rate of change'!$C$14:$P$22,MATCH('Calc|Opex forecast'!$F97,'Input|Rate of change'!$C$14:$C$22,0),MATCH('Output|Models'!$F18,'Input|Rate of change'!$C$14:$P$14,0))*IF('Calc|Opex forecast'!$E97="$millions",1000000,IF('Calc|Opex forecast'!$E97="$000",1000,1))/IF($E18="$millions",1000000,IF($E18="$000",1000,1))) -> 0 | K18: =IF(K$11="",0,'Calc|Opex forecast'!K97*INDEX('Input|Rate of change'!$C$14:$P$22,MATCH('Calc|Opex forecast'!$F97,'Input|Rate of change'!$C$14:$C$22,0),MATCH('Output|Models'!$F18,'Input|Rate of change'!$C$14:$P$14,0))*IF('Calc|Opex forecast'!$E97="$millions",1000000,IF('Calc|Opex forecast'!$E97="$000",1000,1))/IF($E18="$millions",1000000,IF($E18="$000",1000,1))) -> 0 | L18: =IF(L$11="",0,'Calc|Opex forecast'!L97*INDEX('Input|Rate of change'!$C$14:$P$22,MATCH('Calc|Opex forecast'!$F97,'Input|Rate of change'!$C$14:$C$22,0),MATCH('Output|Models'!$F18,'Input|Rate of change'!$C$14:$P$14,0))*IF('Calc|Opex forecast'!$E97="$millions",1000000,IF('Calc|Opex forecast'!$E97="$000",1000,1))/IF($E18="$millions",1000000,IF($E18="$000",1000,1))) -> 0 | M18: =IF(M$11="",0,'Calc|Opex forecast'!M97*INDEX('Input|Rate of change'!$C$14:$P$22,MATCH('Calc|Opex forecast'!$F97,'Input|Rate of change'!$C$14:$C$22,0),MATCH('Output|Models'!$F18,'Input|Rate of change'!$C$14:$P$14,0))*IF('Calc|Opex forecast'!$E97="$millions",1000000,IF('Calc|Opex forecast'!$E97="$000",1000,1))/IF($E18="$millions",1000000,IF($E18="$000",1000,1))) -> 0 | N18: =IF(N$11="",0,'Calc|Opex forecast'!N97*INDEX('Input|Rate of change'!$C$14:$P$22,MATCH('Calc|Opex forecast'!$F97,'Input|Rate of change'!$C$14:$C$22,0),MATCH('Output|Models'!$F18,'Input|Rate of change'!$C$14:$P$14,0))*IF('Calc|Opex forecast'!$E97="$millions",1000000,IF('Calc|Opex forecast'!$E97="$000",1000,1))/IF($E18="$millions",1000000,IF($E18="$000",1000,1))) -> 0 | O18: =IF(O$11="",0,'Calc|Opex forecast'!O97*INDEX('Input|Rate of change'!$C$14:$P$22,MATCH('Calc|Opex forecast'!$F97,'Input|Rate of change'!$C$14:$C$22,0),MATCH('Output|Models'!$F18,'Input|Rate of change'!$C$14:$P$14,0))*IF('Calc|Opex forecast'!$E97="$millions",1000000,IF('Calc|Opex forecast'!$E97="$000",1000,1))/IF($E18="$millions",1000000,IF($E18="$000",1000,1))) -> 0 | P18: =IF(P$11="",0,'Calc|Opex forecast'!P97*INDEX('Input|Rate of change'!$C$14:$P$22,MATCH('Calc|Opex forecast'!$F97,'Input|Rate of change'!$C$14:$C$22,0),MATCH('Output|Models'!$F18,'Input|Rate of change'!$C$14:$P$14,0))*IF('Calc|Opex forecast'!$E97="$millions",1000000,IF('Calc|Opex forecast'!$E97="$000",1000,1))/IF($E18="$millions",1000000,IF($E18="$000",1000,1))) -> 0 | Q18: =IF(Q$11="",0,'Calc|Opex forecast'!Q97*INDEX('Input|Rate of change'!$C$14:$P$22,MATCH('Calc|Opex forecast'!$F97,'Input|Rate of change'!$C$14:$C$22,0),MATCH('Output|Models'!$F18,'Input|Rate of change'!$C$14:$P$14,0))*IF('Calc|Opex forecast'!$E97="$millions",1000000,IF('Calc|Opex forecast'!$E97="$000",1000,1))/IF($E18="$millions",1000000,IF($E18="$000",1000,1))) -> 0 | R18: =IF(R$11="",0,'Calc|Opex forecast'!R97*INDEX('Input|Rate of change'!$C$14:$P$22,MATCH('Calc|Opex forecast'!$F97,'Input|Rate of change'!$C$14:$C$22,0),MATCH('Output|Models'!$F18,'Input|Rate of change'!$C$14:$P$14,0))*IF('Calc|Opex forecast'!$E97="$millions",1000000,IF('Calc|Opex forecast'!$E97="$000",1000,1))/IF($E18="$millions",1000000,IF($E18="$000",1000,1))) -> 0 | S18: =IF(S$11="",0,'Calc|Opex forecast'!S97*INDEX('Input|Rate of change'!$C$14:$P$22,MATCH('Calc|Opex forecast'!$F97,'Input|Rate of change'!$C$14:$C$22,0),MATCH('Output|Models'!$F18,'Input|Rate of change'!$C$14:$P$14,0))*IF('Calc|Opex forecast'!$E97="$millions",1000000,IF('Calc|Opex forecast'!$E97="$000",1000,1))/IF($E18="$millions",1000000,IF($E18="$000",1000,1))) -> 0 | T18: =IF(T$11="",0,'Calc|Opex forecast'!T97*INDEX('Input|Rate of change'!$C$14:$P$22,MATCH('Calc|Opex forecast'!$F97,'Input|Rate of change'!$C$14:$C$22,0),MATCH('Output|Models'!$F18,'Input|Rate of change'!$C$14:$P$14,0))*IF('Calc|Opex forecast'!$E97="$millions",1000000,IF('Calc|Opex forecast'!$E97="$000",1000,1))/IF($E18="$millions",1000000,IF($E18="$000",1000,1))) -> 0
B20: End

Sheet Lookup|Tables
B1: =Index!$B$1 -> AER opex model v2.0 | J1: Back to Index | L1: Key: | M1: Input | N1: External Link | O1: Internal Link | U1: Overall Check: | V1: ='Check|List'!$S$1 -> Ok
B2: =Index!$C$14 -> Lookup | Tables
B5: Stage
C7: =B5 -> Stage | D7: Source | G7: Ref
C8: Pre-submission | D8: Network | G8: Pre-submission
C9: Proposal | D9: Network | G9: Proposal
C10: Draft decision | D10: AER | G10: Draft decision
C11: Revised proposal | D11: Network | G11: Revised proposal
C12: Final decision | D12: AER | G12: Final decision
B14: Unit Denominations
C16: =B14 -> Unit Denominations | D16: Source | G16: Ref
C17: Dollars | D17: AER | G17: $dollars
C18: Thousands | D18: AER | G18: $000
C19: Millions | D19: AER | G19: $millions
C21: Percent | D21: AER | G21: Per cent
C22: Unit | D22: AER | G22: unit
C23: Number | D23: AER | G23: number
C24: Factor | D24: AER | G24: factor
C26: Actual | D26: AER | G26: Actual
C27: Estimate | D27: AER | G27: Estimate
B29: Months
C31: =B29 -> Months | D31: Source | G31: Ref
C32: month 1 | D32: AER | G32: 2000-01-01
C33: month 2 | D33: AER | G33: 2000-02-01
C34: month 3 | D34: AER | G34: 2000-03-01
C35: month 4 | D35: AER | G35: 2000-04-01
C36: month 5 | D36: AER | G36: 2000-05-01
C37: month 6 | D37: AER | G37: 2000-06-01
C38: month 7 | D38: AER | G38: 2000-07-01
C39: month 8 | D39: AER | G39: 2000-08-01
C40: month 9 | D40: AER | G40: 2000-09-01
C41: month 10 | D41: AER | G41: 2000-10-01
C42: month 11 | D42: AER | G42: 2000-11-01
C43: month 12 | D43: AER | G43: 2000-12-01
B45: Years
C47: =B45 -> Years | D47: Source | G47: Calendar Year | H47: Year Ending | I47: Financial Year
C48: 2011-06-01 | D48: AER | G48: 2011 | H48: =DATE(G48,MONTH('Input|General'!$G$9),1) -> 2011-06-01 | I48: =G48-1&"–"&RIGHT(G48,2) -> 2010–11
C49: 2012-06-01 | D49: AER | G49: 2012 | H49: =DATE(G49,MONTH('Input|General'!$G$9),1) -> 2012-06-01 | I49: =G49-1&"–"&RIGHT(G49,2) -> 2011–12
C50: 2013-06-01 | D50: AER | G50: 2013 | H50: =DATE(G50,MONTH('Input|General'!$G$9),1) -> 2013-06-01 | I50: 2012–13
C51: 2014-06-01 | D51: AER | G51: 2014 | H51: =DATE(G51,MONTH('Input|General'!$G$9),1) -> 2014-06-01 | I51: 2013–14
C52: 2015-06-01 | D52: AER | G52: 2015 | H52: =DATE(G52,MONTH('Input|General'!$G$9),1) -> 2015-06-01 | I52: 2014–15
C53: 2016-06-01 | D53: AER | G53: 2016 | H53: =DATE(G53,MONTH('Input|General'!$G$9),1) -> 2016-06-01 | I53: 2015–16
C54: 2017-06-01 | D54: AER | G54: 2017 | H54: =DATE(G54,MONTH('Input|General'!$G$9),1) -> 2017-06-01 | I54: 2016–17
C55: 2018-06-01 | D55: AER | G55: 2018 | H55: =DATE(G55,MONTH('Input|General'!$G$9),1) -> 2018-06-01 | I55: 2017–18
C56: 2019-06-01 | D56: AER | G56: 2019 | H56: =DATE(G56,MONTH('Input|General'!$G$9),1) -> 2019-06-01 | I56: 2018–19
C57: 2020-06-01 | D57: AER | G57: 2020 | H57: =DATE(G57,MONTH('Input|General'!$G$9),1) -> 2020-06-01 | I57: 2019–20
C58: 2021-06-01 | D58: AER | G58: 2021 | H58: =DATE(G58,MONTH('Input|General'!$G$9),1) -> 2021-06-01 | I58: 2020–21
C59: 2022-06-01 | D59: AER | G59: 2022 | H59: =DATE(G59,MONTH('Input|General'!$G$9),1) -> 2022-06-01 | I59: 2021–22
C60: 2023-06-01 | D60: AER | G60: 2023 | H60: =DATE(G60,MONTH('Input|General'!$G$9),1) -> 2023-06-01 | I60: 2022–23
C61: 2024-06-01 | D61: AER | G61: 2024 | H61: =DATE(G61,MONTH('Input|General'!$G$9),1) -> 2024-06-01 | I61: 2023–24
C62: 2025-06-01 | D62: AER | G62: 2025 | H62: =DATE(G62,MONTH('Input|General'!$G$9),1) -> 2025-06-01 | I62: 2024–25
C63: 2026-06-01 | D63: AER | G63: 2026 | H63: =DATE(G63,MONTH('Input|General'!$G$9),1) -> 2026-06-01 | I63: 2025–26
C64: 2027-06-01 | D64: AER | G64: 2027 | H64: =DATE(G64,MONTH('Input|General'!$G$9),1) -> 2027-06-01 | I64: 2026–27
C65: 2028-06-01 | D65: AER | G65: 2028 | H65: =DATE(G65,MONTH('Input|General'!$G$9),1) -> 2028-06-01 | I65: 2027–28
C66: 2029-06-01 | D66: AER | G66: 2029 | H66: =DATE(G66,MONTH('Input|General'!$G$9),1) -> 2029-06-01 | I66: 2028–29
C67: 2030-06-01 | D67: AER | G67: 2030 | H67: =DATE(G67,MONTH('Input|General'!$G$9),1) -> 2030-06-01 | I67: 2029–30
B69: Regulatory years
C71: =B69 -> Regulatory years | D71: Source | G71: Year | H71: Year ending
C72: Previous period year 0 | D72: calculated | G72: =IF(H72="","",IF(MONTH(H72)=12,YEAR(H72),YEAR(H72)-1&"–"&RIGHT(YEAR(H72),2))) -> 2018–19 | H72: =DATE(PPFirstYear-1,MONTH('Input|General'!$G$9),1) -> 2019-06-01
C73: Previous period year 1 | D73: calculated | G73: =IF(H73="","",IF(MONTH(H73)=12,YEAR(H73),YEAR(H73)-1&"–"&RIGHT(YEAR(H73),2))) -> 2019–20 | H73: =DATE(PPFirstYear,MONTH('Input|General'!$G$9),1) -> 2020-06-01
C74: Previous period year 2 | D74: calculated | G74: 2020–21 | H74: =IF(PPLastYear-PPFirstYear<1,"",DATE(PPFirstYear+1,MONTH('Input|General'!$G$9),1)) -> 2021-06-01
C75: Previous period year 3 | D75: calculated | G75: 2021–22 | H75: =IF(PPLastYear-PPFirstYear<2,"",DATE(PPFirstYear+2,MONTH('Input|General'!$G$9),1)) -> 2022-06-01
C76: Previous period year 4 | D76: calculated | G76: 2022–23 | H76: =IF(PPLastYear-PPFirstYear<3,"",DATE(PPFirstYear+3,MONTH('Input|General'!$G$9),1)) -> 2023-06-01
C77: Previous period year 5 | D77: calculated | G77: 2023–24 | H77: =IF(PPLastYear-PPFirstYear<4,"",DATE(PPFirstYear+4,MONTH('Input|General'!$G$9),1)) -> 2024-06-01
C78: Previous period year 6 | D78: calculated | H78: =IF(PPLastYear-PPFirstYear<5,"",DATE(PPFirstYear+5,MONTH('Input|General'!$G$9),1)) -> 
C79: Forecast period year 1 | D79: calculated | G79: 2024–25 | H79: =DATE(FPFirstYear,MONTH('Input|General'!$G$9),1) -> 2025-06-01
C80: Forecast period year 2 | D80: calculated | G80: 2025–26 | H80: =IF(FPLastYear-FPFirstYear<1,"",DATE(FPFirstYear+1,MONTH('Input|General'!$G$9),1)) -> 2026-06-01
C81: Forecast period year 3 | D81: calculated | G81: 2026–27 | H81: =IF(FPLastYear-FPFirstYear<2,"",DATE(FPFirstYear+2,MONTH('Input|General'!$G$9),1)) -> 2027-06-01
C82: Forecast period year 4 | D82: calculated | G82: 2027–28 | H82: =IF(FPLastYear-FPFirstYear<3,"",DATE(FPFirstYear+3,MONTH('Input|General'!$G$9),1)) -> 2028-06-01
C83: Forecast period year 5 | D83: calculated | G83: =IF(H83="","",IF(MONTH(H83)=12,YEAR(H83),YEAR(H83)-1&"–"&RIGHT(YEAR(H83),2))) -> 2028–29 | H83: =IF(FPLastYear-FPFirstYear<4,"",DATE(FPFirstYear+4,MONTH('Input|General'!$G$9),1)) -> 2029-06-01
B85: End

Sheet Check|List
B1: =Index!$B$1 -> AER opex model v2.0 | J1: Back to Index | L1: Key: | M1: Input | N1: External Link | O1: Internal Link | R1: Overall Check: | S1: =IF(COUNTIF(G10:G16,"Check")=0,"Ok","Check") -> Ok
B2: =Index!$C$15 -> Check | List
B7: Check List
C9: Sheet | D9: Source | E9: Unit | G9: Status
C10: =Index!C7 -> Input | General | D10: =C10 -> Input | General | E10: Ok/Check | G10: ='Input|General'!S1 -> OK
C11: =Index!C8 -> Input | Inflation | D11: =C11 -> Input | Inflation | E11: Ok/Check | G11: ='Input|Inflation'!V1 -> OK
C12: =Index!C9 -> Input | Reported opex | D12: =C12 -> Input | Reported opex | E12: Ok/Check | G12: ='Input|Reported opex'!S1 -> OK
C13: =Index!C10 -> Input | Rate of change | D13: Input | Rate of change | E13: Ok/Check | G13: ='Input|Rate of change'!T1 -> Ok
C14: =Index!C11 -> Input | Step changes | D14: Input | Step changes | E14: Ok/Check | G14: ='Input|Step changes'!S1 -> OK
C15: =Index!C12 -> Calc | Opex Forecast | D15: Calc | Opex Forecast | E15: Ok/Check | G15: ='Calc|Opex forecast'!S1 -> n/a
C16: =Index!C13 -> Output | Models | D16: Output | Models | E16: Ok/Check | G16: ='Output|Models'!S1 -> n/a
B18: End
